Workbook

Sheet Drivers and LCOE
C2: Technology Code Number | E2: 1 | I2: FALSE
G3: =INDEX(I3:V3,$E$2) -> Solar - Lazard No Inflation No Tax | I3: Solar - Lazard No Inflation No Tax | J3: Solar - Lazard Inflation and Real | K3: Solar - Lazard Real and Degradation | L3: Solar - Lazard with Income Tax | M3: Solar India Example in 2022 Report | N3: Solar Example Saudi Example | O3: Solar Example - With Tracking | P3: On-Shore Lazard Low Case | Q3: On-Shore Example 2 | R3: Off-Shore Lazard High Case | S3: Off-Shore Example 2 | T3: Nuclear | U3: Hydro | V3: Natural Gas Combined Cycle | X3: http://pvinsights.com
I4: =I86 ->  | J4: =J86 -> 4.364759602 | K4: =K86 -> 13.03291788 | L4: =L86 -> 26.17083318 | N4: 20.34729453 | O4: 20.34729453 | P4: 17.87660873 | Q4: 37.65149118 | R4: 51.78395798 | S4: 90.09582093 | T4: 61.41983291 | U4: 45.46194932 | V4: 155.6549919
X5: https://re.jrc.ec.europa.eu/pvg_tools/en/#MR
B6: Capacity and Production
C7: Capacity | E7: kWp or kW | I7: 100 | J7: 100 | K7: 100 | L7: 100 | M7: 100 | N7: 1000 | O7: 100 | P7: 250 | Q7: 250 | R7: 500 | S7: 500 | T7: 4000 | U7: 300 | V7: 300
C8: In-Plane Irriadiation/Global Incident/POA | E8: kWh/m3 | G8: =INDEX(I8:V8,$E$2) -> 3632.195122 | I8: =I11/I10 -> 3632.195122 | J8: =I8 -> 3632.195122 | K8: =J8 -> 3632.195122 | L8: =L11/L10 -> 3632.195122 | N8: 2602 | O8: =N8*1.15 -> 2992.3 | P8: =P11/P10 -> 5353.333333 | Q8: =Q11/Q10 -> 4380 | R8: 5158.666667 | S8: 4380 | T8: 7621.2 | U8: 4380 | V8: 5694
C9: STC (1,000 Watt) | E9: kW | G9: =INDEX(I9:V9,$E$2) -> 1 | I9: 1 | J9: 1 | K9: 1 | L9: 1 | M9: 1 | N9: 1 | O9: 1
C10: Performance Ratio | E10: % | G10: =INDEX(I10:V10,$E$2) -> 0.82 | I10: 0.82 | J10: 0.82 | K10: 0.82 | L10: 0.82 | N10: 0.85 | O10: 0.85 | P10: 0.9 | Q10: 0.9 | R10: 0.9 | S10: 0.9 | T10: 1 | U10: 1 | V10: 1
C11: Net Yield | E11: % | G11: =INDEX(I11:V11,$E$2) -> 2978.4 | I11: =I12*8760 -> 2978.4 | J11: =J12*8760 -> 2978.4 | K11: =K12*8760 -> 2978.4 | L11: =L12*8760 -> 2978.4 | N11: =N8*N9*N10 -> 2211.7 | O11: 2543.455 | P11: =P12*8760 -> 4818 | Q11: =Q12*8760 -> 3942 | R11: =R12*8760 -> 4642.8 | S11: 3942 | T11: =T12*8760 -> 7621.2 | U11: =U12*8760 -> 4380 | V11: =V12*8760 -> 5694
C12: Capacity Factor | E12: % p.a. | G12: =INDEX(I12:V12,$E$2) -> 0.34 | I12: =Lazard!K12 -> 0.34 | J12: =I12 -> 0.34 | K12: =J12 -> 0.34 | L12: =I12 -> 0.34 | N12: =N11/8760 -> 0.2524771689 | O12: 0.2903487443 | P12: =Lazard!S12 -> 0.55 | Q12: 0.45 | R12: =Lazard!U12 -> 0.53 | S12: 0.45 | T12: 0.87 | U12: 0.5 | V12: 0.65
C14: Degradation | E14: % p.a. | G14: =INDEX(I14:V14,$E$2) -> 0 | I14: 0 | J14: 0 | K14: 0.005 | L14: 0.005 | M14: 0.005 | N14: 0.005 | O14: 0.005 | P14: 0 | Q14: 0 | R14: 0 | S14: 0 | T14: 0 | U14: 0 | V14: 0
B16: Capital Costs and Economic Life
C17: Base Cost (Panel) | E17: USD/kW | G17: =INDEX(I17:V17,$E$2) -> 450 | I17: 450 | J17: 450 | K17: 450 | L17: 450 | N17: 212 | O17: =N17*1.15 -> 243.8 | P17: 1100 | Q17: 1400 | R17: 1400 | S17: 1400
C18: Balance of Plant | E18: USD/kW | G18: =INDEX(I18:V18,$E$2) -> 500 | I18: =I19-I17 -> 500 | J18: 500 | K18: 500 | L18: 500 | M18: 531 | N18: 338 | O18: 388.7 | P18: =P17*0.25/(1-0.25) -> 366.6666667 | Q18: =Q17*0.25/(1-0.25) -> 466.6666667 | R18: =R17*0.51/(1-0.51) -> 1457.142857 | S18: =S17*0.65/(1-0.65) -> 2600
C19: Cost per kW (kWp) | E19: USD/kW | G19: =INDEX(I19:V19,$E$2) -> 950 | I19: =Lazard!K8 -> 950 | J19: =I19 -> 950 | K19: =J19 -> 950 | L19: =I19 -> 950 | M19: 531 | N19: 550 | O19: =N19*1.15 -> 632.5 | P19: =Lazard!S8 -> 1025 | Q19: =Q17+Q18 -> 1866.666667 | R19: =Lazard!U8 -> 2500 | S19: =S17+S18 -> 4000 | T19: 5000 | U19: 4000 | V19: =AVERAGE(Lazard!AC8:AD8) -> 1000
C21: Total Capital Expenditure | E21: USD | G21: =INDEX(I21:V21,$E$2) -> 0 | J21: =J19*J7 -> 95000 | K21: =K19*K7 -> 95000 | L21: =L19*L7 -> 95000 | M21: =M19*M7 -> 53100 | N21: 550000 | O21: 63250 | P21: 256250 | Q21: 466666.6667 | R21: 1250000 | S21: 2000000 | T21: 20000000 | U21: 1200000 | V21: 300000
C23: Project Life | E23: Year | G23: =INDEX(I23:V23,$E$2) -> 30 | I23: =Lazard!K15 -> 30 | J23: =Lazard!L15 -> 30 | K23: =Lazard!M15 -> 30 | L23: =Lazard!L15 -> 30 | M23: 35 | N23: 35 | O23: 35 | P23: 35 | Q23: 25 | R23: 25 | S23: 20 | T23: 60 | U23: 80 | V23: 25
B25: O&M Cost
C26: Fixed O&M per kW/yr | E26: USD/kWy | G26: =INDEX(I26:V26,$E$2) -> 13 | I26: =Lazard!K9 -> 13 | J26: =I26 -> 13 | K26: =J26 -> 13 | L26: =K26 -> 13 | M26: 7 | N26: 11 | O26: =N26*1.15 -> 12.65 | P26: =Lazard!S9 -> 25.5 | Q26: 18 | R26: =Lazard!U9 -> 65.75 | S26: =Q26*2 -> 36 | T26: =Lazard!Y9 -> 121 | U26: 9 | V26: =Lazard!AC9 -> 15
C27: Variable Cost per MWH | E27: USD/MWH | G27: =INDEX(I27:V27,$E$2) -> 0 | T27: =Lazard!Y10 -> 4 | V27: =Lazard!AC10 -> 2.75
C29: Heat Rate | E29: MWH/MMBTU | G29: =INDEX(I29:V29,$E$2) -> 0 | T29: =Lazard!Y11/1000 -> 10.45 | V29: =Lazard!AD11/1000 -> 6.9
C30: Fuel Cost | E30: USD/MMBTU | G30: =INDEX(I30:V30,$E$2) -> 0 | T30: =Lazard!Y13 -> 0.85 | V30: 20
C31: Fuel Expense | E31: USD/MWH | G31: =INDEX(I31:V31,$E$2) -> 0 | I31: =I29*I30 -> 0 | J31: =J29*J30 -> 0 | K31: =K29*K30 -> 0 | L31: =L29*L30 -> 0 | M31: =M29*M30 -> 0 | N31: 0 | O31: 0 | P31: 0 | Q31: 0 | R31: 0 | S31: 0 | T31: 8.8825 | U31: 0 | V31: 138
C33: Total Production | E33: kWh p.a. | G33: =INDEX(I33:V33,$E$2) -> 0 | J33: =J12*J7*8760 -> 297840 | K33: =K12*K7*8760 -> 297840 | L33: =L12*L7*8760 -> 297840 | M33: =M12*M7*8760 -> 0 | N33: 2211700 | O33: 254345.5 | P33: 1204500 | Q33: 985500 | R33: 2321400 | S33: 1971000 | T33: 30484800 | U33: 1314000 | V33: 1708200
C35: Fixed O&M Costs | E35: USD | G35: =INDEX(I35:V35,$E$2) -> 1300 | I35: =I26*I7 -> 1300 | J35: =J26*J7 -> 1300 | K35: =K26*K7 -> 1300 | L35: =I35 -> 1300 | M35: =M26*M7 -> 700 | N35: 11000 | O35: 1265 | P35: 6375 | Q35: 4500 | R35: 32875 | S35: 18000 | T35: 484000 | U35: 2700 | V35: 4500
C36: Variable O&M Cost | E36: USD | G36: =INDEX(I36:V36,$E$2) -> 0 | I36: =(I27+I31)*I33/1000 -> 0 | J36: =(J27+J31)*J33/1000 -> 0 | K36: =(K27+K31)*K33/1000 -> 0 | L36: =(L27+L31)*L33/1000 -> 0 | M36: =(M27+M31)*M33/1000 -> 0 | N36: 0 | O36: 0 | P36: 0 | Q36: 0 | R36: 0 | S36: 0 | T36: 392720.436 | U36: 0 | V36: 240429.15
C37: Total Operating Cost to Model | E37: USD | G37: =INDEX(I37:V37,$E$2) -> 1300 | I37: =SUM(I35:I36) -> 1300 | J37: =SUM(J35:J36) -> 1300 | K37: =SUM(K35:K36) -> 1300 | L37: =SUM(L35:L36) -> 1300 | M37: =SUM(M35:M36) -> 700 | N37: 11000 | O37: 1265 | P37: 6375 | Q37: 4500 | R37: 32875 | S37: 18000 | T37: 876720.436 | U37: 2700 | V37: 244929.15
B39: Factors to Compute Levelised Cost with PMT and PV and NPV - O&M
C40: Nominal Pre-tax IRR | E40: % p.a. | G40: =INDEX(I40:V40,$E$2) -> 0.07 | I40: 0.07 | J40: 0.07 | K40: 0.07 | L40: 0.07 | M40: 0.07 | N40: 0.07 | O40: 0.07 | P40: 0.07 | Q40: 0.07 | R40: 0.07 | S40: 0.07 | T40: 0.07 | U40: 0.07 | V40: 0.07
C42: Inflation Rate | E42: % | G42: =INDEX(I42:V42,$E$2) -> 0 | I42: 0 | J42: 0.025 | K42: 0.025 | L42: 0.025 | M42: 0.025 | N42: 0.025 | O42: 0.025 | P42: 0.025 | Q42: 0.025 | R42: 0.025 | S42: 0.025 | T42: 0.025 | U42: 0.025 | V42: 0.025
C43: Real Rate for Discounting | E43: % | G43: =INDEX(I43:V43,$E$2) -> 0.07 | I43: =(1+I40)/(1+I42)-1 -> 0.07 | K43: 0.04390243902 | L43: 0.04390243902 | M43: 0.04390243902 | N43: 0.04390243902 | O43: 0.04390243902 | P43: 0.04390243902 | Q43: 0.04390243902 | R43: 0.04390243902 | S43: 0.04390243902 | T43: 0.04390243902 | U43: 0.04390243902 | V43: 0.04390243902
C45: Real Rate with Degradation | E45: % | G45: =INDEX(I45:V45,$E$2) -> 0.07 | I45: =(1+I43)/(1-I14)-1 -> 0.07 | J45: 0 | L45: 0.04914817992 | M45: 0.04914817992 | N45: 0.04914817992 | O45: 0.04914817992 | P45: 0.04390243902 | Q45: 0.04390243902 | R45: 0.04390243902 | S45: 0.04390243902 | T45: 0.04390243902 | U45: 0.04390243902 | V45: 0.04390243902
C46: Factor for Real O&M Cost (PV real) | E46: Factor | G46: =INDEX(I46:V46,$E$2) -> 1 | I46: =PV(I43,I23,-1)/PV(I45,I23,-1) -> 1 | J46: 1 | K46: 0.5500443029 | L46: 1.063034616 | M46: 1.070264413 | N46: 1.070264413 | O46: 1.070264413 | P46: 1 | Q46: 1 | R46: 1 | S46: 1 | T46: 1 | U46: 1 | V46: 1
C48: Real O&M with Degradation For Real LCOE | E48: USD | G48: =INDEX(I48:V48,$E$2) -> 1300 | I48: =I46*I37 -> 1300 | J48: 1300 | K48: 715.0575938 | L48: 1381.945001 | M48: 749.1850892 | N48: 11772.90854 | O48: 1353.884483 | P48: 6375 | Q48: 4500 | R48: 32875 | S48: 18000 | T48: 876720.436 | U48: 2700 | V48: 244929.15
C50: Nominal IRR Adjusted for Degradation | E50: % | G50: =INDEX(I50:V50,$E$2) -> 0.07 | I50: =(1+I40)/(1-I14)-1 -> 0.07 | J50: 0.07 | K50: 0.07537688442 | L50: 0.07537688442 | M50: 0.07537688442 | N50: 0.07537688442 | O50: 0.07537688442 | P50: 0.07 | Q50: 0.07 | R50: 0.07 | S50: 0.07 | T50: 0.07 | U50: 0.07 | V50: 0.07
C52: O&M Factor For Inflating Costs - PV Ratio | E52: Factor | G52: =INDEX(I52:V52,$E$2) -> 1 | I52: =PV(I43,I23,1)/PV(I40,I23,1) -> 1 | J52: 2.417592105 | K52: 1.329782764 | L52: 1.329782764 | M52: 1.368176585 | N52: 1.368176585 | O52: 1.368176585 | P52: 1.368176585 | Q52: 1.286914882 | R52: 1.286914882 | S52: 1.239618522 | T52: 1.499253645 | U52: 1.550092806 | V52: 1.286914882
C53: O&M Factor For Inflation Costs with Degradation - PV Ratio | E53: Factor | G53: =INDEX(I53:V53,$E$2) -> 1 | I53: =PV(I43,I23,-1)/PV(I50,I23,-1) -> 1 | J53: 2.417592105 | K53: 1.402317366 | L53: 1.402317366 | M53: 1.44917163 | N53: 1.44917163 | O53: 1.44917163 | P53: 1.368176585 | Q53: 1.286914882 | R53: 1.286914882 | S53: 1.239618522 | T53: 1.499253645 | U53: 1.550092806 | V53: 1.286914882
C55: O&M with Inflation | E55: USD | G55: =INDEX(I55:V55,$E$2) -> 1300 | I55: =I53*I37 -> 1300 | J55: 3142.869737 | K55: 1823.012576 | L55: 1823.012576 | M55: 1014.420141 | N55: 15940.88793 | O55: 1833.202113 | P55: 8722.125729 | Q55: 5791.116968 | R55: 42307.32674 | S55: 22313.1334 | T55: 1314426.31 | U55: 4185.250575 | V55: 315202.9681
B57: Factors to Compute Levelised Cost with PMT and PV and NPV - O&M
C58: Capital Expenditures | G58: =INDEX(I58:V58,$E$2) -> 0 | I58: =I21 -> 0 | J58: =J21 -> 95000 | K58: =K21 -> 95000 | L58: =L21 -> 95000 | M58: 53100 | N58: 550000 | O58: 63250 | P58: 256250 | Q58: 466666.6667 | R58: 1250000 | S58: 2000000 | T58: 20000000 | U58: 1200000 | V58: 300000
C59: Simple PMT for Nominal and No Degradation | E59: USD | G59: =INDEX(I59:V59,$E$2) -> 0 | J59: =PMT(J40,J23,-J21) -> 7655.708334 | K59: 7655.708334 | L59: 7655.708334 | M59: 4101.123257 | N59: 42478.67781 | O59: 4885.047948 | P59: 19791.20216 | Q59: 40044.90804 | R59: 107263.1465 | S59: 188785.8515 | T59: 1424584.51 | U59: 84376.28611 | V59: 25743.15517
C61: Income Tax Rate | E61: % | G61: =INDEX(I61:V61,$E$2) -> 0 | I61: 0 | J61: 0 | K61: 0 | L61: 0.21 | M61: 0.21 | N61: 0 | O61: 0 | P61: 0.21 | Q61: 0.21 | R61: 0.21 | S61: 0.21 | T61: 0.21 | U61: 0.21 | V61: 0.21
C62: Tax Life | E62: Years | G62: =INDEX(I62:V62,$E$2) -> 5 | I62: 5 | J62: 5 | K62: 5 | L62: 5 | M62: 5 | N62: 5 | O62: 5 | P62: 5 | Q62: 5 | R62: 5 | S62: 5 | T62: 5 | U62: 5 | V62: 5
C63: Straight Line Depreciation | E63: % | G63: =INDEX(I63:V63,$E$2) -> 0.2 | I63: =1/I62 -> 0.2 | J63: =1/J62 -> 0.2 | K63: =1/K62 -> 0.2 | L63: =1/L62 -> 0.2 | M63: 0.2 | N63: 0.2 | O63: 0.2 | P63: 0.2 | Q63: 0.2 | R63: 0.2 | S63: 0.2 | T63: 0.2 | U63: 0.2 | V63: 0.2
C64: PV of Tax Shield at Pre-tax Nominal IRR | E64: Factor | G64: =INDEX(I64:V64,$E$2) -> 0.8200394872 | I64: =PV(I40,I62,-I63) -> 0.8200394872 | J64: =PV(J40,J62,-J63) -> 0.8200394872 | K64: 0.8200394872 | L64: 0.8200394872 | M64: 0.8200394872 | N64: 0.8200394872 | O64: 0.8200394872 | P64: 0.8200394872 | Q64: 0.8200394872 | R64: 0.8200394872 | S64: 0.8200394872 | T64: 0.8200394872 | U64: 0.8200394872 | V64: 0.8200394872
C65: Multiplied by Cap Exp and Tax | E65: USD | G65: =INDEX(I65:V65,$E$2) -> 0 | I65: =I64*I58*I61 -> 0 | J65: =J64*J58*J61 -> 0 | K65: =K64*K58*K61 -> 0 | L65: =L64*L58*L61 -> 16359.78777 | M65: 9144.260322 | N65: 0 | O65: 0 | P65: 44128.3749 | Q65: 80363.86974 | R65: 215260.3654 | S65: 344416.5846 | T65: 3444165.846 | U65: 206649.9508 | V65: 51662.48769
C66: Adjusted Base for PMT | E66: USD | G66: =INDEX(I66:V66,$E$2) -> 0 | I66: =I58-I65 -> 0 | J66: =J58-J65 -> 95000 | K66: =K58-K65 -> 95000 | L66: =L58-L65 -> 78640.21223 | M66: 43955.73968 | N66: 550000 | O66: 63250 | P66: 212121.6251 | Q66: 386302.7969 | R66: 1034739.635 | S66: 1655583.415 | T66: 16555834.15 | U66: 993350.0492 | V66: 248337.5123
C68: Nominal Rate with Degradation | E68: % | G68: =INDEX(I68:V68,$E$2) -> 0.07 | I68: =(1+I40)/(1-I14)-1 -> 0.07 | J68: =(1+J40)/(1-J14)-1 -> 0.07 | K68: =(1+K40)/(1-K14)-1 -> 0.07537688442 | L68: =(1+L40)/(1-L14)-1 -> 0.07537688442 | M68: 0.07537688442 | N68: 0.07537688442 | O68: 0.07537688442 | P68: 0.07 | Q68: 0.07 | R68: 0.07 | S68: 0.07 | T68: 0.07 | U68: 0.07 | V68: 0.07
C70: Nominal PMT Before Tax | E70: USD | G70: =INDEX(I70:V70,$E$2) -> 0 | I70: =PMT(I68,I23,-I66) -> 0 | J70: =PMT(J68,J23,-J66) -> 7655.708334 | K70: =PMT(K68,K23,-K66) -> 8073.298159 | L70: =PMT(L68,L23,-L66) -> 6683.00927 | M70: 3595.849972 | N70: 44993.38423 | O70: 5174.239186 | P70: 16382.99303 | Q70: 33148.84281 | R70: 88791.54323 | S70: 156275.3624 | T70: 1179259.244 | U70: 69845.98997 | V70: 21309.97038
C71: Nominal PMT After Tax | G71: =INDEX(I71:V71,$E$2) -> 0 | I71: =I70/(1-I61) -> 0 | J71: =J70/(1-J61) -> 7655.708334 | K71: =K70/(1-K61) -> 8073.298159 | L71: =L70/(1-L61) -> 8459.505405 | M71: 4551.708825 | N71: 44993.38423 | O71: 5174.239186 | P71: 20737.96586 | Q71: 41960.56052 | R71: 112394.3585 | S71: 197816.9144 | T71: 1492733.221 | U71: 88412.64553 | V71: 26974.64605
C73: Real Rate with Degradation | E73: % | G73: =INDEX(I73:V73,$E$2) -> 0.07 | I73: =I45 -> 0.07 | J73: =J45 -> 0 | K73: =K45 -> 0 | L73: =L45 -> 0.04914817992 | M73: 0.04914817992 | N73: 0.04914817992 | O73: 0.04914817992 | P73: 0.04390243902 | Q73: 0.04390243902 | R73: 0.04390243902 | S73: 0.04390243902 | T73: 0.04390243902 | U73: 0.04390243902 | V73: 0.04390243902
C74: Real PMT with Degradation | E74: USD | G74: =INDEX(I74:V74,$E$2) -> 0 | I74: =PMT(I73,I23,-I66) -> 0 | K74: =PMT(K73,K23,-K66) -> 3166.666667 | L74: =PMT(L73,L23,-L66) -> 5066.093002 | M74: 2655.662158 | N74: 33229.20277 | O74: 3821.358319 | P74: 11974.32642 | Q74: 25758.3802 | R74: 68995.66124 | S74: 126067.3018 | T74: 786564.2001 | U74: 45059.23111 | V74: 16558.9587
C75: Real PMT with Degradation and Tax | E75: USD | G75: =INDEX(I75:V75,$E$2) -> 0 | I75: =I74/(1-I61) -> 0 | J75: =J74/(1-J61) -> 0 | K75: =K74/(1-K61) -> 3166.666667 | L75: =L74/(1-L61) -> 6412.775952 | M75: 3361.597668 | N75: 33229.20277 | O75: 3821.358319 | P75: 15157.37522 | Q75: 32605.54455 | R75: 87336.28006 | S75: 159578.863 | T75: 995650.8862 | U75: 57037.0014 | V75: 20960.70721
C77: Total Nominal Cost for LCOE | E77: USD | G77: =INDEX(I77:V77,$E$2) -> 0 | J77: =J71+J55 -> 10798.57807 | K77: =K71+K55 -> 9896.310735 | L77: =L71+L55 -> 10282.51798 | M77: 5566.128966 | N77: 60934.27216 | O77: 7007.441299 | P77: 29460.09159 | Q77: 47751.67748 | R77: 154701.6853 | S77: 220130.0478 | T77: 2807159.53 | U77: 92597.89611 | V77: 342177.6142
C78: Production | E78: kWh | G78: =INDEX(I78:V78,$E$2) -> 0 | I78: =I33 -> 0 | J78: =J33 -> 297840 | K78: =K33 -> 297840 | L78: =L33 -> 297840 | M78: 0 | N78: 2211700 | O78: 254345.5 | P78: 1204500 | Q78: 985500 | R78: 2321400 | S78: 1971000 | T78: 30484800 | U78: 1314000 | V78: 1708200
C80: Levelised Cost - Nominal | E80: USD/MWH | G80: =INDEX(I80:V80,$E$2) ->  | I80: =I77/I78 ->  | J80: =J77/J78*1000 -> 36.25630564 | K80: =K77/K78*1000 -> 33.22693639 | L80: =L77/L78*1000 -> 34.52363007 | N80: 27.55087587 | O80: 27.55087587 | P80: 24.45835749 | Q80: 48.45426432 | R80: 66.64154616 | S80: 111.6844484 | T80: 92.08390838 | U80: 70.47024057 | V80: 200.3147255
C82: Total Real Cost for LCOE | E82: USD | G82: =INDEX(I82:V82,$E$2) -> 1300 | I82: =I75+I48 -> 1300 | J82: =J75+J48 -> 1300 | K82: =K75+K48 -> 3881.72426 | L82: =L75+L48 -> 7794.720953 | M82: 4110.782757 | N82: 45002.11132 | O82: 5175.242802 | P82: 21532.37522 | Q82: 37105.54455 | R82: 120211.2801 | S82: 177578.863 | T82: 1872371.322 | U82: 59737.0014 | V82: 265889.8572
C83: Production | E83: kWh | G83: =INDEX(I83:V83,$E$2) -> 0 | I83: =I78 -> 0 | J83: =J78 -> 297840 | K83: =K78 -> 297840 | L83: =L78 -> 297840 | M83: 0 | N83: 2211700 | O83: 254345.5 | P83: 1204500 | Q83: 985500 | R83: 2321400 | S83: 1971000 | T83: 30484800 | U83: 1314000 | V83: 1708200
C85: Levelised Cost - Real | E85: USD/kWh | G85: =INDEX(I85:V85,$E$2) ->  | I85: =I82/I83 ->  | J85: =J82/J83 -> 0.004364759602 | K85: 0.01303291788 | L85: 0.02617083318 | N85: 0.02034729453 | O85: 0.02034729453 | P85: 0.01787660873 | Q85: 0.03765149118 | R85: 0.05178395798 | S85: 0.09009582093 | T85: 0.06141983291 | U85: 0.04546194932 | V85: 0.1556549919
C86: Levelised Cost - Real | E86: USD/MWH | G86: =INDEX(I86:V86,$E$2) ->  | I86: =I82/I83*1000 ->  | J86: =J82/J83*1000 -> 4.364759602 | K86: =K82/K83*1000 -> 13.03291788 | L86: =L82/L83*1000 -> 26.17083318 | N86: 20.34729453 | O86: 20.34729453 | P86: 17.87660873 | Q86: 37.65149118 | R86: 51.78395798 | S86: 90.09582093 | T86: 61.41983291 | U86: 45.46194932 | V86: 155.6549919
C88: Apply Real | E88: Flag | G88: =INDEX(I88:V88,E2) -> FALSE | I88: FALSE | J88: TRUE | K88: TRUE | L88: TRUE | M88: TRUE | N88: TRUE | O88: TRUE | P88: TRUE | Q88: TRUE | R88: TRUE | S88: TRUE | T88: TRUE | U88: TRUE | V88: TRUE
C90: Lazard | E90: USD/MWH | G90: =INDEX(I90:V90,$E$2) -> 30 | I90: =Lazard!K17 -> 30 | J90: =I90 -> 30 | K90: =J90 -> 30 | L90: =I90 -> 30 | P90: =Lazard!S17 -> 26 | R90: =Lazard!V17 -> 100 | T90: =Lazard!Z17 -> 204

Sheet Financial Model Proof
A2: Simple Financial Model to Prove LCOE | F2: ='Drivers and LCOE'!G3 -> Solar - Lazard No Inflation No Tax
J3: 0 | K3: 1 | L3: 2 | M3: 3 | N3: 4 | O3: 5 | P3: 6 | Q3: 7 | R3: 8 | S3: 9 | T3: 10 | U3: 11 | V3: 12 | W3: 13 | X3: 14 | Y3: 15 | Z3: 16 | AA3: 17 | AB3: 18 | AC3: 19 | AD3: 20 | AE3: 21 | AF3: 22 | AG3: 23 | AH3: 24 | AI3: 25 | AJ3: 26 | AK3: 27 | AL3: 28 | AM3: 29 | AN3: 30 | AO3: 31 | AP3: 32 | AQ3: 33 | AR3: 34 | AS3: 35 | AT3: 36 | AU3: 37 | AV3: 38 | AW3: 39 | AX3: 40 | AY3: 41 | AZ3: 42 | BA3: 43 | BB3: 44 | BC3: 45 | BD3: 46 | BE3: 47 | BF3: 48 | BG3: 49 | BH3: 50 | BI3: 51 | BJ3: 52 | BK3: 53 | BL3: 54 | BM3: 55 | BN3: 56 | BO3: 57 | BP3: 58 | BQ3: 59 | BR3: 60 | BS3: 61 | BT3: 62 | BU3: 63 | BV3: 64 | BW3: 65 | BX3: 66 | BY3: 67 | BZ3: 68 | CA3: 69 | CB3: 70 | CC3: 71 | CD3: 72 | CE3: 73 | CF3: 74 | CG3: 75 | CH3: 76 | CI3: 77 | CJ3: 78 | CK3: 79 | CL3: 80 | CM3: 81 | CN3: 82 | CO3: 83 | CP3: 84 | CQ3: 85 | CR3: 86 | CS3: 87 | CT3: 88 | CU3: 89 | CV3: 90 | CW3: 91 | CX3: 92 | CY3: 93 | CZ3: 94 | DA3: 95 | DB3: 96 | DC3: 97 | DD3: 98 | DE3: 99 | DF3: 100 | DG3: 101 | DH3: 102 | DI3: 103 | DJ3: 104 | DK3: 105 | DL3: 106 | DM3: 107 | DN3: 108 | DO3: 109 | DP3: 110 | DQ3: 111 | DR3: 112 | DS3: 113 | DT3: 114 | DU3: 115 | DV3: 116 | DW3: 117 | DX3: 118 | DY3: 119 | DZ3: 120
D4: Construction | E4: Flag | F4: Zero --> | G4: 0 | J4: =J3=$G$4 -> TRUE | K4: =K3=$G$4 -> FALSE | L4: FALSE | M4: FALSE | N4: FALSE | O4: FALSE | P4: FALSE | Q4: FALSE | R4: FALSE | S4: FALSE | T4: FALSE | U4: FALSE | V4: FALSE | W4: FALSE | X4: FALSE | Y4: FALSE | Z4: FALSE | AA4: FALSE | AB4: FALSE | AC4: FALSE | AD4: FALSE | AE4: FALSE | AF4: FALSE | AG4: FALSE | AH4: FALSE | AI4: FALSE | AJ4: FALSE | AK4: FALSE | AL4: FALSE | AM4: FALSE | AN4: FALSE | AO4: FALSE | AP4: FALSE | AQ4: FALSE | AR4: FALSE | AS4: FALSE | AT4: FALSE | AU4: FALSE | AV4: FALSE | AW4: FALSE | AX4: FALSE | AY4: FALSE | AZ4: FALSE | BA4: FALSE | BB4: FALSE | BC4: FALSE | BD4: FALSE | BE4: FALSE | BF4: FALSE | BG4: FALSE | BH4: FALSE | BI4: FALSE | BJ4: FALSE | BK4: FALSE | BL4: FALSE | BM4: FALSE | BN4: FALSE | BO4: FALSE | BP4: FALSE | BQ4: FALSE | BR4: FALSE | BS4: FALSE | BT4: FALSE | BU4: FALSE | BV4: FALSE | BW4: =BW3=$G$4 -> FALSE | BX4: FALSE | BY4: FALSE | BZ4: FALSE | CA4: FALSE | CB4: FALSE | CC4: FALSE | CD4: FALSE | CE4: FALSE | CF4: FALSE | CG4: FALSE | CH4: FALSE | CI4: FALSE | CJ4: FALSE | CK4: FALSE | CL4: FALSE | CM4: FALSE | CN4: FALSE | CO4: FALSE | CP4: FALSE | CQ4: FALSE | CR4: FALSE | CS4: FALSE | CT4: FALSE | CU4: FALSE | CV4: FALSE | CW4: FALSE | CX4: FALSE | CY4: FALSE | CZ4: FALSE | DA4: FALSE | DB4: FALSE | DC4: FALSE | DD4: FALSE | DE4: FALSE | DF4: FALSE | DG4: FALSE | DH4: FALSE | DI4: FALSE | DJ4: FALSE | DK4: FALSE | DL4: FALSE | DM4: FALSE | DN4: FALSE | DO4: FALSE | DP4: FALSE | DQ4: FALSE | DR4: FALSE | DS4: FALSE | DT4: FALSE | DU4: FALSE | DV4: FALSE | DW4: FALSE | DX4: FALSE | DY4: FALSE | DZ4: FALSE
D5: Operating Flag | E5: Flag | F5: Life --> | G5: ='Drivers and LCOE'!G23 -> 30 | J5: =AND(NOT(J4),J3<=$G$5) -> FALSE | K5: =AND(NOT(K4),K3<=$G$5) -> TRUE | L5: TRUE | M5: TRUE | N5: TRUE | O5: TRUE | P5: TRUE | Q5: TRUE | R5: TRUE | S5: TRUE | T5: TRUE | U5: TRUE | V5: TRUE | W5: TRUE | X5: TRUE | Y5: TRUE | Z5: TRUE | AA5: TRUE | AB5: TRUE | AC5: TRUE | AD5: TRUE | AE5: TRUE | AF5: TRUE | AG5: TRUE | AH5: TRUE | AI5: TRUE | AJ5: TRUE | AK5: TRUE | AL5: TRUE | AM5: TRUE | AN5: TRUE | AO5: FALSE | AP5: FALSE | AQ5: FALSE | AR5: FALSE | AS5: FALSE | AT5: FALSE | AU5: FALSE | AV5: FALSE | AW5: FALSE | AX5: FALSE | AY5: FALSE | AZ5: FALSE | BA5: FALSE | BB5: FALSE | BC5: FALSE | BD5: FALSE | BE5: FALSE | BF5: FALSE | BG5: FALSE | BH5: FALSE | BI5: FALSE | BJ5: FALSE | BK5: FALSE | BL5: FALSE | BM5: FALSE | BN5: FALSE | BO5: FALSE | BP5: FALSE | BQ5: FALSE | BR5: FALSE | BS5: FALSE | BT5: FALSE | BU5: FALSE | BV5: FALSE | BW5: =AND(NOT(BW4),BW3<=$G$5) -> FALSE | BX5: FALSE | BY5: FALSE | BZ5: FALSE | CA5: FALSE | CB5: FALSE | CC5: FALSE | CD5: FALSE | CE5: FALSE | CF5: FALSE | CG5: FALSE | CH5: FALSE | CI5: FALSE | CJ5: FALSE | CK5: FALSE | CL5: FALSE | CM5: FALSE | CN5: FALSE | CO5: FALSE | CP5: FALSE | CQ5: FALSE | CR5: FALSE | CS5: FALSE | CT5: FALSE | CU5: FALSE | CV5: FALSE | CW5: FALSE | CX5: FALSE | CY5: FALSE | CZ5: FALSE | DA5: FALSE | DB5: FALSE | DC5: FALSE | DD5: FALSE | DE5: FALSE | DF5: FALSE | DG5: FALSE | DH5: FALSE | DI5: FALSE | DJ5: FALSE | DK5: FALSE | DL5: FALSE | DM5: FALSE | DN5: FALSE | DO5: FALSE | DP5: FALSE | DQ5: FALSE | DR5: FALSE | DS5: FALSE | DT5: FALSE | DU5: FALSE | DV5: FALSE | DW5: FALSE | DX5: FALSE | DY5: FALSE | DZ5: FALSE
D7: Capacity | E7: kW | F7: Capacity --> | G7: ='Drivers and LCOE'!G7 -> 0 | J7: =$G$7*J5 -> 0 | K7: =$G$7*K5 -> 0 | L7: 0 | M7: 0 | N7: 0 | O7: 0 | P7: 0 | Q7: 0 | R7: 0 | S7: 0 | T7: 0 | U7: 0 | V7: 0 | W7: 0 | X7: 0 | Y7: 0 | Z7: 0 | AA7: 0 | AB7: 0 | AC7: 0 | AD7: 0 | AE7: 0 | AF7: 0 | AG7: 0 | AH7: 0 | AI7: 0 | AJ7: 0 | AK7: 0 | AL7: 0 | AM7: 0 | AN7: 0 | AO7: 0 | AP7: 0 | AQ7: 0 | AR7: 0 | AS7: 0 | AT7: 0 | AU7: 0 | AV7: 0 | AW7: 0 | AX7: 0 | AY7: 0 | AZ7: 0 | BA7: 0 | BB7: 0 | BC7: 0 | BD7: 0 | BE7: 0 | BF7: 0 | BG7: 0 | BH7: 0 | BI7: 0 | BJ7: 0 | BK7: 0 | BL7: 0 | BM7: 0 | BN7: 0 | BO7: 0 | BP7: 0 | BQ7: 0 | BR7: 0 | BS7: 0 | BT7: 0 | BU7: 0 | BV7: 0 | BW7: =$G$7*BW5 -> 0 | BX7: 0 | BY7: 0 | BZ7: 0 | CA7: 0 | CB7: 0 | CC7: 0 | CD7: 0 | CE7: 0 | CF7: 0 | CG7: 0 | CH7: 0 | CI7: 0 | CJ7: 0 | CK7: 0 | CL7: 0 | CM7: 0 | CN7: 0 | CO7: 0 | CP7: 0 | CQ7: 0 | CR7: 0 | CS7: 0 | CT7: 0 | CU7: 0 | CV7: 0 | CW7: 0 | CX7: 0 | CY7: 0 | CZ7: 0 | DA7: 0 | DB7: 0 | DC7: 0 | DD7: 0 | DE7: 0 | DF7: 0 | DG7: 0 | DH7: 0 | DI7: 0 | DJ7: 0 | DK7: 0 | DL7: 0 | DM7: 0 | DN7: 0 | DO7: 0 | DP7: 0 | DQ7: 0 | DR7: 0 | DS7: 0 | DT7: 0 | DU7: 0 | DV7: 0 | DW7: 0 | DX7: 0 | DY7: 0 | DZ7: 0
D8: Generation without Degradation | E8: kWh | F8: kWh/kW-yr --> | G8: ='Drivers and LCOE'!$G$11 -> 2978.4 | J8: =$G$8*J5 -> 0 | K8: =$G$8*K5 -> 2978.4 | L8: 2978.4 | M8: 2978.4 | N8: 2978.4 | O8: 2978.4 | P8: 2978.4 | Q8: 2978.4 | R8: 2978.4 | S8: 2978.4 | T8: 2978.4 | U8: 2978.4 | V8: 2978.4 | W8: 2978.4 | X8: 2978.4 | Y8: 2978.4 | Z8: 2978.4 | AA8: 2978.4 | AB8: 2978.4 | AC8: 2978.4 | AD8: 2978.4 | AE8: 2978.4 | AF8: 2978.4 | AG8: 2978.4 | AH8: 2978.4 | AI8: 2978.4 | AJ8: 2978.4 | AK8: 2978.4 | AL8: 2978.4 | AM8: 2978.4 | AN8: 2978.4 | AO8: 0 | AP8: 0 | AQ8: 0 | AR8: 0 | AS8: 0 | AT8: 0 | AU8: 0 | AV8: 0 | AW8: 0 | AX8: 0 | AY8: 0 | AZ8: 0 | BA8: 0 | BB8: 0 | BC8: 0 | BD8: 0 | BE8: 0 | BF8: 0 | BG8: 0 | BH8: 0 | BI8: 0 | BJ8: 0 | BK8: 0 | BL8: 0 | BM8: 0 | BN8: 0 | BO8: 0 | BP8: 0 | BQ8: 0 | BR8: 0 | BS8: 0 | BT8: 0 | BU8: 0 | BV8: 0 | BW8: =$G$8*BW5 -> 0 | BX8: 0 | BY8: 0 | BZ8: 0 | CA8: 0 | CB8: 0 | CC8: 0 | CD8: 0 | CE8: 0 | CF8: 0 | CG8: 0 | CH8: 0 | CI8: 0 | CJ8: 0 | CK8: 0 | CL8: 0 | CM8: 0 | CN8: 0 | CO8: 0 | CP8: 0 | CQ8: 0 | CR8: 0 | CS8: 0 | CT8: 0 | CU8: 0 | CV8: 0 | CW8: 0 | CX8: 0 | CY8: 0 | CZ8: 0 | DA8: 0 | DB8: 0 | DC8: 0 | DD8: 0 | DE8: 0 | DF8: 0 | DG8: 0 | DH8: 0 | DI8: 0 | DJ8: 0 | DK8: 0 | DL8: 0 | DM8: 0 | DN8: 0 | DO8: 0 | DP8: 0 | DQ8: 0 | DR8: 0 | DS8: 0 | DT8: 0 | DU8: 0 | DV8: 0 | DW8: 0 | DX8: 0 | DY8: 0 | DZ8: 0
D9: Degradation Index | E9: Index | F9: Deg Rate | G9: ='Drivers and LCOE'!G14 -> 0 | J9: 1 | K9: =J9*(1-$G$9) -> 1 | L9: =K9*(1-$G$9) -> 1 | M9: 1 | N9: 1 | O9: 1 | P9: 1 | Q9: 1 | R9: 1 | S9: 1 | T9: 1 | U9: 1 | V9: 1 | W9: 1 | X9: 1 | Y9: 1 | Z9: 1 | AA9: 1 | AB9: 1 | AC9: 1 | AD9: 1 | AE9: 1 | AF9: 1 | AG9: 1 | AH9: 1 | AI9: 1 | AJ9: 1 | AK9: 1 | AL9: 1 | AM9: 1 | AN9: 1 | AO9: 1 | AP9: 1 | AQ9: 1 | AR9: 1 | AS9: 1 | AT9: 1 | AU9: 1 | AV9: 1 | AW9: 1 | AX9: 1 | AY9: 1 | AZ9: 1 | BA9: 1 | BB9: 1 | BC9: 1 | BD9: 1 | BE9: 1 | BF9: 1 | BG9: 1 | BH9: 1 | BI9: 1 | BJ9: 1 | BK9: 1 | BL9: 1 | BM9: 1 | BN9: 1 | BO9: 1 | BP9: 1 | BQ9: 1 | BR9: 1 | BS9: 1 | BT9: 1 | BU9: 1 | BV9: 1 | BW9: 1 | BX9: =BW9*(1-$G$9) -> 1 | BY9: 1 | BZ9: 1 | CA9: 1 | CB9: 1 | CC9: 1 | CD9: 1 | CE9: 1 | CF9: 1 | CG9: 1 | CH9: 1 | CI9: 1 | CJ9: 1 | CK9: 1 | CL9: 1 | CM9: 1 | CN9: 1 | CO9: 1 | CP9: 1 | CQ9: 1 | CR9: 1 | CS9: 1 | CT9: 1 | CU9: 1 | CV9: 1 | CW9: 1 | CX9: 1 | CY9: 1 | CZ9: 1 | DA9: 1 | DB9: 1 | DC9: 1 | DD9: 1 | DE9: 1 | DF9: 1 | DG9: 1 | DH9: 1 | DI9: 1 | DJ9: 1 | DK9: 1 | DL9: 1 | DM9: 1 | DN9: 1 | DO9: 1 | DP9: 1 | DQ9: 1 | DR9: 1 | DS9: 1 | DT9: 1 | DU9: 1 | DV9: 1 | DW9: 1 | DX9: 1 | DY9: 1 | DZ9: 1
D10: Generation with Degradation | E10: kWh
D12: Apply Real | E12: Flag | F12: Input --> | G12: TRUE | J12: =$G$12 -> TRUE | K12: =$G$12 -> TRUE | L12: TRUE | M12: TRUE | N12: TRUE | O12: TRUE | P12: TRUE | Q12: TRUE | R12: TRUE | S12: TRUE | T12: TRUE | U12: TRUE | V12: TRUE | W12: TRUE | X12: TRUE | Y12: TRUE | Z12: TRUE | AA12: TRUE | AB12: TRUE | AC12: TRUE | AD12: TRUE | AE12: TRUE | AF12: TRUE | AG12: TRUE | AH12: TRUE | AI12: TRUE | AJ12: TRUE | AK12: TRUE | AL12: TRUE | AM12: TRUE | AN12: TRUE | AO12: TRUE | AP12: TRUE | AQ12: TRUE | AR12: TRUE | AS12: TRUE | AT12: TRUE | AU12: TRUE | AV12: TRUE | AW12: TRUE | AX12: TRUE | AY12: TRUE | AZ12: TRUE | BA12: TRUE | BB12: TRUE | BC12: TRUE | BD12: TRUE | BE12: TRUE | BF12: TRUE | BG12: TRUE | BH12: TRUE | BI12: TRUE | BJ12: TRUE | BK12: TRUE | BL12: TRUE | BM12: TRUE | BN12: TRUE | BO12: TRUE | BP12: TRUE | BQ12: TRUE | BR12: TRUE | BS12: TRUE | BT12: TRUE | BU12: TRUE | BV12: TRUE | BW12: =$G$12 -> TRUE | BX12: TRUE | BY12: TRUE | BZ12: TRUE | CA12: TRUE | CB12: TRUE | CC12: TRUE | CD12: TRUE | CE12: TRUE | CF12: TRUE | CG12: TRUE | CH12: TRUE | CI12: TRUE | CJ12: TRUE | CK12: TRUE | CL12: TRUE | CM12: TRUE | CN12: TRUE | CO12: TRUE | CP12: TRUE | CQ12: TRUE | CR12: TRUE | CS12: TRUE | CT12: TRUE | CU12: TRUE | CV12: TRUE | CW12: TRUE | CX12: TRUE | CY12: TRUE | CZ12: TRUE | DA12: TRUE | DB12: TRUE | DC12: TRUE | DD12: TRUE | DE12: TRUE | DF12: TRUE | DG12: TRUE | DH12: TRUE | DI12: TRUE | DJ12: TRUE | DK12: TRUE | DL12: TRUE | DM12: TRUE | DN12: TRUE | DO12: TRUE | DP12: TRUE | DQ12: TRUE | DR12: TRUE | DS12: TRUE | DT12: TRUE | DU12: TRUE | DV12: TRUE | DW12: TRUE | DX12: TRUE | DY12: TRUE | DZ12: TRUE
D13: Inflation Index | E13: Index | F13: Inf Rate --> | G13: ='Drivers and LCOE'!G42 -> 0 | J13: 1 | K13: =J13*(1+$G$13*K12) -> 1 | L13: =K13*(1+$G$13*L12) -> 1 | M13: 1 | N13: 1 | O13: 1 | P13: 1 | Q13: 1 | R13: 1 | S13: 1 | T13: 1 | U13: 1 | V13: 1 | W13: 1 | X13: 1 | Y13: 1 | Z13: 1 | AA13: 1 | AB13: 1 | AC13: 1 | AD13: 1 | AE13: 1 | AF13: 1 | AG13: 1 | AH13: 1 | AI13: 1 | AJ13: 1 | AK13: 1 | AL13: 1 | AM13: 1 | AN13: 1 | AO13: 1 | AP13: 1 | AQ13: 1 | AR13: 1 | AS13: 1 | AT13: 1 | AU13: 1 | AV13: 1 | AW13: 1 | AX13: 1 | AY13: 1 | AZ13: 1 | BA13: 1 | BB13: 1 | BC13: 1 | BD13: 1 | BE13: 1 | BF13: 1 | BG13: 1 | BH13: 1 | BI13: 1 | BJ13: 1 | BK13: 1 | BL13: 1 | BM13: 1 | BN13: 1 | BO13: 1 | BP13: 1 | BQ13: 1 | BR13: 1 | BS13: 1 | BT13: 1 | BU13: 1 | BV13: 1 | BW13: 1 | BX13: =BW13*(1+$G$13*BX12) -> 1 | BY13: 1 | BZ13: 1 | CA13: 1 | CB13: 1 | CC13: 1 | CD13: 1 | CE13: 1 | CF13: 1 | CG13: 1 | CH13: 1 | CI13: 1 | CJ13: 1 | CK13: 1 | CL13: 1 | CM13: 1 | CN13: 1 | CO13: 1 | CP13: 1 | CQ13: 1 | CR13: 1 | CS13: 1 | CT13: 1 | CU13: 1 | CV13: 1 | CW13: 1 | CX13: 1 | CY13: 1 | CZ13: 1 | DA13: 1 | DB13: 1 | DC13: 1 | DD13: 1 | DE13: 1 | DF13: 1 | DG13: 1 | DH13: 1 | DI13: 1 | DJ13: 1 | DK13: 1 | DL13: 1 | DM13: 1 | DN13: 1 | DO13: 1 | DP13: 1 | DQ13: 1 | DR13: 1 | DS13: 1 | DT13: 1 | DU13: 1 | DV13: 1 | DW13: 1 | DX13: 1 | DY13: 1 | DZ13: 1
D15: LCOE - Nominal | E15: USD/kWh | F15: Nominal --> | J15: =$G$15 -> 0 | K15: =$G$15 -> 0 | L15: 0 | M15: 0 | N15: 0 | O15: 0 | P15: 0 | Q15: 0 | R15: 0 | S15: 0 | T15: 0 | U15: 0 | V15: 0 | W15: 0 | X15: 0 | Y15: 0 | Z15: 0 | AA15: 0 | AB15: 0 | AC15: 0 | AD15: 0 | AE15: 0 | AF15: 0 | AG15: 0 | AH15: 0 | AI15: 0 | AJ15: 0 | AK15: 0 | AL15: 0 | AM15: 0 | AN15: 0 | AO15: 0 | AP15: 0 | AQ15: 0 | AR15: 0 | AS15: 0 | AT15: 0 | AU15: 0 | AV15: 0 | AW15: 0 | AX15: 0 | AY15: 0 | AZ15: 0 | BA15: 0 | BB15: 0 | BC15: 0 | BD15: 0 | BE15: 0 | BF15: 0 | BG15: 0 | BH15: 0 | BI15: 0 | BJ15: 0 | BK15: 0 | BL15: 0 | BM15: 0 | BN15: 0 | BO15: 0 | BP15: 0 | BQ15: 0 | BR15: 0 | BS15: 0 | BT15: 0 | BU15: 0 | BV15: 0 | BW15: =$G$15 -> 0 | BX15: 0 | BY15: 0 | BZ15: 0 | CA15: 0 | CB15: 0 | CC15: 0 | CD15: 0 | CE15: 0 | CF15: 0 | CG15: 0 | CH15: 0 | CI15: 0 | CJ15: 0 | CK15: 0 | CL15: 0 | CM15: 0 | CN15: 0 | CO15: 0 | CP15: 0 | CQ15: 0 | CR15: 0 | CS15: 0 | CT15: 0 | CU15: 0 | CV15: 0 | CW15: 0 | CX15: 0 | CY15: 0 | CZ15: 0 | DA15: 0 | DB15: 0 | DC15: 0 | DD15: 0 | DE15: 0 | DF15: 0 | DG15: 0 | DH15: 0 | DI15: 0 | DJ15: 0 | DK15: 0 | DL15: 0 | DM15: 0 | DN15: 0 | DO15: 0 | DP15: 0 | DQ15: 0 | DR15: 0 | DS15: 0 | DT15: 0 | DU15: 0 | DV15: 0 | DW15: 0 | DX15: 0 | DY15: 0 | DZ15: 0
D16: LCOE - Real | E16: USD/kWh | F16: Real --> | G16: ='Drivers and LCOE'!G85 ->  | J16: =$G$16*J13 ->  | K16: =$G$16*K13 ->  | BW16: =$G$16*BW13 -> 
D17: Apply Real | E17: USD/kWh | F17: Flag --> | G17: ='Drivers and LCOE'!G88 -> FALSE | J17: =IF($G$17,J16,J15) -> 0 | K17: =IF($G$17,K16,K15) -> 0 | L17: 0 | M17: 0 | N17: 0 | O17: 0 | P17: 0 | Q17: 0 | R17: 0 | S17: 0 | T17: 0 | U17: 0 | V17: 0 | W17: 0 | X17: 0 | Y17: 0 | Z17: 0 | AA17: 0 | AB17: 0 | AC17: 0 | AD17: 0 | AE17: 0 | AF17: 0 | AG17: 0 | AH17: 0 | AI17: 0 | AJ17: 0 | AK17: 0 | AL17: 0 | AM17: 0 | AN17: 0 | AO17: 0 | AP17: 0 | AQ17: 0 | AR17: 0 | AS17: 0 | AT17: 0 | AU17: 0 | AV17: 0 | AW17: 0 | AX17: 0 | AY17: 0 | AZ17: 0 | BA17: 0 | BB17: 0 | BC17: 0 | BD17: 0 | BE17: 0 | BF17: 0 | BG17: 0 | BH17: 0 | BI17: 0 | BJ17: 0 | BK17: 0 | BL17: 0 | BM17: 0 | BN17: 0 | BO17: 0 | BP17: 0 | BQ17: 0 | BR17: 0 | BS17: 0 | BT17: 0 | BU17: 0 | BV17: 0 | BW17: =IF($G$17,BW16,BW15) -> 0 | BX17: 0 | BY17: 0 | BZ17: 0 | CA17: 0 | CB17: 0 | CC17: 0 | CD17: 0 | CE17: 0 | CF17: 0 | CG17: 0 | CH17: 0 | CI17: 0 | CJ17: 0 | CK17: 0 | CL17: 0 | CM17: 0 | CN17: 0 | CO17: 0 | CP17: 0 | CQ17: 0 | CR17: 0 | CS17: 0 | CT17: 0 | CU17: 0 | CV17: 0 | CW17: 0 | CX17: 0 | CY17: 0 | CZ17: 0 | DA17: 0 | DB17: 0 | DC17: 0 | DD17: 0 | DE17: 0 | DF17: 0 | DG17: 0 | DH17: 0 | DI17: 0 | DJ17: 0 | DK17: 0 | DL17: 0 | DM17: 0 | DN17: 0 | DO17: 0 | DP17: 0 | DQ17: 0 | DR17: 0 | DS17: 0 | DT17: 0 | DU17: 0 | DV17: 0 | DW17: 0 | DX17: 0 | DY17: 0 | DZ17: 0
D19: Revenues | E19: USD | J19: =J17*J10 -> 0 | K19: =K17*K10 -> 0 | L19: 0 | M19: 0 | N19: 0 | O19: 0 | P19: 0 | Q19: 0 | R19: 0 | S19: 0 | T19: 0 | U19: 0 | V19: 0 | W19: 0 | X19: 0 | Y19: 0 | Z19: 0 | AA19: 0 | AB19: 0 | AC19: 0 | AD19: 0 | AE19: 0 | AF19: 0 | AG19: 0 | AH19: 0 | AI19: 0 | AJ19: 0 | AK19: 0 | AL19: 0 | AM19: 0 | AN19: 0 | AO19: 0 | AP19: 0 | AQ19: 0 | AR19: 0 | AS19: 0 | AT19: 0 | AU19: 0 | AV19: 0 | AW19: 0 | AX19: 0 | AY19: 0 | AZ19: 0 | BA19: 0 | BB19: 0 | BC19: 0 | BD19: 0 | BE19: 0 | BF19: 0 | BG19: 0 | BH19: 0 | BI19: 0 | BJ19: 0 | BK19: 0 | BL19: 0 | BM19: 0 | BN19: 0 | BO19: 0 | BP19: 0 | BQ19: 0 | BR19: 0 | BS19: 0 | BT19: 0 | BU19: 0 | BV19: 0 | BW19: =BW17*BW10 -> 0 | BX19: 0 | BY19: 0 | BZ19: 0 | CA19: 0 | CB19: 0 | CC19: 0 | CD19: 0 | CE19: 0 | CF19: 0 | CG19: 0 | CH19: 0 | CI19: 0 | CJ19: 0 | CK19: 0 | CL19: 0 | CM19: 0 | CN19: 0 | CO19: 0 | CP19: 0 | CQ19: 0 | CR19: 0 | CS19: 0 | CT19: 0 | CU19: 0 | CV19: 0 | CW19: 0 | CX19: 0 | CY19: 0 | CZ19: 0 | DA19: 0 | DB19: 0 | DC19: 0 | DD19: 0 | DE19: 0 | DF19: 0 | DG19: 0 | DH19: 0 | DI19: 0 | DJ19: 0 | DK19: 0 | DL19: 0 | DM19: 0 | DN19: 0 | DO19: 0 | DP19: 0 | DQ19: 0 | DR19: 0 | DS19: 0 | DT19: 0 | DU19: 0 | DV19: 0 | DW19: 0 | DX19: 0 | DY19: 0 | DZ19: 0
D20: O&M | E20: USD | F20: USD/yr --> | G20: ='Drivers and LCOE'!G37 -> 1300 | J20: =$G$20*J13*J5 -> 0 | K20: =$G$20*K13*K5 -> 1300 | L20: 1300 | M20: 1300 | N20: 1300 | O20: 1300 | P20: 1300 | Q20: 1300 | R20: 1300 | S20: 1300 | T20: 1300 | U20: 1300 | V20: 1300 | W20: 1300 | X20: 1300 | Y20: 1300 | Z20: 1300 | AA20: 1300 | AB20: 1300 | AC20: 1300 | AD20: 1300 | AE20: 1300 | AF20: 1300 | AG20: 1300 | AH20: 1300 | AI20: 1300 | AJ20: 1300 | AK20: 1300 | AL20: 1300 | AM20: 1300 | AN20: 1300 | AO20: 0 | AP20: 0 | AQ20: 0 | AR20: 0 | AS20: 0 | AT20: 0 | AU20: 0 | AV20: 0 | AW20: 0 | AX20: 0 | AY20: 0 | AZ20: 0 | BA20: 0 | BB20: 0 | BC20: 0 | BD20: 0 | BE20: 0 | BF20: 0 | BG20: 0 | BH20: 0 | BI20: 0 | BJ20: 0 | BK20: 0 | BL20: 0 | BM20: 0 | BN20: 0 | BO20: 0 | BP20: 0 | BQ20: 0 | BR20: 0 | BS20: 0 | BT20: 0 | BU20: 0 | BV20: 0 | BW20: =$G$20*BW13*BW5 -> 0 | BX20: 0 | BY20: 0 | BZ20: 0 | CA20: 0 | CB20: 0 | CC20: 0 | CD20: 0 | CE20: 0 | CF20: 0 | CG20: 0 | CH20: 0 | CI20: 0 | CJ20: 0 | CK20: 0 | CL20: 0 | CM20: 0 | CN20: 0 | CO20: 0 | CP20: 0 | CQ20: 0 | CR20: 0 | CS20: 0 | CT20: 0 | CU20: 0 | CV20: 0 | CW20: 0 | CX20: 0 | CY20: 0 | CZ20: 0 | DA20: 0 | DB20: 0 | DC20: 0 | DD20: 0 | DE20: 0 | DF20: 0 | DG20: 0 | DH20: 0 | DI20: 0 | DJ20: 0 | DK20: 0 | DL20: 0 | DM20: 0 | DN20: 0 | DO20: 0 | DP20: 0 | DQ20: 0 | DR20: 0 | DS20: 0 | DT20: 0 | DU20: 0 | DV20: 0 | DW20: 0 | DX20: 0 | DY20: 0 | DZ20: 0
D21: EBITDA | E21: USD
D23: Capital Expenditues | E23: USD | F23: USD --> | G23: ='Drivers and LCOE'!G21 -> 0
D25: Cash Flow | E25: USD | J25: =J21-J23 -> 0 | K25: =K21-K23 -> 0 | L25: 0 | M25: 0 | N25: 0 | O25: 0 | P25: 0 | Q25: 0 | R25: 0 | S25: 0 | T25: 0 | U25: 0 | V25: 0 | W25: 0 | X25: 0 | Y25: 0 | Z25: 0 | AA25: 0 | AB25: 0 | AC25: 0 | AD25: 0 | AE25: 0 | AF25: 0 | AG25: 0 | AH25: 0 | AI25: 0 | AJ25: 0 | AK25: 0 | AL25: 0 | AM25: 0 | AN25: 0 | AO25: 0 | AP25: 0 | AQ25: 0 | AR25: 0 | AS25: 0 | AT25: 0 | AU25: 0 | AV25: 0 | AW25: 0 | AX25: 0 | AY25: 0 | AZ25: 0 | BA25: 0 | BB25: 0 | BC25: 0 | BD25: 0 | BE25: 0 | BF25: 0 | BG25: 0 | BH25: 0 | BI25: 0 | BJ25: 0 | BK25: 0 | BL25: 0 | BM25: 0 | BN25: 0 | BO25: 0 | BP25: 0 | BQ25: 0 | BR25: 0 | BS25: 0 | BT25: 0 | BU25: 0 | BV25: 0 | BW25: =BW21-BW23 -> 0 | BX25: 0 | BY25: 0 | BZ25: 0 | CA25: 0 | CB25: 0 | CC25: 0 | CD25: 0 | CE25: 0 | CF25: 0 | CG25: 0 | CH25: 0 | CI25: 0 | CJ25: 0 | CK25: 0 | CL25: 0 | CM25: 0 | CN25: 0 | CO25: 0 | CP25: 0 | CQ25: 0 | CR25: 0 | CS25: 0 | CT25: 0 | CU25: 0 | CV25: 0 | CW25: 0 | CX25: 0 | CY25: 0 | CZ25: 0 | DA25: 0 | DB25: 0 | DC25: 0 | DD25: 0 | DE25: 0 | DF25: 0 | DG25: 0 | DH25: 0 | DI25: 0 | DJ25: 0 | DK25: 0 | DL25: 0 | DM25: 0 | DN25: 0 | DO25: 0 | DP25: 0 | DQ25: 0 | DR25: 0 | DS25: 0 | DT25: 0 | DU25: 0 | DV25: 0 | DW25: 0 | DX25: 0 | DY25: 0 | DZ25: 0
D26: IRR - PROOF OF LCOE FORMULAS | E26: %
D28: Depreciation Life Flag | E28: Flag | F28: Tax Life --> | G28: ='Drivers and LCOE'!G62 -> 5 | J28: =AND(J5,J3<=$G$28) -> FALSE | K28: =AND(K5,K3<=$G$28) -> TRUE | L28: TRUE | M28: TRUE | N28: TRUE | O28: TRUE | P28: FALSE | Q28: FALSE | R28: FALSE | S28: FALSE | T28: FALSE | U28: FALSE | V28: FALSE | W28: FALSE | X28: FALSE | Y28: FALSE | Z28: FALSE | AA28: FALSE | AB28: FALSE | AC28: FALSE | AD28: FALSE | AE28: FALSE | AF28: FALSE | AG28: FALSE | AH28: FALSE | AI28: FALSE | AJ28: FALSE | AK28: FALSE | AL28: FALSE | AM28: FALSE | AN28: FALSE | AO28: FALSE | AP28: FALSE | AQ28: FALSE | AR28: FALSE | AS28: FALSE | AT28: FALSE | AU28: FALSE | AV28: FALSE | AW28: FALSE | AX28: FALSE | AY28: FALSE | AZ28: FALSE | BA28: FALSE | BB28: FALSE | BC28: FALSE | BD28: FALSE | BE28: FALSE | BF28: FALSE | BG28: FALSE | BH28: FALSE | BI28: FALSE | BJ28: FALSE | BK28: FALSE | BL28: FALSE | BM28: FALSE | BN28: FALSE | BO28: FALSE | BP28: FALSE | BQ28: FALSE | BR28: FALSE | BS28: FALSE | BT28: FALSE | BU28: FALSE | BV28: FALSE | BW28: =AND(BW5,BW3<=$G$28) -> FALSE | BX28: FALSE | BY28: FALSE | BZ28: FALSE | CA28: FALSE | CB28: FALSE | CC28: FALSE | CD28: FALSE | CE28: FALSE | CF28: FALSE | CG28: FALSE | CH28: FALSE | CI28: FALSE | CJ28: FALSE | CK28: FALSE | CL28: FALSE | CM28: FALSE | CN28: FALSE | CO28: FALSE | CP28: FALSE | CQ28: FALSE | CR28: FALSE | CS28: FALSE | CT28: FALSE | CU28: FALSE | CV28: FALSE | CW28: FALSE | CX28: FALSE | CY28: FALSE | CZ28: FALSE | DA28: FALSE | DB28: FALSE | DC28: FALSE | DD28: FALSE | DE28: FALSE | DF28: FALSE | DG28: FALSE | DH28: FALSE | DI28: FALSE | DJ28: FALSE | DK28: FALSE | DL28: FALSE | DM28: FALSE | DN28: FALSE | DO28: FALSE | DP28: FALSE | DQ28: FALSE | DR28: FALSE | DS28: FALSE | DT28: FALSE | DU28: FALSE | DV28: FALSE | DW28: FALSE | DX28: FALSE | DY28: FALSE | DZ28: FALSE
D29: Depreciation Rate | E29: % | F29: Rate --> | G29: =1/G28 -> 0.2 | J29: =$G$29*J28 -> 0 | K29: =$G$29*K28 -> 0.2 | L29: 0.2 | M29: 0.2 | N29: 0.2 | O29: 0.2 | P29: 0 | Q29: 0 | R29: 0 | S29: 0 | T29: 0 | U29: 0 | V29: 0 | W29: 0 | X29: 0 | Y29: 0 | Z29: 0 | AA29: 0 | AB29: 0 | AC29: 0 | AD29: 0 | AE29: 0 | AF29: 0 | AG29: 0 | AH29: 0 | AI29: 0 | AJ29: 0 | AK29: 0 | AL29: 0 | AM29: 0 | AN29: 0 | AO29: 0 | AP29: 0 | AQ29: 0 | AR29: 0 | AS29: 0 | AT29: 0 | AU29: 0 | AV29: 0 | AW29: 0 | AX29: 0 | AY29: 0 | AZ29: 0 | BA29: 0 | BB29: 0 | BC29: 0 | BD29: 0 | BE29: 0 | BF29: 0 | BG29: 0 | BH29: 0 | BI29: 0 | BJ29: 0 | BK29: 0 | BL29: 0 | BM29: 0 | BN29: 0 | BO29: 0 | BP29: 0 | BQ29: 0 | BR29: 0 | BS29: 0 | BT29: 0 | BU29: 0 | BV29: 0 | BW29: =$G$29*BW28 -> 0 | BX29: 0 | BY29: 0 | BZ29: 0 | CA29: 0 | CB29: 0 | CC29: 0 | CD29: 0 | CE29: 0 | CF29: 0 | CG29: 0 | CH29: 0 | CI29: 0 | CJ29: 0 | CK29: 0 | CL29: 0 | CM29: 0 | CN29: 0 | CO29: 0 | CP29: 0 | CQ29: 0 | CR29: 0 | CS29: 0 | CT29: 0 | CU29: 0 | CV29: 0 | CW29: 0 | CX29: 0 | CY29: 0 | CZ29: 0 | DA29: 0 | DB29: 0 | DC29: 0 | DD29: 0 | DE29: 0 | DF29: 0 | DG29: 0 | DH29: 0 | DI29: 0 | DJ29: 0 | DK29: 0 | DL29: 0 | DM29: 0 | DN29: 0 | DO29: 0 | DP29: 0 | DQ29: 0 | DR29: 0 | DS29: 0 | DT29: 0 | DU29: 0 | DV29: 0 | DW29: 0 | DX29: 0 | DY29: 0 | DZ29: 0
D30: Depreciation Amount | E30: USD | F30: Cap Exp --> | G30: =G23 -> 0 | J30: =$G$30*J29 -> 0 | K30: =$G$30*K29 -> 0 | L30: 0 | M30: 0 | N30: 0 | O30: 0 | P30: 0 | Q30: 0 | R30: 0 | S30: 0 | T30: 0 | U30: 0 | V30: 0 | W30: 0 | X30: 0 | Y30: 0 | Z30: 0 | AA30: 0 | AB30: 0 | AC30: 0 | AD30: 0 | AE30: 0 | AF30: 0 | AG30: 0 | AH30: 0 | AI30: 0 | AJ30: 0 | AK30: 0 | AL30: 0 | AM30: 0 | AN30: 0 | AO30: 0 | AP30: 0 | AQ30: 0 | AR30: 0 | AS30: 0 | AT30: 0 | AU30: 0 | AV30: 0 | AW30: 0 | AX30: 0 | AY30: 0 | AZ30: 0 | BA30: 0 | BB30: 0 | BC30: 0 | BD30: 0 | BE30: 0 | BF30: 0 | BG30: 0 | BH30: 0 | BI30: 0 | BJ30: 0 | BK30: 0 | BL30: 0 | BM30: 0 | BN30: 0 | BO30: 0 | BP30: 0 | BQ30: 0 | BR30: 0 | BS30: 0 | BT30: 0 | BU30: 0 | BV30: 0 | BW30: =$G$30*BW29 -> 0 | BX30: 0 | BY30: 0 | BZ30: 0 | CA30: 0 | CB30: 0 | CC30: 0 | CD30: 0 | CE30: 0 | CF30: 0 | CG30: 0 | CH30: 0 | CI30: 0 | CJ30: 0 | CK30: 0 | CL30: 0 | CM30: 0 | CN30: 0 | CO30: 0 | CP30: 0 | CQ30: 0 | CR30: 0 | CS30: 0 | CT30: 0 | CU30: 0 | CV30: 0 | CW30: 0 | CX30: 0 | CY30: 0 | CZ30: 0 | DA30: 0 | DB30: 0 | DC30: 0 | DD30: 0 | DE30: 0 | DF30: 0 | DG30: 0 | DH30: 0 | DI30: 0 | DJ30: 0 | DK30: 0 | DL30: 0 | DM30: 0 | DN30: 0 | DO30: 0 | DP30: 0 | DQ30: 0 | DR30: 0 | DS30: 0 | DT30: 0 | DU30: 0 | DV30: 0 | DW30: 0 | DX30: 0 | DY30: 0 | DZ30: 0
D32: EBIT | E32: USD | J32: =J21-J30 -> 0 | K32: =K21-K30 -> 0 | L32: 0 | M32: 0 | N32: 0 | O32: 0 | P32: 0 | Q32: 0 | R32: 0 | S32: 0 | T32: 0 | U32: 0 | V32: 0 | W32: 0 | X32: 0 | Y32: 0 | Z32: 0 | AA32: 0 | AB32: 0 | AC32: 0 | AD32: 0 | AE32: 0 | AF32: 0 | AG32: 0 | AH32: 0 | AI32: 0 | AJ32: 0 | AK32: 0 | AL32: 0 | AM32: 0 | AN32: 0 | AO32: 0 | AP32: 0 | AQ32: 0 | AR32: 0 | AS32: 0 | AT32: 0 | AU32: 0 | AV32: 0 | AW32: 0 | AX32: 0 | AY32: 0 | AZ32: 0 | BA32: 0 | BB32: 0 | BC32: 0 | BD32: 0 | BE32: 0 | BF32: 0 | BG32: 0 | BH32: 0 | BI32: 0 | BJ32: 0 | BK32: 0 | BL32: 0 | BM32: 0 | BN32: 0 | BO32: 0 | BP32: 0 | BQ32: 0 | BR32: 0 | BS32: 0 | BT32: 0 | BU32: 0 | BV32: 0 | BW32: =BW21-BW30 -> 0 | BX32: 0 | BY32: 0 | BZ32: 0 | CA32: 0 | CB32: 0 | CC32: 0 | CD32: 0 | CE32: 0 | CF32: 0 | CG32: 0 | CH32: 0 | CI32: 0 | CJ32: 0 | CK32: 0 | CL32: 0 | CM32: 0 | CN32: 0 | CO32: 0 | CP32: 0 | CQ32: 0 | CR32: 0 | CS32: 0 | CT32: 0 | CU32: 0 | CV32: 0 | CW32: 0 | CX32: 0 | CY32: 0 | CZ32: 0 | DA32: 0 | DB32: 0 | DC32: 0 | DD32: 0 | DE32: 0 | DF32: 0 | DG32: 0 | DH32: 0 | DI32: 0 | DJ32: 0 | DK32: 0 | DL32: 0 | DM32: 0 | DN32: 0 | DO32: 0 | DP32: 0 | DQ32: 0 | DR32: 0 | DS32: 0 | DT32: 0 | DU32: 0 | DV32: 0 | DW32: 0 | DX32: 0 | DY32: 0 | DZ32: 0
D34: Taxes | E34: % | F34: Tax Rate --> | G34: ='Drivers and LCOE'!G61 -> 0 | J34: =$G$34*J32 -> 0 | K34: =$G$34*K32 -> 0 | L34: =$G$34*L32 -> 0 | M34: 0 | N34: 0 | O34: 0 | P34: 0 | Q34: 0 | R34: 0 | S34: 0 | T34: 0 | U34: 0 | V34: 0 | W34: 0 | X34: 0 | Y34: 0 | Z34: 0 | AA34: 0 | AB34: 0 | AC34: 0 | AD34: 0 | AE34: 0 | AF34: 0 | AG34: 0 | AH34: 0 | AI34: 0 | AJ34: 0 | AK34: 0 | AL34: 0 | AM34: 0 | AN34: 0 | AO34: 0 | AP34: 0 | AQ34: 0 | AR34: 0 | AS34: 0 | AT34: 0 | AU34: 0 | AV34: 0 | AW34: 0 | AX34: 0 | AY34: 0 | AZ34: 0 | BA34: 0 | BB34: 0 | BC34: 0 | BD34: 0 | BE34: 0 | BF34: 0 | BG34: 0 | BH34: 0 | BI34: 0 | BJ34: 0 | BK34: 0 | BL34: 0 | BM34: 0 | BN34: 0 | BO34: 0 | BP34: 0 | BQ34: 0 | BR34: 0 | BS34: 0 | BT34: 0 | BU34: 0 | BV34: 0 | BW34: =$G$34*BW32 -> 0 | BX34: 0 | BY34: 0 | BZ34: 0 | CA34: 0 | CB34: 0 | CC34: 0 | CD34: 0 | CE34: 0 | CF34: 0 | CG34: 0 | CH34: 0 | CI34: 0 | CJ34: 0 | CK34: 0 | CL34: 0 | CM34: 0 | CN34: 0 | CO34: 0 | CP34: 0 | CQ34: 0 | CR34: 0 | CS34: 0 | CT34: 0 | CU34: 0 | CV34: 0 | CW34: 0 | CX34: 0 | CY34: 0 | CZ34: 0 | DA34: 0 | DB34: 0 | DC34: 0 | DD34: 0 | DE34: 0 | DF34: 0 | DG34: 0 | DH34: 0 | DI34: 0 | DJ34: 0 | DK34: 0 | DL34: 0 | DM34: 0 | DN34: 0 | DO34: 0 | DP34: 0 | DQ34: 0 | DR34: 0 | DS34: 0 | DT34: 0 | DU34: 0 | DV34: 0 | DW34: 0 | DX34: 0 | DY34: 0 | DZ34: 0
D36: After Tax Cash Flow | E36: USD | J36: =J25-J34 -> 0 | K36: =K25-K34 -> 0 | L36: 0 | M36: 0 | N36: 0 | O36: 0 | P36: 0 | Q36: 0 | R36: 0 | S36: 0 | T36: 0 | U36: 0 | V36: 0 | W36: 0 | X36: 0 | Y36: 0 | Z36: 0 | AA36: 0 | AB36: 0 | AC36: 0 | AD36: 0 | AE36: 0 | AF36: 0 | AG36: 0 | AH36: 0 | AI36: 0 | AJ36: 0 | AK36: 0 | AL36: 0 | AM36: 0 | AN36: 0 | AO36: 0 | AP36: 0 | AQ36: 0 | AR36: 0 | AS36: 0 | AT36: 0 | AU36: 0 | AV36: 0 | AW36: 0 | AX36: 0 | AY36: 0 | AZ36: 0 | BA36: 0 | BB36: 0 | BC36: 0 | BD36: 0 | BE36: 0 | BF36: 0 | BG36: 0 | BH36: 0 | BI36: 0 | BJ36: 0 | BK36: 0 | BL36: 0 | BM36: 0 | BN36: 0 | BO36: 0 | BP36: 0 | BQ36: 0 | BR36: 0 | BS36: 0 | BT36: 0 | BU36: 0 | BV36: 0 | BW36: =BW25-BW34 -> 0 | BX36: 0 | BY36: 0 | BZ36: 0 | CA36: 0 | CB36: 0 | CC36: 0 | CD36: 0 | CE36: 0 | CF36: 0 | CG36: 0 | CH36: 0 | CI36: 0 | CJ36: 0 | CK36: 0 | CL36: 0 | CM36: 0 | CN36: 0 | CO36: 0 | CP36: 0 | CQ36: 0 | CR36: 0 | CS36: 0 | CT36: 0 | CU36: 0 | CV36: 0 | CW36: 0 | CX36: 0 | CY36: 0 | CZ36: 0 | DA36: 0 | DB36: 0 | DC36: 0 | DD36: 0 | DE36: 0 | DF36: 0 | DG36: 0 | DH36: 0 | DI36: 0 | DJ36: 0 | DK36: 0 | DL36: 0 | DM36: 0 | DN36: 0 | DO36: 0 | DP36: 0 | DQ36: 0 | DR36: 0 | DS36: 0 | DT36: 0 | DU36: 0 | DV36: 0 | DW36: 0 | DX36: 0 | DY36: 0 | DZ36: 0
D37: IRR After Tax | E37: %
B39: Other LCOE Formulas
C40: NPV of Revenues | E40: USD | G40: ='Drivers and LCOE'!G50 -> 0.07
C41: NPV of Generation | E41: kWh | G41: ='Drivers and LCOE'!G40 -> 0.07
C42: NPV Revenues/NPV of Generation | E42: USD/kWh
C44: NPV of Revenues | E44: USD | G44: ='Drivers and LCOE'!G40 -> 0.07 | H44: =NPV(G44,K19:DZ19) -> 0
C45: NPV of Generation at real discount rate | E45: kWh | G45: ='Drivers and LCOE'!G43 -> 0.07 | H45: =NPV(G45,K10:DZ10) -> 0
C46: NPV Revenues/NPV of Generation
C48: NPV of Op Exp | E48: USD | F48: =G44 -> 0.07
C49: Add: Cap Exp | E49: USD
C50: Total Cost | E50: USD
C51: NPV of Total Cost/NPV of Generation | E51: USD/kWh

Sheet Lazard
E2: 1 | F2: 2 | G2: 3 | H2: 4 | I2: 5 | J2: 6 | K2: 7 | L2: 8 | M2: 9 | N2: 10 | O2: 11 | P2: 12 | Q2: 13 | R2: 14 | S2: 15 | T2: 16 | U2: 17 | V2: 18 | W2: 19 | X2: 20 | Y2: 21 | Z2: 22 | AA2: 23 | AB2: 24 | AC2: 25 | AD2: 26
E3: Residential Rooftop | G3: C&! Rooftop | I3: Community | K3: Utility Crystaline | M3: Utility Thin Film | O3: Solar Thermal | Q3: Geothermal | S3: Wind On-Shore | U3: Wind Offshore | W3: Gas Peaking | Y3: Nuclear | AA3: Coal | AC3: NGCC
E4: Low Case | F4: High Case | G4: Low Case | H4: High Case | I4: Low Case | J4: High Case | K4: Low Case | L4: High Case | M4: Low Case | N4: High Case | O4: Low Case | P4: High Case | Q4: Low Case | R4: High Case | S4: Low Case | T4: High Case | U4: Low Case | V4: High Case | W4: Low Case | X4: High Case | Y4: Low Case | Z4: High Case | AA4: Low Case | AB4: High Case | AC4: Low Case | AD4: High Case
D5: Net Facility Output MW | E5: 0.005 | F5: 0.005 | G5: 1 | H5: 1 | I5: 5 | J5: 5 | K5: 150 | L5: 150 | M5: 150 | N5: 150 | O5: 110 | P5: 150 | Q5: 20 | R5: 50 | S5: 175 | T5: 175 | U5: 210 | V5: 385 | W5: 240 | X5: 50 | Y5: 2200 | Z5: 2200 | AA5: 600 | AB5: 600 | AC5: 550 | AD5: 550
D6: EPC Cost /kW | E6: 2475 | F6: 2850 | G6: 1400 | H6: 2850 | I6: 1200 | J6: 1450 | K6: 950 | L6: 800 | M6: 950 | N6: 800 | O6: 7950 | P6: 5250 | Q6: 3775 | R6: 4875 | S6: 1025 | T6: 1350 | U6: 2500 | V6: 3600 | W6: 675 | X6: 875 | Y6: 6100 | Z6: 10025 | AA6: 2375 | AB6: 4925 | AC6: 650 | AD6: 1175
D7: Capital Cost During Construction /kW | E7: 0 | F7: 0 | G7: 0 | H7: 0 | I7: 0 | J7: 0 | K7: 0 | L7: 0 | M7: 0 | N7: 0 | O7: 1150 | P7: 750 | Q7: 550 | R7: 700 | S7: 0 | T7: 0 | U7: 0 | V7: 0 | W7: 25 | X7: 50 | Y7: 1675 | Z7: 2775 | AA7: 575 | AB7: 1300 | AC7: 50 | AD7: 125
D8: Total Capital Cost /kW | E8: 2475 | F8: 2850 | G8: 1400 | H8: 2850 | I8: 1200 | J8: 1450 | K8: 950 | L8: 800 | M8: 950 | N8: 800 | O8: 9090 | P8: 6000 | Q8: 4325 | R8: 5575 | S8: 1025 | T8: 1350 | U8: 2500 | V8: 3600 | W8: 700 | X8: 925 | Y8: 7800 | Z8: 12800 | AA8: 2950 | AB8: 6225 | AC8: 700 | AD8: 1300
D9: Fixed O&M /kW yr | E9: 15 | F9: 18 | G9: 11.75 | H9: 18 | I9: 12 | J9: 16 | K9: 13 | L9: 9.5 | M9: 13 | N9: 9.5 | O9: 75 | P9: 80 | Q9: 13 | R9: 13 | S9: 25.5 | T9: 36 | U9: 65.75 | V9: 79.5 | W9: 7 | X9: 21.25 | Y9: 121 | Z9: 140.5 | AA9: 36.25 | AB9: 84 | AC9: 15 | AD9: 18
D10: Variable O&M /MWh | E10: 0 | F10: 0 | G10: 0 | H10: 0 | I10: 0 | J10: 0 | K10: 0 | L10: 0 | M10: 0 | N10: 0 | O10: 0 | P10: 0 | Q10: 8 | R10: 22 | S10: 0 | T10: 0 | U10: 0 | V10: 0 | W10: 4 | X10: 5.25 | Y10: 4 | Z10: 4.5 | AA10: 2.5 | AB10: 5 | AC10: 2.75 | AD10: 5
D11: Heat Rate Btu/kWh | E11: 0 | F11: 0 | G11: 0 | H11: 0 | I11: 0 | J11: 0 | K11: 0 | L11: 0 | M11: 0 | N11: 0 | O11: 0 | P11: 0 | Q11: 0 | R11: 0 | S11: 0 | T11: 0 | U11: 0 | V11: 0 | W11: 9800 | X11: 8000 | Y11: 10450 | Z11: 10450 | AA11: 8750 | AB11: 12000 | AC11: 6150 | AD11: 6900
D12: Capacity Factor | E12: 0.18 | F12: 0.14 | G12: 0.23 | H12: 0.17 | I12: 0.21 | J12: 0.17 | K12: 0.34 | L12: 0.21 | M12: 0.36 | N12: 0.23 | O12: 0.68 | P12: 0.39 | Q12: 0.9 | R12: 0.8 | S12: 0.55 | T12: 0.38 | U12: 0.53 | V12: 0.49 | W12: 0.1 | X12: 0.1 | Y12: 0.92 | Z12: 0.89 | AA12: 0.83 | AB12: 0.66 | AC12: 0.7 | AD12: 0.5
D13: Fuel Price /MMBtu | E13: 0 | F13: 0 | G13: 0 | H13: 0 | I13: 0 | J13: 0 | K13: 0 | L13: 0 | M13: 0 | N13: 0 | O13: 0 | P13: 0 | Q13: 0 | R13: 0 | S13: 0 | T13: 0 | U13: 0 | V13: 0 | W13: 3.45 | X13: 3.45 | Y13: 0.85 | Z13: 0.85 | AA13: 1.45 | AB13: 1.45 | AC13: 3.45 | AD13: 3.45
D14: Construction Time Months | E14: 3 | F14: 3 | G14: 3 | H14: 3 | I14: 4 | J14: 6 | K14: 9 | L14: 9 | M14: 9 | N14: 9 | O14: 36 | P14: 36 | Q14: 36 | R14: 36 | S14: 12 | T14: 12 | U14: 12 | V14: 12 | W14: 12 | X14: 18 | Y14: 69 | Z14: 69 | AA14: 60 | AB14: 66 | AC14: 24 | AD14: 24
D15: Facility Life Years | E15: 25 | F15: 25 | G15: 25 | H15: 25 | I15: 30 | J15: 30 | K15: 30 | L15: 30 | M15: 30 | N15: 30 | O15: 35 | P15: 35 | Q15: 25 | R15: 25 | S15: 20 | T15: 20 | U15: 20 | V15: 20 | W15: 20 | X15: 20 | Y15: 40 | Z15: 40 | AA15: 40 | AB15: 40 | AC15: 20 | AD15: 20
D16: CO Emissions lb/MWh | E16: 0 | F16: 0 | G16: 0 | H16: 0 | I16: 0 | J16: 0 | K16: 0 | L16: 0 | M16: 0 | N16: 0 | O16: 0 | P16: 0 | Q16: 0 | R16: 0 | S16: 0 | T16: 0 | U16: 0 | V16: 0 | X16: 1147 | Y16: 936 | Z16: 0 | AA16: 0 | AB16: 1839 | AC16: 720 | AD16: 807
D17: Levelized Cost of Energy /MWh | E17: 147 | F17: 221 | G17: 67 | H17: 180 | I17: 59 | J17: 91 | K17: 30 | L17: 41 | M17: 28 | N17: 37 | O17: 126 | P17: 156 | Q17: 56 | R17: 93 | S17: 26 | T17: 50 | U17: 66 | V17: 100 | W17: 151 | X17: 196 | Y17: 130 | Z17: 204 | AA17: 65 | AB17: 152 | AC17: 45 | AD17: 74

Sheet Debt Structuring to Find PIRR
B2: Timeline | E2: ='Drivers and LCOE'!E2 -> 1 | F2: ='Drivers and LCOE'!G3 -> Solar - Lazard No Inflation No Tax
C3: Period | H3: 0 | I3: 1 | J3: 2 | K3: 3 | L3: 4 | M3: 5 | N3: 6 | O3: 7 | P3: 8 | Q3: 9 | R3: 10 | S3: 11 | T3: 12 | U3: 13 | V3: 14 | W3: 15 | X3: 16 | Y3: 17 | Z3: 18 | AA3: 19 | AB3: 20 | AC3: 21 | AD3: 22 | AE3: 23 | AF3: 24 | AG3: 25 | AH3: 26 | AI3: 27 | AJ3: 28 | AK3: 29 | AL3: 30 | AM3: 31 | AN3: 32 | AO3: 33 | AP3: 34 | AQ3: 35 | AR3: 36 | AS3: 37 | AT3: 38 | AU3: 39 | AV3: 40 | AW3: 41 | AX3: 42 | AY3: 43 | AZ3: 44 | BA3: 45 | BB3: 46 | BC3: 47 | BD3: 48 | BE3: 49 | BF3: 50
C4: Operation | E4: Flag | F4: ='Drivers and LCOE'!$G$23 -> 30 | H4: =AND(H3>0,H3<=$F$4) -> FALSE | I4: TRUE | J4: TRUE | K4: TRUE | L4: TRUE | M4: TRUE | N4: TRUE | O4: TRUE | P4: TRUE | Q4: TRUE | R4: TRUE | S4: TRUE | T4: TRUE | U4: TRUE | V4: TRUE | W4: TRUE | X4: TRUE | Y4: TRUE | Z4: TRUE | AA4: TRUE | AB4: TRUE | AC4: TRUE | AD4: TRUE | AE4: TRUE | AF4: TRUE | AG4: TRUE | AH4: TRUE | AI4: TRUE | AJ4: TRUE | AK4: TRUE | AL4: TRUE | AM4: FALSE | AN4: =AND(AN3>0,AN3<=$F$4) -> FALSE | AO4: FALSE | AP4: FALSE | AQ4: FALSE | AR4: FALSE | AS4: FALSE | AT4: FALSE | AU4: FALSE | AV4: FALSE | AW4: FALSE | AX4: FALSE | AY4: FALSE | AZ4: FALSE | BA4: FALSE | BB4: FALSE | BC4: FALSE | BD4: FALSE | BE4: FALSE | BF4: FALSE
C5: Construction period | E5: Flag | H5: =H3=0 -> TRUE | I5: FALSE | J5: FALSE | K5: FALSE | L5: FALSE | M5: FALSE | N5: FALSE | O5: FALSE | P5: FALSE | Q5: FALSE | R5: FALSE | S5: FALSE | T5: FALSE | U5: FALSE | V5: FALSE | W5: FALSE | X5: FALSE | Y5: FALSE | Z5: FALSE | AA5: FALSE | AB5: FALSE | AC5: FALSE | AD5: FALSE | AE5: FALSE | AF5: FALSE | AG5: FALSE | AH5: FALSE | AI5: FALSE | AJ5: FALSE | AK5: FALSE | AL5: FALSE | AM5: FALSE | AN5: =AN3=0 -> FALSE | AO5: FALSE | AP5: FALSE | AQ5: FALSE | AR5: FALSE | AS5: FALSE | AT5: FALSE | AU5: FALSE | AV5: FALSE | AW5: FALSE | AX5: FALSE | AY5: FALSE | AZ5: FALSE | BA5: FALSE | BB5: FALSE | BC5: FALSE | BD5: FALSE | BE5: FALSE | BF5: FALSE
B7: Inputs for Equity IRR and Evaluating PIRR
C8: Minimum DSCR | E8: x | F8: 1.35
C9: Maximum Debt to Capital | E9: % | F9: 0.8
C10: Repayment Tenure | E10: Years | F10: 20
C11: Interest Rate | E11: % | F11: 0.03
B13: Operating Analysis
C14: Capacity | E14: Units | F14: ='Drivers and LCOE'!G7 -> 0 | H14: =$F$14*H4 -> 0 | I14: 0 | J14: 0 | K14: 0 | L14: 0 | M14: 0 | N14: 0 | O14: 0 | P14: 0 | Q14: 0 | R14: 0 | S14: 0 | T14: 0 | U14: 0 | V14: 0 | W14: 0 | X14: 0 | Y14: 0 | Z14: 0 | AA14: 0 | AB14: 0 | AC14: 0 | AD14: 0 | AE14: 0 | AF14: 0 | AG14: 0 | AH14: 0 | AI14: 0 | AJ14: 0 | AK14: 0 | AL14: 0 | AM14: 0 | AN14: =$F$14*AN4 -> 0 | AO14: 0 | AP14: 0 | AQ14: 0 | AR14: 0 | AS14: 0 | AT14: 0 | AU14: 0 | AV14: 0 | AW14: 0 | AX14: 0 | AY14: 0 | AZ14: 0 | BA14: 0 | BB14: 0 | BC14: 0 | BD14: 0 | BE14: 0 | BF14: 0
C15: Capacity factor | E15: % | F15: ='Drivers and LCOE'!G12 -> 0.34 | H15: =H4*$F$15 -> 0 | I15: 0.34 | J15: 0.34 | K15: 0.34 | L15: 0.34 | M15: 0.34 | N15: 0.34 | O15: 0.34 | P15: 0.34 | Q15: 0.34 | R15: 0.34 | S15: 0.34 | T15: 0.34 | U15: 0.34 | V15: 0.34 | W15: 0.34 | X15: 0.34 | Y15: 0.34 | Z15: 0.34 | AA15: 0.34 | AB15: 0.34 | AC15: 0.34 | AD15: 0.34 | AE15: 0.34 | AF15: 0.34 | AG15: 0.34 | AH15: 0.34 | AI15: 0.34 | AJ15: 0.34 | AK15: 0.34 | AL15: 0.34 | AM15: 0 | AN15: =AN4*$F$15 -> 0 | AO15: 0 | AP15: 0 | AQ15: 0 | AR15: 0 | AS15: 0 | AT15: 0 | AU15: 0 | AV15: 0 | AW15: 0 | AX15: 0 | AY15: 0 | AZ15: 0 | BA15: 0 | BB15: 0 | BC15: 0 | BD15: 0 | BE15: 0 | BF15: 0
C16: Generation | E16: kWh | H16: =H14*H15*8760 -> 0 | I16: =I14*I15*8760 -> 0 | J16: 0 | K16: 0 | L16: 0 | M16: 0 | N16: 0 | O16: 0 | P16: 0 | Q16: 0 | R16: 0 | S16: 0 | T16: 0 | U16: 0 | V16: 0 | W16: 0 | X16: 0 | Y16: 0 | Z16: 0 | AA16: 0 | AB16: 0 | AC16: 0 | AD16: 0 | AE16: 0 | AF16: 0 | AG16: 0 | AH16: 0 | AI16: 0 | AJ16: 0 | AK16: 0 | AL16: 0 | AM16: 0 | AN16: 0 | AO16: 0 | AP16: 0 | AQ16: 0 | AR16: 0 | AS16: 0 | AT16: 0 | AU16: 0 | AV16: 0 | AW16: 0 | AX16: 0 | AY16: 0 | AZ16: 0 | BA16: 0 | BB16: 0 | BC16: 0 | BD16: 0 | BE16: 0 | BF16: 0
C18: Degradation | E18: Index | F18: ='Drivers and LCOE'!G14 -> 0 | H18: 1 | I18: =H18*(1-$F$18) -> 1 | J18: =I18*(1-$F$18) -> 1 | K18: 1 | L18: 1 | M18: 1 | N18: 1 | O18: 1 | P18: 1 | Q18: 1 | R18: 1 | S18: 1 | T18: 1 | U18: 1 | V18: 1 | W18: 1 | X18: 1 | Y18: 1 | Z18: 1 | AA18: 1 | AB18: 1 | AC18: 1 | AD18: 1 | AE18: 1 | AF18: 1 | AG18: 1 | AH18: 1 | AI18: 1 | AJ18: 1 | AK18: 1 | AL18: 1 | AM18: 1 | AN18: 1 | AO18: 1 | AP18: 1 | AQ18: 1 | AR18: 1 | AS18: 1 | AT18: 1 | AU18: 1 | AV18: 1 | AW18: 1 | AX18: 1 | AY18: 1 | AZ18: 1 | BA18: 1 | BB18: 1 | BC18: 1 | BD18: 1 | BE18: 1 | BF18: 1
C19: Generation after Degradation | E19: kWh | H19: =H16*H18 -> 0 | I19: 0 | J19: 0 | K19: 0 | L19: 0 | M19: 0 | N19: 0 | O19: 0 | P19: 0 | Q19: 0 | R19: 0 | S19: 0 | T19: 0 | U19: 0 | V19: 0 | W19: 0 | X19: 0 | Y19: 0 | Z19: 0 | AA19: 0 | AB19: 0 | AC19: 0 | AD19: 0 | AE19: 0 | AF19: 0 | AG19: 0 | AH19: 0 | AI19: 0 | AJ19: 0 | AK19: 0 | AL19: 0 | AM19: 0 | AN19: =AN16*AN18 -> 0 | AO19: 0 | AP19: 0 | AQ19: 0 | AR19: 0 | AS19: 0 | AT19: 0 | AU19: 0 | AV19: 0 | AW19: 0 | AX19: 0 | AY19: 0 | AZ19: 0 | BA19: 0 | BB19: 0 | BC19: 0 | BD19: 0 | BE19: 0 | BF19: 0
B21: Operating Cashflow - Pre-Tax
C23: Inflation Index | E23: Index | F23: ='Drivers and LCOE'!G42 -> 0 | H23: 1 | I23: =H23*(1+$F$23) -> 1 | J23: 1 | K23: 1 | L23: 1 | M23: 1 | N23: 1 | O23: 1 | P23: 1 | Q23: 1 | R23: 1 | S23: 1 | T23: 1 | U23: 1 | V23: 1 | W23: 1 | X23: 1 | Y23: 1 | Z23: 1 | AA23: 1 | AB23: 1 | AC23: 1 | AD23: 1 | AE23: 1 | AF23: 1 | AG23: 1 | AH23: 1 | AI23: 1 | AJ23: 1 | AK23: 1 | AL23: 1 | AM23: 1 | AN23: 1 | AO23: =AN23*(1+$F$23) -> 1 | AP23: 1 | AQ23: 1 | AR23: 1 | AS23: 1 | AT23: 1 | AU23: 1 | AV23: 1 | AW23: 1 | AX23: 1 | AY23: 1 | AZ23: 1 | BA23: 1 | BB23: 1 | BC23: 1 | BD23: 1 | BE23: 1 | BF23: 1
C25: Capital Expenditures | E25: USD | F25: ='Drivers and LCOE'!G21 -> 0 | H25: =$F$25*H5 -> 0 | I25: 0 | J25: 0 | K25: 0 | L25: 0 | M25: 0 | N25: 0 | O25: 0 | P25: 0 | Q25: 0 | R25: 0 | S25: 0 | T25: 0 | U25: 0 | V25: 0 | W25: 0 | X25: 0 | Y25: 0 | Z25: 0 | AA25: 0 | AB25: 0 | AC25: 0 | AD25: 0 | AE25: 0 | AF25: 0 | AG25: 0 | AH25: 0 | AI25: 0 | AJ25: 0 | AK25: 0 | AL25: 0 | AM25: 0 | AN25: =$F$25*AN5 -> 0 | AO25: 0 | AP25: 0 | AQ25: 0 | AR25: 0 | AS25: 0 | AT25: 0 | AU25: 0 | AV25: 0 | AW25: 0 | AX25: 0 | AY25: 0 | AZ25: 0 | BA25: 0 | BB25: 0 | BC25: 0 | BD25: 0 | BE25: 0 | BF25: 0
C26: Operating Expediture | E26: USD | F26: ='Drivers and LCOE'!G37 -> 1300 | H26: =$F$26*H4*H23 -> 0 | I26: 1300 | J26: 1300 | K26: 1300 | L26: 1300 | M26: 1300 | N26: 1300 | O26: 1300 | P26: 1300 | Q26: 1300 | R26: 1300 | S26: 1300 | T26: 1300 | U26: 1300 | V26: 1300 | W26: 1300 | X26: 1300 | Y26: 1300 | Z26: 1300 | AA26: 1300 | AB26: 1300 | AC26: 1300 | AD26: 1300 | AE26: 1300 | AF26: 1300 | AG26: 1300 | AH26: 1300 | AI26: 1300 | AJ26: 1300 | AK26: 1300 | AL26: 1300 | AM26: 0 | AN26: =$F$26*AN4*AN23 -> 0 | AO26: 0 | AP26: 0 | AQ26: 0 | AR26: 0 | AS26: 0 | AT26: 0 | AU26: 0 | AV26: 0 | AW26: 0 | AX26: 0 | AY26: 0 | AZ26: 0 | BA26: 0 | BB26: 0 | BC26: 0 | BD26: 0 | BE26: 0 | BF26: 0
C27: Price | E27: USD/kWh | F27: ='Drivers and LCOE'!G86/1000 ->  | H27: =$F$27*H23 ->  | I27: =$F$27*I23 -> 
C28: Revenue | E28: USD | H28: =H27*H19 ->  | AN28: =AN27*AN19 -> 
C30: EBITDA | E30: USD | H30: =H28-H26 ->  | AN30: =AN28-AN26 -> 
C31: Project Free Cashflow | E31: USD | H31: =H30-H25 ->  | AN31: =AN30-AN25 -> 
C32: Pre-tax IRR | E32: %
B34: Financing and Debt Sizing
C36: Repayment Period | E36: Flag | F36: =F10 -> 20 | I36: =I3<=$F$36 -> TRUE | J36: TRUE | K36: TRUE | L36: TRUE | M36: TRUE | N36: TRUE | O36: TRUE | P36: TRUE | Q36: TRUE | R36: TRUE | S36: TRUE | T36: TRUE | U36: TRUE | V36: TRUE | W36: TRUE | X36: TRUE | Y36: TRUE | Z36: TRUE | AA36: TRUE | AB36: TRUE | AC36: FALSE | AD36: FALSE | AE36: FALSE | AF36: FALSE | AG36: FALSE | AH36: FALSE | AI36: FALSE | AJ36: FALSE | AK36: FALSE | AL36: FALSE | AM36: FALSE | AN36: FALSE | AO36: =AO3<=$F$36 -> FALSE | AP36: FALSE | AQ36: FALSE | AR36: FALSE | AS36: FALSE | AT36: FALSE | AU36: FALSE | AV36: FALSE | AW36: FALSE | AX36: FALSE | AY36: FALSE | AZ36: FALSE | BA36: FALSE | BB36: FALSE | BC36: FALSE | BD36: FALSE | BE36: FALSE | BF36: FALSE
C38: Cash Flow | E38: USD | I38: =I30*I36 ->  | AO38: =AO30*AO36 -> 
C39: Target Debt Service at P50 | E39: USD | F39: =F8 -> 1.35 | I39: =I38/$F$39*I36 ->  | AO39: =AO38/$F$39*AO36 -> 
C40: NPV of Debt Service at Int Rate | E40: USD | G40: =F11 -> 0.03
C42: Percent of Project Cost | E42: %
C44: Max Debt to Capital | E44: % | F44: =F9 -> 0.8
C45: Debt from Debt to Capital | E45: USD | F45: =F9*F53 -> 0
C46: PV of CFADS over Debt Life | E46: USD | G46: =F11 -> 0.03
C47: Implied Flat DSCR | E47: x
C49: Debt Service from Implied Flat DSCR | E49: USD | F49: =MAX(F47,F39) -> 1.35
C51: Total Uses of Funds
D52: Capital Expenditures | E52: USD | F52: =H52 -> 0 | H52: =H25 -> 0
D53: Total Uses of Funds | E53: USD | F53: =H53 -> 0 | H53: =SUM(H52:H52) -> 0
C55: Sources of Funds
D56: Debt Financing from Min | E56: USD | F56: =MIN(F40,F45) -> 0 | H56: =F56 -> 0
D57: Equity Financing | E57: USD | H57: =H53-H56 -> 0
D58: Total Sources of funds | E58: USD | H58: =SUM(H56:H57) -> 0
C60: Debt Service Applied
B62: Final Debt and Cash Flow
C63: Debt Account
C64: Opening Balance | H64: =G67 -> 0 | I64: 0 | J64: 0 | K64: 0 | L64: 0 | M64: 0 | N64: 0 | O64: 0 | P64: 0 | Q64: 0 | R64: 0 | S64: 0 | T64: 0 | U64: 0 | V64: 0 | W64: 0 | X64: 0 | Y64: 0 | Z64: 0 | AA64: 0 | AB64: 0 | AC64: 0 | AD64: 0 | AE64: 0 | AF64: 0 | AG64: 0 | AH64: 0 | AI64: 0 | AJ64: 0 | AK64: 0 | AL64: 0 | AM64: 0 | AN64: =AM67 -> 0 | AO64: 0 | AP64: 0 | AQ64: 0 | AR64: 0 | AS64: 0 | AT64: 0 | AU64: 0 | AV64: 0 | AW64: 0 | AX64: 0 | AY64: 0 | AZ64: 0 | BA64: 0 | BB64: 0 | BC64: 0 | BD64: 0 | BE64: 0 | BF64: 0
C65: Add: Debt Issued | H65: =H56 -> 0
C66: Less: Repayment | I66: =I60 -> 0 | J66: =J60 -> 0 | K66: 0 | L66: 0 | M66: 0 | N66: 0 | O66: 0 | P66: 0 | Q66: 0 | R66: 0 | S66: 0 | T66: 0 | U66: 0 | V66: 0 | W66: 0 | X66: 0 | Y66: 0 | Z66: 0 | AA66: 0 | AB66: 0 | AC66: 0 | AD66: 0 | AE66: 0 | AF66: 0 | AG66: 0 | AH66: 0 | AI66: 0 | AJ66: 0 | AK66: 0 | AL66: 0 | AM66: 0 | AN66: 0 | AO66: 0 | AP66: 0 | AQ66: 0 | AR66: 0 | AS66: 0 | AT66: 0 | AU66: 0 | AV66: 0 | AW66: 0 | AX66: 0 | AY66: 0 | AZ66: 0 | BA66: 0 | BB66: 0 | BC66: 0 | BD66: 0 | BE66: 0 | BF66: 0
C67: Closing Balance | H67: =H64+H65-H66 -> 0 | I67: 0 | J67: 0 | K67: 0 | L67: 0 | M67: 0 | N67: 0 | O67: 0 | P67: 0 | Q67: 0 | R67: 0 | S67: 0 | T67: 0 | U67: 0 | V67: 0 | W67: 0 | X67: 0 | Y67: 0 | Z67: 0 | AA67: 0 | AB67: 0 | AC67: 0 | AD67: 0 | AE67: 0 | AF67: 0 | AG67: 0 | AH67: 0 | AI67: 0 | AJ67: 0 | AK67: 0 | AL67: 0 | AM67: 0 | AN67: =AN64+AN65-AN66 -> 0 | AO67: 0 | AP67: 0 | AQ67: 0 | AR67: 0 | AS67: 0 | AT67: 0 | AU67: 0 | AV67: 0 | AW67: 0 | AX67: 0 | AY67: 0 | AZ67: 0 | BA67: 0 | BB67: 0 | BC67: 0 | BD67: 0 | BE67: 0 | BF67: 0
C68: Interest Expense | F68: =F11 -> 0.03 | H68: =$F$68*H64 -> 0 | I68: 0 | J68: 0 | K68: 0 | L68: 0 | M68: 0 | N68: 0 | O68: 0 | P68: 0 | Q68: 0 | R68: 0 | S68: 0 | T68: 0 | U68: 0 | V68: 0 | W68: 0 | X68: 0 | Y68: 0 | Z68: 0 | AA68: 0 | AB68: 0 | AC68: 0 | AD68: 0 | AE68: 0 | AF68: 0 | AG68: 0 | AH68: 0 | AI68: 0 | AJ68: 0 | AK68: 0 | AL68: 0 | AM68: 0 | AN68: =$F$68*AN64 -> 0 | AO68: 0 | AP68: 0 | AQ68: 0 | AR68: 0 | AS68: 0 | AT68: 0 | AU68: 0 | AV68: 0 | AW68: 0 | AX68: 0 | AY68: 0 | AZ68: 0 | BA68: 0 | BB68: 0 | BC68: 0 | BD68: 0 | BE68: 0 | BF68: 0
B70: Cash Flow Waterfall
C71: EBITDA
C72: Less: Debt Service
C73: Dividends
C75: Equity Cash Flow | H75: =H73-H57 -> 0 | I75: =I73-I57 -> 0 | J75: 0 | K75: 0 | L75: 0 | M75: 0 | N75: 0 | O75: 0 | P75: 0 | Q75: 0 | R75: 0 | S75: 0 | T75: 0 | U75: 0 | V75: 0 | W75: 0 | X75: 0 | Y75: 0 | Z75: 0 | AA75: 0 | AB75: 0 | AC75: 0 | AD75: 0 | AE75: 0 | AF75: 0 | AG75: 0 | AH75: 0 | AI75: 0 | AJ75: 0 | AK75: 0 | AL75: 0 | AM75: 0 | AN75: 0 | AO75: 0 | AP75: 0 | AQ75: 0 | AR75: 0 | AS75: 0 | AT75: 0 | AU75: 0 | AV75: 0 | AW75: 0 | AX75: 0 | AY75: 0 | AZ75: 0 | BA75: 0 | BB75: 0 | BC75: 0 | BD75: 0 | BE75: 0 | BF75: 0
C76: Equity IRR
C77: Target Equity IRR | F77: 0.055
C78: NPV at Target IRR | F78: =NPV(F77,H75:BF75) -> 0
C80: Implied Project IRR | F80: =F32 -> 0
C83: DSCR =CFADS/Debt Service
C84: Debt Service =CFADS/DSCR
C85: Debt Service =Interest + Repayment
C86: NPV of Debt Service =Amount of Debt

Sheet PV Syst Case Study
B3: PVSYST Egypt
D8: Lattitude/Longitude | F8: 30.98 | G8: 31.28
D9: Tilt | F9: 6
D10: Azimuth | F10: 162
B36: PVGIS
D37: Lattitude/Longitude | F37: 30.98 | G37: 31.28
D38: Tilt | F38: 6
D39: Azimuth | F39: 162
D41: PVGIS
E43: Horizontal | F43: kWh/m3 | G43: 2104
E44: In Plane (POA, Globinc) | F44: kWh/m3 | G44: 2019.04 | H44: =G44/G43 -> 0.9596197719
E45: Final Yield | F45: kWh/kWp | G45: 1515.7
E47: Performance Ratio
D49: PVSYST - Go to Down and Compute
E50: Horizontal | F50: kWh/m3 | G50: =E172 -> 1913.2
E51: Global Incident | F51: kWh/m3 | G51: =F172 -> 1845.5 | H51: =G51/G44 -> 0.9140482606
E52: Yield | F52: kWh/kWp | G52: =I174 -> 1302.764977
E54: PR
AN86: 1913
D87: Lat/Lon | E87: 30.98 | F87: 31.28
D88: Tilt | E88: 6
D89: Azimuth | E89: 162
D92: kWp | E92: 651
D94: STC | E94: 1000 | F94: kwh/m2
D96: kWac | E96: 533
D98: AC/DC ratio
F170: Global Incident | H170: E-Grid
E171: kWh/m3 | F171: kWh/m3
C172: Annual | E172: 1913.2 | F172: 1845.5 | G172: 1656.1 | H172: MWH | I172: 848.1
C173: Capacity | H173: kWp | I173: 651
C174: Yield | E174: kWh/kWp | I174: =I172/I173*1000 -> 1302.764977
C176: Performance Ratio

Sheet Wind Speeds
C1: TIME IN GMT
C2: DD =WIND DIRECTION IN DEGREES NORTH | R2: Shear Adjustment =
C3: QQD =QUALITY CODE DD | N3: Shear | O3: =1/7 -> 0.1428571429 | R3: (Hub Height/Measured Height)^Shear
C4: UP =POTENTIAL WIND SPEED IN 0.1 M/S
C5: QUP =QUALITY CODE UP | N5: Hub
M6: Measure | N6: Height
C7: DATE | D7: TIME | E7: DD | F7: QDD | G7: UP | H7: QUP | I7: Year | J7: Month | K7: Day | L7: M/sec | M7: Height | N7: 80 | O7: Shear | P7: Adjusted
C8: 20110101 | D8: 1 | E8: 260 | F8: 0 | G8: 52 | H8: 0 | I8: 2011 | J8: 1 | K8: 1 | L8: 5.2 | M8: 10 | N8: =$N$7 -> 80 | P8: =IF(L8,O8*L8)*1 -> 0 | R8: =(N8/M8)^$O$3
C9: 20110101 | D9: 2 | E9: 280 | F9: 0 | G9: 62 | H9: 0 | I9: 2011 | J9: 1 | K9: 1 | L9: 6.2 | M9: 10 | N9: 80 | P9: 0
C10: 20110101 | D10: 3 | E10: 280 | F10: 0 | G10: 62 | H10: 0 | I10: 2011 | J10: 1 | K10: 1 | L10: 6.2 | M10: 10 | N10: 80 | P10: 0
C11: 20110101 | D11: 4 | E11: 270 | F11: 0 | G11: 62 | H11: 0 | I11: 2011 | J11: 1 | K11: 1 | L11: 6.2 | M11: 10 | N11: 80 | P11: 0
C12: 20110101 | D12: 5 | E12: 260 | F12: 0 | G12: 52 | H12: 0 | I12: 2011 | J12: 1 | K12: 1 | L12: 5.2 | M12: 10 | N12: 80 | P12: 0
C13: 20110101 | D13: 6 | E13: 270 | F13: 0 | G13: 52 | H13: 0 | I13: 2011 | J13: 1 | K13: 1 | L13: 5.2 | M13: 10 | N13: 80 | P13: 0
C14: 20110101 | D14: 7 | E14: 270 | F14: 0 | G14: 62 | H14: 0 | I14: 2011 | J14: 1 | K14: 1 | L14: 6.2 | M14: 10 | N14: 80 | P14: 0
C15: 20110101 | D15: 8 | E15: 280 | F15: 0 | G15: 62 | H15: 0 | I15: 2011 | J15: 1 | K15: 1 | L15: 6.2 | M15: 10 | N15: 80 | P15: 0
C16: 20110101 | D16: 9 | E16: 290 | F16: 0 | G16: 53 | H16: 0 | I16: 2011 | J16: 1 | K16: 1 | L16: 5.3 | M16: 10 | N16: 80 | P16: 0
C17: 20110101 | D17: 10 | E17: 320 | F17: 0 | G17: 43 | H17: 0 | I17: 2011 | J17: 1 | K17: 1 | L17: 4.3 | M17: 10 | N17: =$N$7 -> 80 | P17: =IF(L17,O17*L17)*1 -> 0
C18: 20110101 | D18: 11 | E18: 320 | F18: 0 | G18: 33 | H18: 0 | I18: 2011 | J18: 1 | K18: 1 | L18: 3.3 | M18: 10 | N18: 80 | P18: 0
C19: 20110101 | D19: 12 | E19: 340 | F19: 0 | G19: 69 | H19: 0 | I19: 2011 | J19: 1 | K19: 1 | L19: 6.9 | M19: 10 | N19: 80 | P19: 0
C20: 20110101 | D20: 13 | E20: 330 | F20: 0 | G20: 69 | H20: 0 | I20: 2011 | J20: 1 | K20: 1 | L20: 6.9 | M20: 10 | N20: 80 | P20: 0
C21: 20110101 | D21: 14 | E21: 330 | F21: 0 | G21: 69 | H21: 0 | I21: 2011 | J21: 1 | K21: 1 | L21: 6.9 | M21: 10 | N21: 80 | P21: 0
C22: 20110101 | D22: 15 | E22: 330 | F22: 0 | G22: 57 | H22: 0 | I22: 2011 | J22: 1 | K22: 1 | L22: 5.7 | M22: 10 | N22: 80 | P22: 0
C23: 20110101 | D23: 16 | E23: 330 | F23: 0 | G23: 46 | H23: 0 | I23: 2011 | J23: 1 | K23: 1 | L23: 4.6 | M23: 10 | N23: 80 | P23: 0
C24: 20110101 | D24: 17 | E24: 320 | F24: 0 | G24: 43 | H24: 0 | I24: 2011 | J24: 1 | K24: 1 | L24: 4.3 | M24: 10 | N24: 80 | P24: 0
C25: 20110101 | D25: 18 | E25: 330 | F25: 0 | G25: 46 | H25: 0 | I25: 2011 | J25: 1 | K25: 1 | L25: 4.6 | M25: 10 | N25: 80 | P25: 0
C26: 20110101 | D26: 19 | E26: 340 | F26: 0 | G26: 34 | H26: 0 | I26: 2011 | J26: 1 | K26: 1 | L26: 3.4 | M26: 10 | N26: 80 | P26: 0
C27: 20110101 | D27: 20 | E27: 320 | F27: 0 | G27: 43 | H27: 0 | I27: 2011 | J27: 1 | K27: 1 | L27: 4.3 | M27: 10 | N27: 80 | P27: 0
C28: 20110101 | D28: 21 | E28: 320 | F28: 0 | G28: 33 | H28: 0 | I28: 2011 | J28: 1 | K28: 1 | L28: 3.3 | M28: 10 | N28: 80 | P28: 0
C29: 20110101 | D29: 22 | E29: 310 | F29: 0 | G29: 22 | H29: 0 | I29: 2011 | J29: 1 | K29: 1 | L29: 2.2 | M29: 10 | N29: 80 | P29: 0
C30: 20110101 | D30: 23 | E30: 320 | F30: 0 | G30: 22 | H30: 0 | I30: 2011 | J30: 1 | K30: 1 | L30: 2.2 | M30: 10 | N30: 80 | P30: 0
C31: 20110101 | D31: 24 | E31: 330 | F31: 0 | G31: 34 | H31: 0 | I31: 2011 | J31: 1 | K31: 1 | L31: 3.4 | M31: 10 | N31: 80 | P31: 0
C32: 20110102 | D32: 1 | E32: 300 | F32: 0 | G32: 32 | H32: 0 | I32: 2011 | J32: 1 | K32: 2 | L32: 3.2 | M32: 10 | N32: 80 | P32: 0
C33: 20110102 | D33: 2 | E33: 300 | F33: 0 | G33: 21 | H33: 0 | I33: 2011 | J33: 1 | K33: 2 | L33: 2.1 | M33: 10 | N33: 80 | P33: 0
C34: 20110102 | D34: 3 | E34: 280 | F34: 0 | G34: 21 | H34: 0 | I34: 2011 | J34: 1 | K34: 2 | L34: 2.1 | M34: 10 | N34: 80 | P34: 0
C35: 20110102 | D35: 4 | E35: 300 | F35: 0 | G35: 21 | H35: 0 | I35: 2011 | J35: 1 | K35: 2 | L35: 2.1 | M35: 10 | N35: 80 | P35: 0
C36: 20110102 | D36: 5 | E36: 360 | F36: 0 | G36: 46 | H36: 0 | I36: 2011 | J36: 1 | K36: 2 | L36: 4.6 | M36: 10 | N36: 80 | P36: 0
C37: 20110102 | D37: 6 | E37: 340 | F37: 0 | G37: 34 | H37: 0 | I37: 2011 | J37: 1 | K37: 2 | L37: 3.4 | M37: 10 | N37: 80 | P37: 0
C38: 20110102 | D38: 7 | E38: 320 | F38: 0 | G38: 33 | H38: 0 | I38: 2011 | J38: 1 | K38: 2 | L38: 3.3 | M38: 10 | N38: 80 | P38: 0
C39: 20110102 | D39: 8 | E39: 320 | F39: 0 | G39: 22 | H39: 0 | I39: 2011 | J39: 1 | K39: 2 | L39: 2.2 | M39: 10 | N39: 80 | P39: 0
C40: 20110102 | D40: 9 | E40: 260 | F40: 0 | G40: 10 | H40: 0 | I40: 2011 | J40: 1 | K40: 2 | L40: 1 | M40: 10 | N40: 80 | P40: 0
C41: 20110102 | D41: 10 | E41: 310 | F41: 0 | G41: 33 | H41: 0 | I41: 2011 | J41: 1 | K41: 2 | L41: 3.3 | M41: 10 | N41: 80 | P41: 0
C42: 20110102 | D42: 11 | E42: 310 | F42: 0 | G42: 43 | H42: 0 | I42: 2011 | J42: 1 | K42: 2 | L42: 4.3 | M42: 10 | N42: 80 | P42: 0
C43: 20110102 | D43: 12 | E43: 310 | F43: 0 | G43: 54 | H43: 0 | I43: 2011 | J43: 1 | K43: 2 | L43: 5.4 | M43: 10 | N43: 80 | P43: 0
C44: 20110102 | D44: 13 | E44: 330 | F44: 0 | G44: 69 | H44: 0 | I44: 2011 | J44: 1 | K44: 2 | L44: 6.9 | M44: 10 | N44: 80 | P44: 0
C45: 20110102 | D45: 14 | E45: 330 | F45: 0 | G45: 57 | H45: 0 | I45: 2011 | J45: 1 | K45: 2 | L45: 5.7 | M45: 10 | N45: 80 | P45: 0
C46: 20110102 | D46: 15 | E46: 310 | F46: 0 | G46: 43 | H46: 0 | I46: 2011 | J46: 1 | K46: 2 | L46: 4.3 | M46: 10 | N46: 80 | P46: 0
C47: 20110102 | D47: 16 | E47: 310 | F47: 0 | G47: 43 | H47: 0 | I47: 2011 | J47: 1 | K47: 2 | L47: 4.3 | M47: 10 | N47: 80 | P47: 0
C48: 20110102 | D48: 17 | E48: 310 | F48: 0 | G48: 43 | H48: 0 | I48: 2011 | J48: 1 | K48: 2 | L48: 4.3 | M48: 10 | N48: 80 | P48: 0
C49: 20110102 | D49: 18 | E49: 310 | F49: 0 | G49: 33 | H49: 0 | I49: 2011 | J49: 1 | K49: 2 | L49: 3.3 | M49: 10 | N49: 80 | P49: 0
C50: 20110102 | D50: 19 | E50: 310 | F50: 0 | G50: 33 | H50: 0 | I50: 2011 | J50: 1 | K50: 2 | L50: 3.3 | M50: 10 | N50: 80 | P50: 0
C51: 20110102 | D51: 20 | E51: 320 | F51: 0 | G51: 33 | H51: 0 | I51: 2011 | J51: 1 | K51: 2 | L51: 3.3 | M51: 10 | N51: 80 | P51: 0
C52: 20110102 | D52: 21 | E52: 310 | F52: 0 | G52: 22 | H52: 0 | I52: 2011 | J52: 1 | K52: 2 | L52: 2.2 | M52: 10 | N52: 80 | P52: 0
C53: 20110102 | D53: 22 | E53: 300 | F53: 0 | G53: 21 | H53: 0 | I53: 2011 | J53: 1 | K53: 2 | L53: 2.1 | M53: 10 | N53: 80 | P53: 0
C54: 20110102 | D54: 23 | E54: 260 | F54: 0 | G54: 31 | H54: 0 | I54: 2011 | J54: 1 | K54: 2 | L54: 3.1 | M54: 10 | N54: 80 | P54: 0
C55: 20110102 | D55: 24 | E55: 260 | F55: 0 | G55: 21 | H55: 0 | I55: 2011 | J55: 1 | K55: 2 | L55: 2.1 | M55: 10 | N55: 80 | P55: 0
C56: 20110103 | D56: 1 | E56: 260 | F56: 0 | G56: 21 | H56: 0 | I56: 2011 | J56: 1 | K56: 3 | L56: 2.1 | M56: 10 | N56: 80 | P56: 0
C57: 20110103 | D57: 2 | E57: 270 | F57: 0 | G57: 31 | H57: 0 | I57: 2011 | J57: 1 | K57: 3 | L57: 3.1 | M57: 10 | N57: 80 | P57: 0
C58: 20110103 | D58: 3 | E58: 270 | F58: 0 | G58: 31 | H58: 0 | I58: 2011 | J58: 1 | K58: 3 | L58: 3.1 | M58: 10 | N58: 80 | P58: 0
C59: 20110103 | D59: 4 | E59: 290 | F59: 0 | G59: 21 | H59: 0 | I59: 2011 | J59: 1 | K59: 3 | L59: 2.1 | M59: 10 | N59: 80 | P59: 0
C60: 20110103 | D60: 5 | E60: 230 | F60: 0 | G60: 10 | H60: 0 | I60: 2011 | J60: 1 | K60: 3 | L60: 1 | M60: 10 | N60: 80 | P60: 0
C61: 20110103 | D61: 6 | E61: 220 | F61: 0 | G61: 20 | H61: 0 | I61: 2011 | J61: 1 | K61: 3 | L61: 2 | M61: 10 | N61: 80 | P61: 0
C62: 20110103 | D62: 7 | E62: 220 | F62: 0 | G62: 20 | H62: 0 | I62: 2011 | J62: 1 | K62: 3 | L62: 2 | M62: 10 | N62: 80 | P62: 0
C63: 20110103 | D63: 8 | E63: 200 | F63: 0 | G63: 21 | H63: 0 | I63: 2011 | J63: 1 | K63: 3 | L63: 2.1 | M63: 10 | N63: 80 | P63: 0
C64: 20110103 | D64: 9 | E64: 230 | F64: 0 | G64: 31 | H64: 0 | I64: 2011 | J64: 1 | K64: 3 | L64: 3.1 | M64: 10 | N64: 80 | P64: 0
C65: 20110103 | D65: 10 | E65: 250 | F65: 0 | G65: 42 | H65: 0 | I65: 2011 | J65: 1 | K65: 3 | L65: 4.2 | M65: 10 | N65: 80 | P65: 0
C66: 20110103 | D66: 11 | E66: 230 | F66: 0 | G66: 31 | H66: 0 | I66: 2011 | J66: 1 | K66: 3 | L66: 3.1 | M66: 10 | N66: 80 | P66: 0
C67: 20110103 | D67: 12 | E67: 220 | F67: 0 | G67: 41 | H67: 0 | I67: 2011 | J67: 1 | K67: 3 | L67: 4.1 | M67: 10 | N67: 80 | P67: 0
C68: 20110103 | D68: 13 | E68: 230 | F68: 0 | G68: 31 | H68: 0 | I68: 2011 | J68: 1 | K68: 3 | L68: 3.1 | M68: 10 | N68: 80 | P68: 0
C69: 20110103 | D69: 14 | E69: 220 | F69: 0 | G69: 31 | H69: 0 | I69: 2011 | J69: 1 | K69: 3 | L69: 3.1 | M69: 10 | N69: 80 | P69: 0
C70: 20110103 | D70: 15 | E70: 220 | F70: 0 | G70: 31 | H70: 0 | I70: 2011 | J70: 1 | K70: 3 | L70: 3.1 | M70: 10 | N70: 80 | P70: 0
C71: 20110103 | D71: 16 | E71: 260 | F71: 0 | G71: 31 | H71: 0 | I71: 2011 | J71: 1 | K71: 3 | L71: 3.1 | M71: 10 | N71: 80 | P71: 0
C72: 20110103 | D72: 17 | E72: 220 | F72: 0 | G72: 20 | H72: 0 | I72: 2011 | J72: 1 | K72: 3 | L72: 2 | M72: 10 | N72: 80 | P72: 0
C73: 20110103 | D73: 18 | E73: 250 | F73: 0 | G73: 31 | H73: 0 | I73: 2011 | J73: 1 | K73: 3 | L73: 3.1 | M73: 10 | N73: 80 | P73: 0
C74: 20110103 | D74: 19 | E74: 230 | F74: 0 | G74: 31 | H74: 0 | I74: 2011 | J74: 1 | K74: 3 | L74: 3.1 | M74: 10 | N74: 80 | P74: 0
C75: 20110103 | D75: 20 | E75: 200 | F75: 0 | G75: 31 | H75: 0 | I75: 2011 | J75: 1 | K75: 3 | L75: 3.1 | M75: 10 | N75: 80 | P75: 0
C76: 20110103 | D76: 21 | E76: 250 | F76: 0 | G76: 42 | H76: 0 | I76: 2011 | J76: 1 | K76: 3 | L76: 4.2 | M76: 10 | N76: 80 | P76: 0
C77: 20110103 | D77: 22 | E77: 190 | F77: 0 | G77: 31 | H77: 0 | I77: 2011 | J77: 1 | K77: 3 | L77: 3.1 | M77: 10 | N77: 80 | P77: 0
C78: 20110103 | D78: 23 | E78: 200 | F78: 0 | G78: 31 | H78: 0 | I78: 2011 | J78: 1 | K78: 3 | L78: 3.1 | M78: 10 | N78: 80 | P78: 0
C79: 20110103 | D79: 24 | E79: 210 | F79: 0 | G79: 31 | H79: 0 | I79: 2011 | J79: 1 | K79: 3 | L79: 3.1 | M79: 10 | N79: 80 | P79: 0
C80: 20110104 | D80: 1 | E80: 200 | F80: 0 | G80: 31 | H80: 0 | I80: 2011 | J80: 1 | K80: 4 | L80: 3.1 | M80: 10 | N80: 80 | P80: 0
C81: 20110104 | D81: 2 | E81: 210 | F81: 0 | G81: 31 | H81: 0 | I81: 2011 | J81: 1 | K81: 4 | L81: 3.1 | M81: 10 | N81: =$N$7 -> 80 | P81: =IF(L81,O81*L81)*1 -> 0
C82: 20110104 | D82: 3 | E82: 200 | F82: 0 | G82: 41 | H82: 0 | I82: 2011 | J82: 1 | K82: 4 | L82: 4.1 | M82: 10 | N82: 80 | P82: 0
C83: 20110104 | D83: 4 | E83: 210 | F83: 0 | G83: 51 | H83: 0 | I83: 2011 | J83: 1 | K83: 4 | L83: 5.1 | M83: 10 | N83: 80 | P83: 0
C84: 20110104 | D84: 5 | E84: 210 | F84: 0 | G84: 51 | H84: 0 | I84: 2011 | J84: 1 | K84: 4 | L84: 5.1 | M84: 10 | N84: 80 | P84: 0
C85: 20110104 | D85: 6 | E85: 200 | F85: 0 | G85: 41 | H85: 0 | I85: 2011 | J85: 1 | K85: 4 | L85: 4.1 | M85: 10 | N85: 80 | P85: 0
C86: 20110104 | D86: 7 | E86: 200 | F86: 0 | G86: 51 | H86: 0 | I86: 2011 | J86: 1 | K86: 4 | L86: 5.1 | M86: 10 | N86: 80 | P86: 0
C87: 20110104 | D87: 8 | E87: 200 | F87: 0 | G87: 62 | H87: 0 | I87: 2011 | J87: 1 | K87: 4 | L87: 6.2 | M87: 10 | N87: 80 | P87: 0
C88: 20110104 | D88: 9 | E88: 200 | F88: 0 | G88: 62 | H88: 0 | I88: 2011 | J88: 1 | K88: 4 | L88: 6.2 | M88: 10 | N88: 80 | P88: 0
C89: 20110104 | D89: 10 | E89: 210 | F89: 0 | G89: 61 | H89: 0 | I89: 2011 | J89: 1 | K89: 4 | L89: 6.1 | M89: 10 | N89: 80 | P89: 0
C90: 20110104 | D90: 11 | E90: 200 | F90: 0 | G90: 72 | H90: 0 | I90: 2011 | J90: 1 | K90: 4 | L90: 7.2 | M90: 10 | N90: 80 | P90: 0
C91: 20110104 | D91: 12 | E91: 200 | F91: 0 | G91: 72 | H91: 0 | I91: 2011 | J91: 1 | K91: 4 | L91: 7.2 | M91: 10 | N91: 80 | P91: 0
C92: 20110104 | D92: 13 | E92: 200 | F92: 0 | G92: 82 | H92: 0 | I92: 2011 | J92: 1 | K92: 4 | L92: 8.2 | M92: 10 | N92: 80 | P92: 0
C93: 20110104 | D93: 14 | E93: 200 | F93: 0 | G93: 82 | H93: 0 | I93: 2011 | J93: 1 | K93: 4 | L93: 8.2 | M93: 10 | N93: 80 | P93: 0
C94: 20110104 | D94: 15 | E94: 200 | F94: 0 | G94: 72 | H94: 0 | I94: 2011 | J94: 1 | K94: 4 | L94: 7.2 | M94: 10 | N94: 80 | P94: 0
C95: 20110104 | D95: 16 | E95: 200 | F95: 0 | G95: 72 | H95: 0 | I95: 2011 | J95: 1 | K95: 4 | L95: 7.2 | M95: 10 | N95: 80 | P95: 0
C96: 20110104 | D96: 17 | E96: 200 | F96: 0 | G96: 62 | H96: 0 | I96: 2011 | J96: 1 | K96: 4 | L96: 6.2 | M96: 10 | N96: 80 | P96: 0
C97: 20110104 | D97: 18 | E97: 200 | F97: 0 | G97: 72 | H97: 0 | I97: 2011 | J97: 1 | K97: 4 | L97: 7.2 | M97: 10 | N97: 80 | P97: 0
C98: 20110104 | D98: 19 | E98: 200 | F98: 0 | G98: 72 | H98: 0 | I98: 2011 | J98: 1 | K98: 4 | L98: 7.2 | M98: 10 | N98: 80 | P98: 0
C99: 20110104 | D99: 20 | E99: 190 | F99: 0 | G99: 72 | H99: 0 | I99: 2011 | J99: 1 | K99: 4 | L99: 7.2 | M99: 10 | N99: 80 | P99: 0
C100: 20110104 | D100: 21 | E100: 190 | F100: 0 | G100: 72 | H100: 0 | I100: 2011 | J100: 1 | K100: 4 | L100: 7.2 | M100: 10 | N100: 80 | P100: 0
C101: 20110104 | D101: 22 | E101: 190 | F101: 0 | G101: 72 | H101: 0 | I101: 2011 | J101: 1 | K101: 4 | L101: 7.2 | M101: 10 | N101: 80 | P101: 0
C102: 20110104 | D102: 23 | E102: 190 | F102: 0 | G102: 72 | H102: 0 | I102: 2011 | J102: 1 | K102: 4 | L102: 7.2 | M102: 10 | N102: 80 | P102: 0
C103: 20110104 | D103: 24 | E103: 180 | F103: 0 | G103: 72 | H103: 0 | I103: 2011 | J103: 1 | K103: 4 | L103: 7.2 | M103: 10 | N103: 80 | P103: 0
C104: 20110105 | D104: 1 | E104: 180 | F104: 0 | G104: 72 | H104: 0 | I104: 2011 | J104: 1 | K104: 5 | L104: 7.2 | M104: 10 | N104: 80 | P104: 0
C105: 20110105 | D105: 2 | E105: 180 | F105: 0 | G105: 72 | H105: 0 | I105: 2011 | J105: 1 | K105: 5 | L105: 7.2 | M105: 10 | N105: 80 | P105: 0
C106: 20110105 | D106: 3 | E106: 170 | F106: 0 | G106: 51 | H106: 0 | I106: 2011 | J106: 1 | K106: 5 | L106: 5.1 | M106: 10 | N106: 80 | P106: 0
C107: 20110105 | D107: 4 | E107: 170 | F107: 0 | G107: 51 | H107: 0 | I107: 2011 | J107: 1 | K107: 5 | L107: 5.1 | M107: 10 | N107: 80 | P107: 0
C108: 20110105 | D108: 5 | E108: 170 | F108: 0 | G108: 62 | H108: 0 | I108: 2011 | J108: 1 | K108: 5 | L108: 6.2 | M108: 10 | N108: 80 | P108: 0
C109: 20110105 | D109: 6 | E109: 170 | F109: 0 | G109: 72 | H109: 0 | I109: 2011 | J109: 1 | K109: 5 | L109: 7.2 | M109: 10 | N109: 80 | P109: 0
C110: 20110105 | D110: 7 | E110: 170 | F110: 0 | G110: 72 | H110: 0 | I110: 2011 | J110: 1 | K110: 5 | L110: 7.2 | M110: 10 | N110: 80 | P110: 0
C111: 20110105 | D111: 8 | E111: 170 | F111: 0 | G111: 72 | H111: 0 | I111: 2011 | J111: 1 | K111: 5 | L111: 7.2 | M111: 10 | N111: 80 | P111: 0
C112: 20110105 | D112: 9 | E112: 170 | F112: 0 | G112: 72 | H112: 0 | I112: 2011 | J112: 1 | K112: 5 | L112: 7.2 | M112: 10 | N112: 80 | P112: 0
C113: 20110105 | D113: 10 | E113: 170 | F113: 0 | G113: 72 | H113: 0 | I113: 2011 | J113: 1 | K113: 5 | L113: 7.2 | M113: 10 | N113: 80 | P113: 0
C114: 20110105 | D114: 11 | E114: 170 | F114: 0 | G114: 72 | H114: 0 | I114: 2011 | J114: 1 | K114: 5 | L114: 7.2 | M114: 10 | N114: 80 | P114: 0
C115: 20110105 | D115: 12 | E115: 170 | F115: 0 | G115: 62 | H115: 0 | I115: 2011 | J115: 1 | K115: 5 | L115: 6.2 | M115: 10 | N115: 80 | P115: 0
C116: 20110105 | D116: 13 | E116: 170 | F116: 0 | G116: 82 | H116: 0 | I116: 2011 | J116: 1 | K116: 5 | L116: 8.2 | M116: 10 | N116: 80 | P116: 0
C117: 20110105 | D117: 14 | E117: 170 | F117: 0 | G117: 82 | H117: 0 | I117: 2011 | J117: 1 | K117: 5 | L117: 8.2 | M117: 10 | N117: 80 | P117: 0
C118: 20110105 | D118: 15 | E118: 160 | F118: 0 | G118: 71 | H118: 0 | I118: 2011 | J118: 1 | K118: 5 | L118: 7.1 | M118: 10 | N118: 80 | P118: 0
C119: 20110105 | D119: 16 | E119: 150 | F119: 0 | G119: 71 | H119: 0 | I119: 2011 | J119: 1 | K119: 5 | L119: 7.1 | M119: 10 | N119: 80 | P119: 0
C120: 20110105 | D120: 17 | E120: 150 | F120: 0 | G120: 71 | H120: 0 | I120: 2011 | J120: 1 | K120: 5 | L120: 7.1 | M120: 10 | N120: 80 | P120: 0
C121: 20110105 | D121: 18 | E121: 150 | F121: 0 | G121: 81 | H121: 0 | I121: 2011 | J121: 1 | K121: 5 | L121: 8.1 | M121: 10 | N121: 80 | P121: 0
C122: 20110105 | D122: 19 | E122: 160 | F122: 0 | G122: 81 | H122: 0 | I122: 2011 | J122: 1 | K122: 5 | L122: 8.1 | M122: 10 | N122: 80 | P122: 0
C123: 20110105 | D123: 20 | E123: 170 | F123: 0 | G123: 72 | H123: 0 | I123: 2011 | J123: 1 | K123: 5 | L123: 7.2 | M123: 10 | N123: 80 | P123: 0
C124: 20110105 | D124: 21 | E124: 170 | F124: 0 | G124: 72 | H124: 0 | I124: 2011 | J124: 1 | K124: 5 | L124: 7.2 | M124: 10 | N124: 80 | P124: 0
C125: 20110105 | D125: 22 | E125: 180 | F125: 0 | G125: 72 | H125: 0 | I125: 2011 | J125: 1 | K125: 5 | L125: 7.2 | M125: 10 | N125: 80 | P125: 0
C126: 20110105 | D126: 23 | E126: 190 | F126: 0 | G126: 72 | H126: 0 | I126: 2011 | J126: 1 | K126: 5 | L126: 7.2 | M126: 10 | N126: 80 | P126: 0
C127: 20110105 | D127: 24 | E127: 190 | F127: 0 | G127: 72 | H127: 0 | I127: 2011 | J127: 1 | K127: 5 | L127: 7.2 | M127: 10 | N127: 80 | P127: 0
C128: 20110106 | D128: 1 | E128: 200 | F128: 0 | G128: 62 | H128: 0 | I128: 2011 | J128: 1 | K128: 6 | L128: 6.2 | M128: 10 | N128: 80 | P128: 0
C129: 20110106 | D129: 2 | E129: 200 | F129: 0 | G129: 62 | H129: 0 | I129: 2011 | J129: 1 | K129: 6 | L129: 6.2 | M129: 10 | N129: 80 | P129: 0
C130: 20110106 | D130: 3 | E130: 200 | F130: 0 | G130: 62 | H130: 0 | I130: 2011 | J130: 1 | K130: 6 | L130: 6.2 | M130: 10 | N130: 80 | P130: 0
C131: 20110106 | D131: 4 | E131: 210 | F131: 0 | G131: 51 | H131: 0 | I131: 2011 | J131: 1 | K131: 6 | L131: 5.1 | M131: 10 | N131: 80 | P131: 0
C132: 20110106 | D132: 5 | E132: 210 | F132: 0 | G132: 51 | H132: 0 | I132: 2011 | J132: 1 | K132: 6 | L132: 5.1 | M132: 10 | N132: 80 | P132: 0
C133: 20110106 | D133: 6 | E133: 210 | F133: 0 | G133: 51 | H133: 0 | I133: 2011 | J133: 1 | K133: 6 | L133: 5.1 | M133: 10 | N133: 80 | P133: 0
C134: 20110106 | D134: 7 | E134: 210 | F134: 0 | G134: 51 | H134: 0 | I134: 2011 | J134: 1 | K134: 6 | L134: 5.1 | M134: 10 | N134: 80 | P134: 0
C135: 20110106 | D135: 8 | E135: 210 | F135: 0 | G135: 51 | H135: 0 | I135: 2011 | J135: 1 | K135: 6 | L135: 5.1 | M135: 10 | N135: 80 | P135: 0
C136: 20110106 | D136: 9 | E136: 200 | F136: 0 | G136: 41 | H136: 0 | I136: 2011 | J136: 1 | K136: 6 | L136: 4.1 | M136: 10 | N136: 80 | P136: 0
C137: 20110106 | D137: 10 | E137: 200 | F137: 0 | G137: 41 | H137: 0 | I137: 2011 | J137: 1 | K137: 6 | L137: 4.1 | M137: 10 | N137: 80 | P137: 0
C138: 20110106 | D138: 11 | E138: 170 | F138: 0 | G138: 41 | H138: 0 | I138: 2011 | J138: 1 | K138: 6 | L138: 4.1 | M138: 10 | N138: 80 | P138: 0
C139: 20110106 | D139: 12 | E139: 160 | F139: 0 | G139: 31 | H139: 0 | I139: 2011 | J139: 1 | K139: 6 | L139: 3.1 | M139: 10 | N139: 80 | P139: 0
C140: 20110106 | D140: 13 | E140: 140 | F140: 0 | G140: 31 | H140: 0 | I140: 2011 | J140: 1 | K140: 6 | L140: 3.1 | M140: 10 | N140: 80 | P140: 0
C141: 20110106 | D141: 14 | E141: 100 | F141: 0 | G141: 21 | H141: 0 | I141: 2011 | J141: 1 | K141: 6 | L141: 2.1 | M141: 10 | N141: 80 | P141: 0
C142: 20110106 | D142: 15 | E142: 70 | F142: 0 | G142: 21 | H142: 0 | I142: 2011 | J142: 1 | K142: 6 | L142: 2.1 | M142: 10 | N142: 80 | P142: 0
C143: 20110106 | D143: 16 | E143: 50 | F143: 0 | G143: 21 | H143: 0 | I143: 2011 | J143: 1 | K143: 6 | L143: 2.1 | M143: 10 | N143: 80 | P143: 0
C144: 20110106 | D144: 17 | E144: 20 | F144: 0 | G144: 34 | H144: 0 | I144: 2011 | J144: 1 | K144: 6 | L144: 3.4 | M144: 10 | N144: 80 | P144: 0
C145: 20110106 | D145: 18 | E145: 360 | F145: 0 | G145: 34 | H145: 0 | I145: 2011 | J145: 1 | K145: 6 | L145: 3.4 | M145: 10 | N145: =$N$7 -> 80 | P145: =IF(L145,O145*L145)*1 -> 0
C146: 20110106 | D146: 19 | E146: 350 | F146: 0 | G146: 57 | H146: 0 | I146: 2011 | J146: 1 | K146: 6 | L146: 5.7 | M146: 10 | N146: 80 | P146: 0
C147: 20110106 | D147: 20 | E147: 330 | F147: 0 | G147: 46 | H147: 0 | I147: 2011 | J147: 1 | K147: 6 | L147: 4.6 | M147: 10 | N147: 80 | P147: 0
C148: 20110106 | D148: 21 | E148: 300 | F148: 0 | G148: 32 | H148: 0 | I148: 2011 | J148: 1 | K148: 6 | L148: 3.2 | M148: 10 | N148: 80 | P148: 0
C149: 20110106 | D149: 22 | E149: 260 | F149: 0 | G149: 31 | H149: 0 | I149: 2011 | J149: 1 | K149: 6 | L149: 3.1 | M149: 10 | N149: 80 | P149: 0
C150: 20110106 | D150: 23 | E150: 250 | F150: 0 | G150: 42 | H150: 0 | I150: 2011 | J150: 1 | K150: 6 | L150: 4.2 | M150: 10 | N150: 80 | P150: 0
C151: 20110106 | D151: 24 | E151: 250 | F151: 0 | G151: 42 | H151: 0 | I151: 2011 | J151: 1 | K151: 6 | L151: 4.2 | M151: 10 | N151: 80 | P151: 0
C152: 20110107 | D152: 1 | E152: 260 | F152: 0 | G152: 31 | H152: 0 | I152: 2011 | J152: 1 | K152: 7 | L152: 3.1 | M152: 10 | N152: 80 | P152: 0
C153: 20110107 | D153: 2 | E153: 200 | F153: 0 | G153: 21 | H153: 0 | I153: 2011 | J153: 1 | K153: 7 | L153: 2.1 | M153: 10 | N153: 80 | P153: 0
C154: 20110107 | D154: 3 | E154: 190 | F154: 0 | G154: 21 | H154: 0 | I154: 2011 | J154: 1 | K154: 7 | L154: 2.1 | M154: 10 | N154: 80 | P154: 0
C155: 20110107 | D155: 4 | E155: 150 | F155: 0 | G155: 10 | H155: 0 | I155: 2011 | J155: 1 | K155: 7 | L155: 1 | M155: 10 | N155: 80 | P155: 0
C156: 20110107 | D156: 5 | E156: 130 | F156: 0 | G156: 10 | H156: 0 | I156: 2011 | J156: 1 | K156: 7 | L156: 1 | M156: 10 | N156: 80 | P156: 0
C157: 20110107 | D157: 6 | E157: 90 | F157: 0 | G157: 21 | H157: 0 | I157: 2011 | J157: 1 | K157: 7 | L157: 2.1 | M157: 10 | N157: 80 | P157: 0
C158: 20110107 | D158: 7 | E158: 110 | F158: 0 | G158: 21 | H158: 0 | I158: 2011 | J158: 1 | K158: 7 | L158: 2.1 | M158: 10 | N158: 80 | P158: 0
C159: 20110107 | D159: 8 | E159: 120 | F159: 0 | G159: 31 | H159: 0 | I159: 2011 | J159: 1 | K159: 7 | L159: 3.1 | M159: 10 | N159: 80 | P159: 0
C160: 20110107 | D160: 9 | E160: 120 | F160: 0 | G160: 42 | H160: 0 | I160: 2011 | J160: 1 | K160: 7 | L160: 4.2 | M160: 10 | N160: 80 | P160: 0
C161: 20110107 | D161: 10 | E161: 120 | F161: 0 | G161: 52 | H161: 0 | I161: 2011 | J161: 1 | K161: 7 | L161: 5.2 | M161: 10 | N161: 80 | P161: 0
C162: 20110107 | D162: 11 | E162: 120 | F162: 0 | G162: 52 | H162: 0 | I162: 2011 | J162: 1 | K162: 7 | L162: 5.2 | M162: 10 | N162: 80 | P162: 0
C163: 20110107 | D163: 12 | E163: 110 | F163: 0 | G163: 63 | H163: 0 | I163: 2011 | J163: 1 | K163: 7 | L163: 6.3 | M163: 10 | N163: 80 | P163: 0
C164: 20110107 | D164: 13 | E164: 120 | F164: 0 | G164: 63 | H164: 0 | I164: 2011 | J164: 1 | K164: 7 | L164: 6.3 | M164: 10 | N164: 80 | P164: 0
C165: 20110107 | D165: 14 | E165: 130 | F165: 0 | G165: 72 | H165: 0 | I165: 2011 | J165: 1 | K165: 7 | L165: 7.2 | M165: 10 | N165: 80 | P165: 0
C166: 20110107 | D166: 15 | E166: 140 | F166: 0 | G166: 52 | H166: 0 | I166: 2011 | J166: 1 | K166: 7 | L166: 5.2 | M166: 10 | N166: 80 | P166: 0
C167: 20110107 | D167: 16 | E167: 150 | F167: 0 | G167: 51 | H167: 0 | I167: 2011 | J167: 1 | K167: 7 | L167: 5.1 | M167: 10 | N167: 80 | P167: 0
C168: 20110107 | D168: 17 | E168: 190 | F168: 0 | G168: 31 | H168: 0 | I168: 2011 | J168: 1 | K168: 7 | L168: 3.1 | M168: 10 | N168: 80 | P168: 0
C169: 20110107 | D169: 18 | E169: 170 | F169: 0 | G169: 41 | H169: 0 | I169: 2011 | J169: 1 | K169: 7 | L169: 4.1 | M169: 10 | N169: 80 | P169: 0
C170: 20110107 | D170: 19 | E170: 180 | F170: 0 | G170: 51 | H170: 0 | I170: 2011 | J170: 1 | K170: 7 | L170: 5.1 | M170: 10 | N170: 80 | P170: 0
C171: 20110107 | D171: 20 | E171: 180 | F171: 0 | G171: 62 | H171: 0 | I171: 2011 | J171: 1 | K171: 7 | L171: 6.2 | M171: 10 | N171: 80 | P171: 0
C172: 20110107 | D172: 21 | E172: 170 | F172: 0 | G172: 62 | H172: 0 | I172: 2011 | J172: 1 | K172: 7 | L172: 6.2 | M172: 10 | N172: 80 | P172: 0
C173: 20110107 | D173: 22 | E173: 180 | F173: 0 | G173: 62 | H173: 0 | I173: 2011 | J173: 1 | K173: 7 | L173: 6.2 | M173: 10 | N173: 80 | P173: 0
C174: 20110107 | D174: 23 | E174: 180 | F174: 0 | G174: 62 | H174: 0 | I174: 2011 | J174: 1 | K174: 7 | L174: 6.2 | M174: 10 | N174: 80 | P174: 0
C175: 20110107 | D175: 24 | E175: 180 | F175: 0 | G175: 62 | H175: 0 | I175: 2011 | J175: 1 | K175: 7 | L175: 6.2 | M175: 10 | N175: 80 | P175: 0
C176: 20110108 | D176: 1 | E176: 190 | F176: 0 | G176: 62 | H176: 0 | I176: 2011 | J176: 1 | K176: 8 | L176: 6.2 | M176: 10 | N176: 80 | P176: 0
C177: 20110108 | D177: 2 | E177: 190 | F177: 0 | G177: 82 | H177: 0 | I177: 2011 | J177: 1 | K177: 8 | L177: 8.2 | M177: 10 | N177: 80 | P177: 0
C178: 20110108 | D178: 3 | E178: 160 | F178: 0 | G178: 81 | H178: 0 | I178: 2011 | J178: 1 | K178: 8 | L178: 8.1 | M178: 10 | N178: 80 | P178: 0
C179: 20110108 | D179: 4 | E179: 160 | F179: 0 | G179: 81 | H179: 0 | I179: 2011 | J179: 1 | K179: 8 | L179: 8.1 | M179: 10 | N179: 80 | P179: 0
C180: 20110108 | D180: 5 | E180: 170 | F180: 0 | G180: 82 | H180: 0 | I180: 2011 | J180: 1 | K180: 8 | L180: 8.2 | M180: 10 | N180: 80 | P180: 0
C181: 20110108 | D181: 6 | E181: 170 | F181: 0 | G181: 82 | H181: 0 | I181: 2011 | J181: 1 | K181: 8 | L181: 8.2 | M181: 10 | N181: 80 | P181: 0
C182: 20110108 | D182: 7 | E182: 170 | F182: 0 | G182: 93 | H182: 0 | I182: 2011 | J182: 1 | K182: 8 | L182: 9.3 | M182: 10 | N182: 80 | P182: 0
C183: 20110108 | D183: 8 | E183: 170 | F183: 0 | G183: 93 | H183: 0 | I183: 2011 | J183: 1 | K183: 8 | L183: 9.3 | M183: 10 | N183: 80 | P183: 0
C184: 20110108 | D184: 9 | E184: 170 | F184: 0 | G184: 93 | H184: 0 | I184: 2011 | J184: 1 | K184: 8 | L184: 9.3 | M184: 10 | N184: 80 | P184: 0
C185: 20110108 | D185: 10 | E185: 190 | F185: 0 | G185: 103 | H185: 0 | I185: 2011 | J185: 1 | K185: 8 | L185: 10.3 | M185: 10 | N185: 80 | P185: 0
C186: 20110108 | D186: 11 | E186: 200 | F186: 0 | G186: 133 | H186: 0 | I186: 2011 | J186: 1 | K186: 8 | L186: 13.3 | M186: 10 | N186: 80 | P186: 0
C187: 20110108 | D187: 12 | E187: 210 | F187: 0 | G187: 133 | H187: 0 | I187: 2011 | J187: 1 | K187: 8 | L187: 13.3 | M187: 10 | N187: 80 | P187: 0
C188: 20110108 | D188: 13 | E188: 220 | F188: 0 | G188: 133 | H188: 0 | I188: 2011 | J188: 1 | K188: 8 | L188: 13.3 | M188: 10 | N188: 80 | P188: 0
C189: 20110108 | D189: 14 | E189: 230 | F189: 0 | G189: 146 | H189: 0 | I189: 2011 | J189: 1 | K189: 8 | L189: 14.6 | M189: 10 | N189: 80 | P189: 0
C190: 20110108 | D190: 15 | E190: 240 | F190: 0 | G190: 125 | H190: 0 | I190: 2011 | J190: 1 | K190: 8 | L190: 12.5 | M190: 10 | N190: 80 | P190: 0
C191: 20110108 | D191: 16 | E191: 240 | F191: 0 | G191: 104 | H191: 0 | I191: 2011 | J191: 1 | K191: 8 | L191: 10.4 | M191: 10 | N191: 80 | P191: 0
C192: 20110108 | D192: 17 | E192: 240 | F192: 0 | G192: 94 | H192: 0 | I192: 2011 | J192: 1 | K192: 8 | L192: 9.4 | M192: 10 | N192: 80 | P192: 0
C193: 20110108 | D193: 18 | E193: 260 | F193: 0 | G193: 73 | H193: 0 | I193: 2011 | J193: 1 | K193: 8 | L193: 7.3 | M193: 10 | N193: 80 | P193: 0
C194: 20110108 | D194: 19 | E194: 260 | F194: 0 | G194: 52 | H194: 0 | I194: 2011 | J194: 1 | K194: 8 | L194: 5.2 | M194: 10 | N194: 80 | P194: 0
C195: 20110108 | D195: 20 | E195: 270 | F195: 0 | G195: 52 | H195: 0 | I195: 2011 | J195: 1 | K195: 8 | L195: 5.2 | M195: 10 | N195: 80 | P195: 0
C196: 20110108 | D196: 21 | E196: 270 | F196: 0 | G196: 41 | H196: 0 | I196: 2011 | J196: 1 | K196: 8 | L196: 4.1 | M196: 10 | N196: 80 | P196: 0
C197: 20110108 | D197: 22 | E197: 260 | F197: 0 | G197: 42 | H197: 0 | I197: 2011 | J197: 1 | K197: 8 | L197: 4.2 | M197: 10 | N197: 80 | P197: 0
C198: 20110108 | D198: 23 | E198: 220 | F198: 0 | G198: 31 | H198: 0 | I198: 2011 | J198: 1 | K198: 8 | L198: 3.1 | M198: 10 | N198: 80 | P198: 0
C199: 20110108 | D199: 24 | E199: 190 | F199: 0 | G199: 31 | H199: 0 | I199: 2011 | J199: 1 | K199: 8 | L199: 3.1 | M199: 10 | N199: 80 | P199: 0
C200: 20110109 | D200: 1 | E200: 210 | F200: 0 | G200: 31 | H200: 0 | I200: 2011 | J200: 1 | K200: 9 | L200: 3.1 | M200: 10 | N200: 80 | P200: 0
... 4300 more rows

Sheet Wind Power Curve
C2: Speed | D2: GE | E2: Gamesa | F2: Simens | H2: M/sec | R2: GE | S2: Vestas
C3: 2 | I3: Vestas | J3: GE | R3: power | S3: power | X3: P50 | Y3: 340.3
C4: 3 | D4: 4 | E4: 13 | F4: 30 | H4: 0 | Q4: speed | R4: MW | S4: MW | X4: 0.01 | Y4: 256.1
C5: 4 | D5: 93 | E5: 89 | F5: 126 | H5: 3 | I5: 12 | J5: 1 | P5: hr 1 | Q5: 2.5 | X5: Std Dev | Y5: 36.19407095 | Z5: =Y5/Y3 -> 0.1063593034
C6: 5 | D6: 320 | E6: 226 | F6: 282 | H6: 3.5 | I6: 50 | J6: 14 | P6: hr 2 | Q6: 4.1 | X6: Compute | Y6: =_xlfn.NORM.INV(X4,Y3,Y5) -> 256.1
C7: 6 | D7: 509 | E7: 421 | F7: 514 | H7: 4 | I7: 106 | J7: 77 | P7: hr 3 | Q7: 6.2 | Y7: =Y6-Y4 -> 0
C8: 7 | D8: 810 | E8: 687 | F8: 836 | H8: 4.5 | I8: 173 | J8: 155 | P8: hr 4 | Q8: 8
C9: 8 | D9: 1189 | E9: 1043 | F9: 1262 | H9: 5 | I9: 248 | J9: 248 | P9: hr 5 | Q9: 7 | X9: P90 | Y9: 0.1
C10: 9 | D10: 1472 | E10: 1464 | F10: 1803 | H10: 5.5 | I10: 338 | J10: 362 | P10: hr 6 | Q10: 9 | Y10: =_xlfn.NORM.INV(Y9,Y3,Y5) -> 293.9154317
C11: 10 | D11: 1596 | E11: 1793 | F11: 2203 | H11: 6 | I11: 443 | J11: 484 | P11: hr 7 | Q11: 8.1
C12: 11 | D12: 1620 | E12: 1943 | F12: 2295 | H12: 6.5 | I12: 556 | J12: 618 | P12: hr 8 | Q12: 9.3
C13: 12 | D13: 1620 | E13: 1987 | F13: 2300 | H13: 7 | I13: 705 | J13: 777 | P13: hr 9 | Q13: 11.2
C14: 13 | D14: 1620 | E14: 1998 | F14: 2300 | H14: 7.5 | I14: 873 | J14: 952 | P14: hr 10 | Q14: 11.1
C15: 14 | D15: 1620 | E15: 2000 | F15: 2300 | H15: 8 | I15: 1063 | J15: 1130 | P15: hr 11 | Q15: 2.3
C16: 15 | D16: 1620 | E16: 2000 | F16: 2300 | H16: 8.5 | I16: 1269 | J16: 1290 | P16: hr 12 | Q16: 17.2
C17: 16 | D17: 1620 | E17: 2000 | F17: 2300 | H17: 9 | I17: 1474 | J17: 1418 | P17: hr 13 | Q17: 1.2
C18: 17 | D18: 1620 | E18: 2000 | F18: 2300 | H18: 9.5 | I18: 1641 | J18: 1512 | P18: hr 14 | Q18: 1.1
C19: 18 | D19: 1620 | E19: 2000 | F19: 2300 | H19: 10 | I19: 1744 | J19: 1570 | P19: hr 15 | Q19: 3
C20: 19 | D20: 1620 | E20: 2000 | F20: 2300 | H20: 10.5 | I20: 1792 | J20: 1593 | P20: hr 16 | Q20: 3.2
C21: 20 | D21: 1620 | E21: 2000 | F21: 2300 | H21: 11 | I21: 1808 | J21: 1608
C22: 21 | D22: 1620 | E22: 2000 | F22: 2300 | H22: 11.5 | I22: 1814 | J22: 1619
C23: 22 | D23: 1620 | E23: 1906 | F23: 2300 | H23: 12 | I23: 1815 | J23: 1620 | P23: Average
C24: 23 | D24: 1620 | E24: 1681 | F24: 2300 | H24: 12.5 | I24: 1815 | J24: 1620 | P24: Capacity | R24: =MAX(J:J) -> 1620 | S24: =MAX(I:I) -> 1815
C25: 24 | D25: 1620 | E25: 1455 | F25: 2300 | H25: 13 | I25: 1815 | J25: 1620 | P25: Capacity Factor
C26: 25 | D26: 1620 | E26: 1230 | F26: 2300 | H26: 13.5 | I26: 1815 | J26: 1620
H27: 14 | I27: 1815 | J27: 1620
H28: 14.5 | I28: 1815 | J28: 1620
H29: 15 | I29: 1815 | J29: 1620
H30: 15.5 | I30: 1815 | J30: 1620
H31: 16 | I31: 1815 | J31: 1620
H32: 16.5 | I32: 1815 | J32: 1620
H33: 17 | I33: 1815 | J33: 1620
H34: 17.5 | I34: 1815 | J34: 1620
H35: 18 | I35: 1815 | J35: 1620
H36: 18.5 | I36: 1815 | J36: 1620
H37: 19 | I37: 1815 | J37: 1620
H38: 19.5 | I38: 1815 | J38: 1620
H39: 20 | I39: 1815 | J39: 1620
P41: 1 | Q41: 5 | R41: 8 | S41: 10
P42: 100 | Q42: 200 | R42: 300 | S42: 400
P43: 1 | Q43: 2 | R43: 3 | S43: 4 | T43: 5 | U43: 6 | V43: 7 | W43: 8 | X43: 9 | Y43: 10
P44: =LOOKUP(P43,41:41,42:42) -> 100 | Q44: =LOOKUP(Q43,41:41,42:42) -> 100 | R44: 100 | S44: 100 | T44: 200 | U44: 200 | V44: 200 | W44: 300 | X44: 300 | Y44: 400
P45: =interpolate_look_up(P43,41:41,42:42) -> 100 | Q45: =interpolate_look_up(Q43,41:41,42:42) -> 118.9207115 | R45: =interpolate_look_up(R43,41:41,42:42) -> 141.4213562 | S45: =interpolate_look_up(S43,41:41,42:42) -> 168.1792831 | T45: =interpolate_look_up(T43,41:41,42:42) -> 200 | U45: =interpolate_look_up(U43,41:41,42:42) -> 228.9428485 | V45: =interpolate_look_up(V43,41:41,42:42) -> 262.0741394 | W45: =interpolate_look_up(W43,41:41,42:42) -> 300 | X45: =interpolate_look_up(X43,41:41,42:42) -> 346.4101615 | Y45: =interpolate_look_up(Y43,41:41,42:42) -> 400

Sheet Shipol Wind Speed
D1: TIME IN GMT | L1: Average | N1: =AVERAGE(N8:N8767) -> 7.378046595
D2: DD = WIND DIRECTION IN DEGREES NORTH | T2: a | U2: 2
D3: QQD = QUALITY CODE DD | L3: Shear | M3: =1/7 -> 0.1428571429 | T3: g | U3: 0.89
D4: UP = POTENTIAL WIND SPEED IN 0.1 M/S | T4: b | U4: =U3*$N$1 -> 6.56646147 | W4: <--- Average x Gamma
D5: QUP = QUALITY CODE UP | L5: Hub
K6: Measure | L6: Height
D7: DATE | E7: TIME | F7: DD | G7: Year | H7: Month | I7: Day | J7: M/sec | K7: Height | L7: 100 | M7: Shear | N7: Adjusted | O7: Round | P7: Production | R7: Speed | S7: Freq | T7: Percent | U7: Weibull
D8: 20110101 | E8: 1 | F8: 260 | G8: 2011 | H8: 1 | I8: 1 | J8: 5.2 | K8: 10 | L8: =$L$7 -> 100 | M8: =(L8/K8)^$M$3 -> 1.389495494 | N8: =IF(J8,M8*J8)*1 -> 7.225376571 | O8: =ROUND(N8,0.5) -> 7 | R8: 0
D9: 20110101 | E9: 2 | F9: 280 | G9: 2011 | H9: 1 | I9: 1 | J9: 6.2 | K9: 10 | L9: 100 | M9: 1.389495494 | N9: 8.614872065 | O9: =ROUND(N9,0.5) -> 9 | R9: 1
D10: 20110101 | E10: 3 | F10: 280 | G10: 2011 | H10: 1 | I10: 1 | J10: 6.2 | K10: 10 | L10: 100 | M10: 1.389495494 | N10: 8.614872065 | O10: 9 | R10: 2
D11: 20110101 | E11: 4 | F11: 270 | G11: 2011 | H11: 1 | I11: 1 | J11: 6.2 | K11: 10 | L11: 100 | M11: 1.389495494 | N11: 8.614872065 | O11: 9 | R11: 3
D12: 20110101 | E12: 5 | F12: 260 | G12: 2011 | H12: 1 | I12: 1 | J12: 5.2 | K12: 10 | L12: 100 | M12: 1.389495494 | N12: 7.225376571 | O12: 7 | R12: 4
D13: 20110101 | E13: 6 | F13: 270 | G13: 2011 | H13: 1 | I13: 1 | J13: 5.2 | K13: 10 | L13: 100 | M13: 1.389495494 | N13: 7.225376571 | O13: 7 | R13: 5
D14: 20110101 | E14: 7 | F14: 270 | G14: 2011 | H14: 1 | I14: 1 | J14: 6.2 | K14: 10 | L14: 100 | M14: 1.389495494 | N14: 8.614872065 | O14: 9 | R14: 6
D15: 20110101 | E15: 8 | F15: 280 | G15: 2011 | H15: 1 | I15: 1 | J15: 6.2 | K15: 10 | L15: 100 | M15: 1.389495494 | N15: 8.614872065 | O15: 9 | R15: 7
D16: 20110101 | E16: 9 | F16: 290 | G16: 2011 | H16: 1 | I16: 1 | J16: 5.3 | K16: 10 | L16: 100 | M16: 1.389495494 | N16: 7.36432612 | O16: 7 | R16: 8
D17: 20110101 | E17: 10 | F17: 320 | G17: 2011 | H17: 1 | I17: 1 | J17: 4.3 | K17: 10 | L17: 100 | M17: 1.389495494 | N17: 5.974830626 | O17: 6 | R17: 9
D18: 20110101 | E18: 11 | F18: 320 | G18: 2011 | H18: 1 | I18: 1 | J18: 3.3 | K18: 10 | L18: 100 | M18: 1.389495494 | N18: 4.585335131 | O18: 5 | R18: 10
D19: 20110101 | E19: 12 | F19: 340 | G19: 2011 | H19: 1 | I19: 1 | J19: 6.9 | K19: 10 | L19: 100 | M19: 1.389495494 | N19: 9.587518911 | O19: 10 | R19: 11
D20: 20110101 | E20: 13 | F20: 330 | G20: 2011 | H20: 1 | I20: 1 | J20: 6.9 | K20: 10 | L20: 100 | M20: 1.389495494 | N20: 9.587518911 | O20: 10 | R20: 12
D21: 20110101 | E21: 14 | F21: 330 | G21: 2011 | H21: 1 | I21: 1 | J21: 6.9 | K21: 10 | L21: 100 | M21: 1.389495494 | N21: 9.587518911 | O21: 10 | R21: 13
D22: 20110101 | E22: 15 | F22: 330 | G22: 2011 | H22: 1 | I22: 1 | J22: 5.7 | K22: 10 | L22: 100 | M22: 1.389495494 | N22: 7.920124318 | O22: 8 | R22: 14
D23: 20110101 | E23: 16 | F23: 330 | G23: 2011 | H23: 1 | I23: 1 | J23: 4.6 | K23: 10 | L23: 100 | M23: 1.389495494 | N23: 6.391679274 | O23: 6 | R23: 15
D24: 20110101 | E24: 17 | F24: 320 | G24: 2011 | H24: 1 | I24: 1 | J24: 4.3 | K24: 10 | L24: 100 | M24: 1.389495494 | N24: 5.974830626 | O24: 6 | R24: 16
D25: 20110101 | E25: 18 | F25: 330 | G25: 2011 | H25: 1 | I25: 1 | J25: 4.6 | K25: 10 | L25: 100 | M25: 1.389495494 | N25: 6.391679274 | O25: 6 | R25: 17
D26: 20110101 | E26: 19 | F26: 340 | G26: 2011 | H26: 1 | I26: 1 | J26: 3.4 | K26: 10 | L26: 100 | M26: 1.389495494 | N26: 4.724284681 | O26: 5 | R26: 18
D27: 20110101 | E27: 20 | F27: 320 | G27: 2011 | H27: 1 | I27: 1 | J27: 4.3 | K27: 10 | L27: 100 | M27: 1.389495494 | N27: 5.974830626 | O27: 6 | R27: 19
D28: 20110101 | E28: 21 | F28: 320 | G28: 2011 | H28: 1 | I28: 1 | J28: 3.3 | K28: 10 | L28: 100 | M28: 1.389495494 | N28: 4.585335131 | O28: 5 | R28: 20
D29: 20110101 | E29: 22 | F29: 310 | G29: 2011 | H29: 1 | I29: 1 | J29: 2.2 | K29: 10 | L29: 100 | M29: 1.389495494 | N29: 3.056890088 | O29: 3 | R29: 21
D30: 20110101 | E30: 23 | F30: 320 | G30: 2011 | H30: 1 | I30: 1 | J30: 2.2 | K30: 10 | L30: 100 | M30: 1.389495494 | N30: 3.056890088 | O30: 3 | R30: 22
D31: 20110101 | E31: 24 | F31: 330 | G31: 2011 | H31: 1 | I31: 1 | J31: 3.4 | K31: 10 | L31: 100 | M31: 1.389495494 | N31: 4.724284681 | O31: 5 | R31: 23
D32: 20110102 | E32: 1 | F32: 300 | G32: 2011 | H32: 1 | I32: 2 | J32: 3.2 | K32: 10 | L32: 100 | M32: 1.389495494 | N32: 4.446385582 | O32: 4 | R32: 24
D33: 20110102 | E33: 2 | F33: 300 | G33: 2011 | H33: 1 | I33: 2 | J33: 2.1 | K33: 10 | L33: 100 | M33: 1.389495494 | N33: 2.917940538 | O33: 3 | R33: 25
D34: 20110102 | E34: 3 | F34: 280 | G34: 2011 | H34: 1 | I34: 2 | J34: 2.1 | K34: 10 | L34: 100 | M34: 1.389495494 | N34: 2.917940538 | O34: 3 | R34: 26
D35: 20110102 | E35: 4 | F35: 300 | G35: 2011 | H35: 1 | I35: 2 | J35: 2.1 | K35: 10 | L35: 100 | M35: 1.389495494 | N35: 2.917940538 | O35: 3 | R35: 27
D36: 20110102 | E36: 5 | F36: 360 | G36: 2011 | H36: 1 | I36: 2 | J36: 4.6 | K36: 10 | L36: 100 | M36: 1.389495494 | N36: 6.391679274 | O36: 6 | R36: 28
D37: 20110102 | E37: 6 | F37: 340 | G37: 2011 | H37: 1 | I37: 2 | J37: 3.4 | K37: 10 | L37: 100 | M37: 1.389495494 | N37: 4.724284681 | O37: 5 | R37: 29
D38: 20110102 | E38: 7 | F38: 320 | G38: 2011 | H38: 1 | I38: 2 | J38: 3.3 | K38: 10 | L38: 100 | M38: 1.389495494 | N38: 4.585335131 | O38: 5 | R38: 30
D39: 20110102 | E39: 8 | F39: 320 | G39: 2011 | H39: 1 | I39: 2 | J39: 2.2 | K39: 10 | L39: 100 | M39: 1.389495494 | N39: 3.056890088 | O39: 3 | R39: 31
D40: 20110102 | E40: 9 | F40: 260 | G40: 2011 | H40: 1 | I40: 2 | J40: 1 | K40: 10 | L40: 100 | M40: 1.389495494 | N40: 1.389495494 | O40: 1 | R40: 32
D41: 20110102 | E41: 10 | F41: 310 | G41: 2011 | H41: 1 | I41: 2 | J41: 3.3 | K41: 10 | L41: 100 | M41: 1.389495494 | N41: 4.585335131 | O41: 5 | R41: 33
D42: 20110102 | E42: 11 | F42: 310 | G42: 2011 | H42: 1 | I42: 2 | J42: 4.3 | K42: 10 | L42: 100 | M42: 1.389495494 | N42: 5.974830626 | O42: 6 | R42: 34
D43: 20110102 | E43: 12 | F43: 310 | G43: 2011 | H43: 1 | I43: 2 | J43: 5.4 | K43: 10 | L43: 100 | M43: 1.389495494 | N43: 7.50327567 | O43: 8 | R43: 35
D44: 20110102 | E44: 13 | F44: 330 | G44: 2011 | H44: 1 | I44: 2 | J44: 6.9 | K44: 10 | L44: 100 | M44: 1.389495494 | N44: 9.587518911 | O44: 10 | R44: 36
D45: 20110102 | E45: 14 | F45: 330 | G45: 2011 | H45: 1 | I45: 2 | J45: 5.7 | K45: 10 | L45: 100 | M45: 1.389495494 | N45: 7.920124318 | O45: 8 | R45: 37
D46: 20110102 | E46: 15 | F46: 310 | G46: 2011 | H46: 1 | I46: 2 | J46: 4.3 | K46: 10 | L46: 100 | M46: 1.389495494 | N46: 5.974830626 | O46: 6 | R46: 38
D47: 20110102 | E47: 16 | F47: 310 | G47: 2011 | H47: 1 | I47: 2 | J47: 4.3 | K47: 10 | L47: 100 | M47: 1.389495494 | N47: 5.974830626 | O47: 6 | R47: 39
D48: 20110102 | E48: 17 | F48: 310 | G48: 2011 | H48: 1 | I48: 2 | J48: 4.3 | K48: 10 | L48: 100 | M48: 1.389495494 | N48: 5.974830626 | O48: 6 | R48: 40
D49: 20110102 | E49: 18 | F49: 310 | G49: 2011 | H49: 1 | I49: 2 | J49: 3.3 | K49: 10 | L49: 100 | M49: 1.389495494 | N49: 4.585335131 | O49: 5
D50: 20110102 | E50: 19 | F50: 310 | G50: 2011 | H50: 1 | I50: 2 | J50: 3.3 | K50: 10 | L50: 100 | M50: 1.389495494 | N50: 4.585335131 | O50: 5
D51: 20110102 | E51: 20 | F51: 320 | G51: 2011 | H51: 1 | I51: 2 | J51: 3.3 | K51: 10 | L51: 100 | M51: 1.389495494 | N51: 4.585335131 | O51: 5
D52: 20110102 | E52: 21 | F52: 310 | G52: 2011 | H52: 1 | I52: 2 | J52: 2.2 | K52: 10 | L52: 100 | M52: 1.389495494 | N52: 3.056890088 | O52: 3
D53: 20110102 | E53: 22 | F53: 300 | G53: 2011 | H53: 1 | I53: 2 | J53: 2.1 | K53: 10 | L53: 100 | M53: 1.389495494 | N53: 2.917940538 | O53: 3
D54: 20110102 | E54: 23 | F54: 260 | G54: 2011 | H54: 1 | I54: 2 | J54: 3.1 | K54: 10 | L54: 100 | M54: 1.389495494 | N54: 4.307436033 | O54: 4
D55: 20110102 | E55: 24 | F55: 260 | G55: 2011 | H55: 1 | I55: 2 | J55: 2.1 | K55: 10 | L55: 100 | M55: 1.389495494 | N55: 2.917940538 | O55: 3
D56: 20110103 | E56: 1 | F56: 260 | G56: 2011 | H56: 1 | I56: 3 | J56: 2.1 | K56: 10 | L56: 100 | M56: 1.389495494 | N56: 2.917940538 | O56: 3
D57: 20110103 | E57: 2 | F57: 270 | G57: 2011 | H57: 1 | I57: 3 | J57: 3.1 | K57: 10 | L57: 100 | M57: 1.389495494 | N57: 4.307436033 | O57: 4
D58: 20110103 | E58: 3 | F58: 270 | G58: 2011 | H58: 1 | I58: 3 | J58: 3.1 | K58: 10 | L58: 100 | M58: 1.389495494 | N58: 4.307436033 | O58: 4
D59: 20110103 | E59: 4 | F59: 290 | G59: 2011 | H59: 1 | I59: 3 | J59: 2.1 | K59: 10 | L59: 100 | M59: 1.389495494 | N59: 2.917940538 | O59: 3
D60: 20110103 | E60: 5 | F60: 230 | G60: 2011 | H60: 1 | I60: 3 | J60: 1 | K60: 10 | L60: 100 | M60: 1.389495494 | N60: 1.389495494 | O60: 1
D61: 20110103 | E61: 6 | F61: 220 | G61: 2011 | H61: 1 | I61: 3 | J61: 2 | K61: 10 | L61: 100 | M61: 1.389495494 | N61: 2.778990989 | O61: 3
D62: 20110103 | E62: 7 | F62: 220 | G62: 2011 | H62: 1 | I62: 3 | J62: 2 | K62: 10 | L62: 100 | M62: 1.389495494 | N62: 2.778990989 | O62: 3
D63: 20110103 | E63: 8 | F63: 200 | G63: 2011 | H63: 1 | I63: 3 | J63: 2.1 | K63: 10 | L63: 100 | M63: 1.389495494 | N63: 2.917940538 | O63: 3
D64: 20110103 | E64: 9 | F64: 230 | G64: 2011 | H64: 1 | I64: 3 | J64: 3.1 | K64: 10 | L64: 100 | M64: 1.389495494 | N64: 4.307436033 | O64: 4
D65: 20110103 | E65: 10 | F65: 250 | G65: 2011 | H65: 1 | I65: 3 | J65: 4.2 | K65: 10 | L65: 100 | M65: 1.389495494 | N65: 5.835881076 | O65: 6
D66: 20110103 | E66: 11 | F66: 230 | G66: 2011 | H66: 1 | I66: 3 | J66: 3.1 | K66: 10 | L66: 100 | M66: 1.389495494 | N66: 4.307436033 | O66: 4
D67: 20110103 | E67: 12 | F67: 220 | G67: 2011 | H67: 1 | I67: 3 | J67: 4.1 | K67: 10 | L67: 100 | M67: 1.389495494 | N67: 5.696931527 | O67: 6
D68: 20110103 | E68: 13 | F68: 230 | G68: 2011 | H68: 1 | I68: 3 | J68: 3.1 | K68: 10 | L68: 100 | M68: 1.389495494 | N68: 4.307436033 | O68: 4
D69: 20110103 | E69: 14 | F69: 220 | G69: 2011 | H69: 1 | I69: 3 | J69: 3.1 | K69: 10 | L69: 100 | M69: 1.389495494 | N69: 4.307436033 | O69: 4
D70: 20110103 | E70: 15 | F70: 220 | G70: 2011 | H70: 1 | I70: 3 | J70: 3.1 | K70: 10 | L70: 100 | M70: 1.389495494 | N70: 4.307436033 | O70: 4
D71: 20110103 | E71: 16 | F71: 260 | G71: 2011 | H71: 1 | I71: 3 | J71: 3.1 | K71: 10 | L71: 100 | M71: 1.389495494 | N71: 4.307436033 | O71: 4
D72: 20110103 | E72: 17 | F72: 220 | G72: 2011 | H72: 1 | I72: 3 | J72: 2 | K72: 10 | L72: =$L$7 -> 100 | M72: =(L72/K72)^$M$3 -> 1.389495494 | N72: =IF(J72,M72*J72)*1 -> 2.778990989 | O72: 3
D73: 20110103 | E73: 18 | F73: 250 | G73: 2011 | H73: 1 | I73: 3 | J73: 3.1 | K73: 10 | L73: 100 | M73: 1.389495494 | N73: 4.307436033 | O73: =ROUND(N73,0.5) -> 4
D74: 20110103 | E74: 19 | F74: 230 | G74: 2011 | H74: 1 | I74: 3 | J74: 3.1 | K74: 10 | L74: 100 | M74: 1.389495494 | N74: 4.307436033 | O74: 4
D75: 20110103 | E75: 20 | F75: 200 | G75: 2011 | H75: 1 | I75: 3 | J75: 3.1 | K75: 10 | L75: 100 | M75: 1.389495494 | N75: 4.307436033 | O75: 4
D76: 20110103 | E76: 21 | F76: 250 | G76: 2011 | H76: 1 | I76: 3 | J76: 4.2 | K76: 10 | L76: 100 | M76: 1.389495494 | N76: 5.835881076 | O76: 6
D77: 20110103 | E77: 22 | F77: 190 | G77: 2011 | H77: 1 | I77: 3 | J77: 3.1 | K77: 10 | L77: 100 | M77: 1.389495494 | N77: 4.307436033 | O77: 4
D78: 20110103 | E78: 23 | F78: 200 | G78: 2011 | H78: 1 | I78: 3 | J78: 3.1 | K78: 10 | L78: 100 | M78: 1.389495494 | N78: 4.307436033 | O78: 4
D79: 20110103 | E79: 24 | F79: 210 | G79: 2011 | H79: 1 | I79: 3 | J79: 3.1 | K79: 10 | L79: 100 | M79: 1.389495494 | N79: 4.307436033 | O79: 4
D80: 20110104 | E80: 1 | F80: 200 | G80: 2011 | H80: 1 | I80: 4 | J80: 3.1 | K80: 10 | L80: 100 | M80: 1.389495494 | N80: 4.307436033 | O80: 4
D81: 20110104 | E81: 2 | F81: 210 | G81: 2011 | H81: 1 | I81: 4 | J81: 3.1 | K81: 10 | L81: 100 | M81: 1.389495494 | N81: 4.307436033 | O81: 4
D82: 20110104 | E82: 3 | F82: 200 | G82: 2011 | H82: 1 | I82: 4 | J82: 4.1 | K82: 10 | L82: 100 | M82: 1.389495494 | N82: 5.696931527 | O82: 6
D83: 20110104 | E83: 4 | F83: 210 | G83: 2011 | H83: 1 | I83: 4 | J83: 5.1 | K83: 10 | L83: 100 | M83: 1.389495494 | N83: 7.086427021 | O83: 7
D84: 20110104 | E84: 5 | F84: 210 | G84: 2011 | H84: 1 | I84: 4 | J84: 5.1 | K84: 10 | L84: 100 | M84: 1.389495494 | N84: 7.086427021 | O84: 7
D85: 20110104 | E85: 6 | F85: 200 | G85: 2011 | H85: 1 | I85: 4 | J85: 4.1 | K85: 10 | L85: 100 | M85: 1.389495494 | N85: 5.696931527 | O85: 6
D86: 20110104 | E86: 7 | F86: 200 | G86: 2011 | H86: 1 | I86: 4 | J86: 5.1 | K86: 10 | L86: 100 | M86: 1.389495494 | N86: 7.086427021 | O86: 7
D87: 20110104 | E87: 8 | F87: 200 | G87: 2011 | H87: 1 | I87: 4 | J87: 6.2 | K87: 10 | L87: 100 | M87: 1.389495494 | N87: 8.614872065 | O87: 9
D88: 20110104 | E88: 9 | F88: 200 | G88: 2011 | H88: 1 | I88: 4 | J88: 6.2 | K88: 10 | L88: 100 | M88: 1.389495494 | N88: 8.614872065 | O88: 9
D89: 20110104 | E89: 10 | F89: 210 | G89: 2011 | H89: 1 | I89: 4 | J89: 6.1 | K89: 10 | L89: 100 | M89: 1.389495494 | N89: 8.475922516 | O89: 8
D90: 20110104 | E90: 11 | F90: 200 | G90: 2011 | H90: 1 | I90: 4 | J90: 7.2 | K90: 10 | L90: 100 | M90: 1.389495494 | N90: 10.00436756 | O90: 10
D91: 20110104 | E91: 12 | F91: 200 | G91: 2011 | H91: 1 | I91: 4 | J91: 7.2 | K91: 10 | L91: 100 | M91: 1.389495494 | N91: 10.00436756 | O91: 10
D92: 20110104 | E92: 13 | F92: 200 | G92: 2011 | H92: 1 | I92: 4 | J92: 8.2 | K92: 10 | L92: 100 | M92: 1.389495494 | N92: 11.39386305 | O92: 11
D93: 20110104 | E93: 14 | F93: 200 | G93: 2011 | H93: 1 | I93: 4 | J93: 8.2 | K93: 10 | L93: 100 | M93: 1.389495494 | N93: 11.39386305 | O93: 11
D94: 20110104 | E94: 15 | F94: 200 | G94: 2011 | H94: 1 | I94: 4 | J94: 7.2 | K94: 10 | L94: 100 | M94: 1.389495494 | N94: 10.00436756 | O94: 10
D95: 20110104 | E95: 16 | F95: 200 | G95: 2011 | H95: 1 | I95: 4 | J95: 7.2 | K95: 10 | L95: 100 | M95: 1.389495494 | N95: 10.00436756 | O95: 10
D96: 20110104 | E96: 17 | F96: 200 | G96: 2011 | H96: 1 | I96: 4 | J96: 6.2 | K96: 10 | L96: 100 | M96: 1.389495494 | N96: 8.614872065 | O96: 9
D97: 20110104 | E97: 18 | F97: 200 | G97: 2011 | H97: 1 | I97: 4 | J97: 7.2 | K97: 10 | L97: 100 | M97: 1.389495494 | N97: 10.00436756 | O97: 10
D98: 20110104 | E98: 19 | F98: 200 | G98: 2011 | H98: 1 | I98: 4 | J98: 7.2 | K98: 10 | L98: 100 | M98: 1.389495494 | N98: 10.00436756 | O98: 10
D99: 20110104 | E99: 20 | F99: 190 | G99: 2011 | H99: 1 | I99: 4 | J99: 7.2 | K99: 10 | L99: 100 | M99: 1.389495494 | N99: 10.00436756 | O99: 10
D100: 20110104 | E100: 21 | F100: 190 | G100: 2011 | H100: 1 | I100: 4 | J100: 7.2 | K100: 10 | L100: 100 | M100: 1.389495494 | N100: 10.00436756 | O100: 10
D101: 20110104 | E101: 22 | F101: 190 | G101: 2011 | H101: 1 | I101: 4 | J101: 7.2 | K101: 10 | L101: 100 | M101: 1.389495494 | N101: 10.00436756 | O101: 10
D102: 20110104 | E102: 23 | F102: 190 | G102: 2011 | H102: 1 | I102: 4 | J102: 7.2 | K102: 10 | L102: 100 | M102: 1.389495494 | N102: 10.00436756 | O102: 10
D103: 20110104 | E103: 24 | F103: 180 | G103: 2011 | H103: 1 | I103: 4 | J103: 7.2 | K103: 10 | L103: 100 | M103: 1.389495494 | N103: 10.00436756 | O103: 10
D104: 20110105 | E104: 1 | F104: 180 | G104: 2011 | H104: 1 | I104: 5 | J104: 7.2 | K104: 10 | L104: 100 | M104: 1.389495494 | N104: 10.00436756 | O104: 10
D105: 20110105 | E105: 2 | F105: 180 | G105: 2011 | H105: 1 | I105: 5 | J105: 7.2 | K105: 10 | L105: 100 | M105: 1.389495494 | N105: 10.00436756 | O105: 10
D106: 20110105 | E106: 3 | F106: 170 | G106: 2011 | H106: 1 | I106: 5 | J106: 5.1 | K106: 10 | L106: 100 | M106: 1.389495494 | N106: 7.086427021 | O106: 7
D107: 20110105 | E107: 4 | F107: 170 | G107: 2011 | H107: 1 | I107: 5 | J107: 5.1 | K107: 10 | L107: 100 | M107: 1.389495494 | N107: 7.086427021 | O107: 7
D108: 20110105 | E108: 5 | F108: 170 | G108: 2011 | H108: 1 | I108: 5 | J108: 6.2 | K108: 10 | L108: 100 | M108: 1.389495494 | N108: 8.614872065 | O108: 9
D109: 20110105 | E109: 6 | F109: 170 | G109: 2011 | H109: 1 | I109: 5 | J109: 7.2 | K109: 10 | L109: 100 | M109: 1.389495494 | N109: 10.00436756 | O109: 10
D110: 20110105 | E110: 7 | F110: 170 | G110: 2011 | H110: 1 | I110: 5 | J110: 7.2 | K110: 10 | L110: 100 | M110: 1.389495494 | N110: 10.00436756 | O110: 10
D111: 20110105 | E111: 8 | F111: 170 | G111: 2011 | H111: 1 | I111: 5 | J111: 7.2 | K111: 10 | L111: 100 | M111: 1.389495494 | N111: 10.00436756 | O111: 10
D112: 20110105 | E112: 9 | F112: 170 | G112: 2011 | H112: 1 | I112: 5 | J112: 7.2 | K112: 10 | L112: 100 | M112: 1.389495494 | N112: 10.00436756 | O112: 10
D113: 20110105 | E113: 10 | F113: 170 | G113: 2011 | H113: 1 | I113: 5 | J113: 7.2 | K113: 10 | L113: 100 | M113: 1.389495494 | N113: 10.00436756 | O113: 10
D114: 20110105 | E114: 11 | F114: 170 | G114: 2011 | H114: 1 | I114: 5 | J114: 7.2 | K114: 10 | L114: 100 | M114: 1.389495494 | N114: 10.00436756 | O114: 10
D115: 20110105 | E115: 12 | F115: 170 | G115: 2011 | H115: 1 | I115: 5 | J115: 6.2 | K115: 10 | L115: 100 | M115: 1.389495494 | N115: 8.614872065 | O115: 9
D116: 20110105 | E116: 13 | F116: 170 | G116: 2011 | H116: 1 | I116: 5 | J116: 8.2 | K116: 10 | L116: 100 | M116: 1.389495494 | N116: 11.39386305 | O116: 11
D117: 20110105 | E117: 14 | F117: 170 | G117: 2011 | H117: 1 | I117: 5 | J117: 8.2 | K117: 10 | L117: 100 | M117: 1.389495494 | N117: 11.39386305 | O117: 11
D118: 20110105 | E118: 15 | F118: 160 | G118: 2011 | H118: 1 | I118: 5 | J118: 7.1 | K118: 10 | L118: 100 | M118: 1.389495494 | N118: 9.86541801 | O118: 10
D119: 20110105 | E119: 16 | F119: 150 | G119: 2011 | H119: 1 | I119: 5 | J119: 7.1 | K119: 10 | L119: 100 | M119: 1.389495494 | N119: 9.86541801 | O119: 10
D120: 20110105 | E120: 17 | F120: 150 | G120: 2011 | H120: 1 | I120: 5 | J120: 7.1 | K120: 10 | L120: 100 | M120: 1.389495494 | N120: 9.86541801 | O120: 10
D121: 20110105 | E121: 18 | F121: 150 | G121: 2011 | H121: 1 | I121: 5 | J121: 8.1 | K121: 10 | L121: 100 | M121: 1.389495494 | N121: 11.2549135 | O121: 11
D122: 20110105 | E122: 19 | F122: 160 | G122: 2011 | H122: 1 | I122: 5 | J122: 8.1 | K122: 10 | L122: 100 | M122: 1.389495494 | N122: 11.2549135 | O122: 11
D123: 20110105 | E123: 20 | F123: 170 | G123: 2011 | H123: 1 | I123: 5 | J123: 7.2 | K123: 10 | L123: 100 | M123: 1.389495494 | N123: 10.00436756 | O123: 10
D124: 20110105 | E124: 21 | F124: 170 | G124: 2011 | H124: 1 | I124: 5 | J124: 7.2 | K124: 10 | L124: 100 | M124: 1.389495494 | N124: 10.00436756 | O124: 10
D125: 20110105 | E125: 22 | F125: 180 | G125: 2011 | H125: 1 | I125: 5 | J125: 7.2 | K125: 10 | L125: 100 | M125: 1.389495494 | N125: 10.00436756 | O125: 10
D126: 20110105 | E126: 23 | F126: 190 | G126: 2011 | H126: 1 | I126: 5 | J126: 7.2 | K126: 10 | L126: 100 | M126: 1.389495494 | N126: 10.00436756 | O126: 10
D127: 20110105 | E127: 24 | F127: 190 | G127: 2011 | H127: 1 | I127: 5 | J127: 7.2 | K127: 10 | L127: 100 | M127: 1.389495494 | N127: 10.00436756 | O127: 10
D128: 20110106 | E128: 1 | F128: 200 | G128: 2011 | H128: 1 | I128: 6 | J128: 6.2 | K128: 10 | L128: 100 | M128: 1.389495494 | N128: 8.614872065 | O128: 9
D129: 20110106 | E129: 2 | F129: 200 | G129: 2011 | H129: 1 | I129: 6 | J129: 6.2 | K129: 10 | L129: 100 | M129: 1.389495494 | N129: 8.614872065 | O129: 9
D130: 20110106 | E130: 3 | F130: 200 | G130: 2011 | H130: 1 | I130: 6 | J130: 6.2 | K130: 10 | L130: 100 | M130: 1.389495494 | N130: 8.614872065 | O130: 9
D131: 20110106 | E131: 4 | F131: 210 | G131: 2011 | H131: 1 | I131: 6 | J131: 5.1 | K131: 10 | L131: 100 | M131: 1.389495494 | N131: 7.086427021 | O131: 7
D132: 20110106 | E132: 5 | F132: 210 | G132: 2011 | H132: 1 | I132: 6 | J132: 5.1 | K132: 10 | L132: 100 | M132: 1.389495494 | N132: 7.086427021 | O132: 7
D133: 20110106 | E133: 6 | F133: 210 | G133: 2011 | H133: 1 | I133: 6 | J133: 5.1 | K133: 10 | L133: 100 | M133: 1.389495494 | N133: 7.086427021 | O133: 7
D134: 20110106 | E134: 7 | F134: 210 | G134: 2011 | H134: 1 | I134: 6 | J134: 5.1 | K134: 10 | L134: 100 | M134: 1.389495494 | N134: 7.086427021 | O134: 7
D135: 20110106 | E135: 8 | F135: 210 | G135: 2011 | H135: 1 | I135: 6 | J135: 5.1 | K135: 10 | L135: 100 | M135: 1.389495494 | N135: 7.086427021 | O135: 7
D136: 20110106 | E136: 9 | F136: 200 | G136: 2011 | H136: 1 | I136: 6 | J136: 4.1 | K136: 10 | L136: =$L$7 -> 100 | M136: =(L136/K136)^$M$3 -> 1.389495494 | N136: =IF(J136,M136*J136)*1 -> 5.696931527 | O136: 6
D137: 20110106 | E137: 10 | F137: 200 | G137: 2011 | H137: 1 | I137: 6 | J137: 4.1 | K137: 10 | L137: 100 | M137: 1.389495494 | N137: 5.696931527 | O137: =ROUND(N137,0.5) -> 6
D138: 20110106 | E138: 11 | F138: 170 | G138: 2011 | H138: 1 | I138: 6 | J138: 4.1 | K138: 10 | L138: 100 | M138: 1.389495494 | N138: 5.696931527 | O138: 6
D139: 20110106 | E139: 12 | F139: 160 | G139: 2011 | H139: 1 | I139: 6 | J139: 3.1 | K139: 10 | L139: 100 | M139: 1.389495494 | N139: 4.307436033 | O139: 4
D140: 20110106 | E140: 13 | F140: 140 | G140: 2011 | H140: 1 | I140: 6 | J140: 3.1 | K140: 10 | L140: 100 | M140: 1.389495494 | N140: 4.307436033 | O140: 4
D141: 20110106 | E141: 14 | F141: 100 | G141: 2011 | H141: 1 | I141: 6 | J141: 2.1 | K141: 10 | L141: 100 | M141: 1.389495494 | N141: 2.917940538 | O141: 3
D142: 20110106 | E142: 15 | F142: 70 | G142: 2011 | H142: 1 | I142: 6 | J142: 2.1 | K142: 10 | L142: 100 | M142: 1.389495494 | N142: 2.917940538 | O142: 3
D143: 20110106 | E143: 16 | F143: 50 | G143: 2011 | H143: 1 | I143: 6 | J143: 2.1 | K143: 10 | L143: 100 | M143: 1.389495494 | N143: 2.917940538 | O143: 3
D144: 20110106 | E144: 17 | F144: 20 | G144: 2011 | H144: 1 | I144: 6 | J144: 3.4 | K144: 10 | L144: 100 | M144: 1.389495494 | N144: 4.724284681 | O144: 5
D145: 20110106 | E145: 18 | F145: 360 | G145: 2011 | H145: 1 | I145: 6 | J145: 3.4 | K145: 10 | L145: 100 | M145: 1.389495494 | N145: 4.724284681 | O145: 5
D146: 20110106 | E146: 19 | F146: 350 | G146: 2011 | H146: 1 | I146: 6 | J146: 5.7 | K146: 10 | L146: 100 | M146: 1.389495494 | N146: 7.920124318 | O146: 8
D147: 20110106 | E147: 20 | F147: 330 | G147: 2011 | H147: 1 | I147: 6 | J147: 4.6 | K147: 10 | L147: 100 | M147: 1.389495494 | N147: 6.391679274 | O147: 6
D148: 20110106 | E148: 21 | F148: 300 | G148: 2011 | H148: 1 | I148: 6 | J148: 3.2 | K148: 10 | L148: 100 | M148: 1.389495494 | N148: 4.446385582 | O148: 4
D149: 20110106 | E149: 22 | F149: 260 | G149: 2011 | H149: 1 | I149: 6 | J149: 3.1 | K149: 10 | L149: 100 | M149: 1.389495494 | N149: 4.307436033 | O149: 4
D150: 20110106 | E150: 23 | F150: 250 | G150: 2011 | H150: 1 | I150: 6 | J150: 4.2 | K150: 10 | L150: 100 | M150: 1.389495494 | N150: 5.835881076 | O150: 6
D151: 20110106 | E151: 24 | F151: 250 | G151: 2011 | H151: 1 | I151: 6 | J151: 4.2 | K151: 10 | L151: 100 | M151: 1.389495494 | N151: 5.835881076 | O151: 6
D152: 20110107 | E152: 1 | F152: 260 | G152: 2011 | H152: 1 | I152: 7 | J152: 3.1 | K152: 10 | L152: 100 | M152: 1.389495494 | N152: 4.307436033 | O152: 4
D153: 20110107 | E153: 2 | F153: 200 | G153: 2011 | H153: 1 | I153: 7 | J153: 2.1 | K153: 10 | L153: 100 | M153: 1.389495494 | N153: 2.917940538 | O153: 3
D154: 20110107 | E154: 3 | F154: 190 | G154: 2011 | H154: 1 | I154: 7 | J154: 2.1 | K154: 10 | L154: 100 | M154: 1.389495494 | N154: 2.917940538 | O154: 3
D155: 20110107 | E155: 4 | F155: 150 | G155: 2011 | H155: 1 | I155: 7 | J155: 1 | K155: 10 | L155: 100 | M155: 1.389495494 | N155: 1.389495494 | O155: 1
D156: 20110107 | E156: 5 | F156: 130 | G156: 2011 | H156: 1 | I156: 7 | J156: 1 | K156: 10 | L156: 100 | M156: 1.389495494 | N156: 1.389495494 | O156: 1
D157: 20110107 | E157: 6 | F157: 90 | G157: 2011 | H157: 1 | I157: 7 | J157: 2.1 | K157: 10 | L157: 100 | M157: 1.389495494 | N157: 2.917940538 | O157: 3
D158: 20110107 | E158: 7 | F158: 110 | G158: 2011 | H158: 1 | I158: 7 | J158: 2.1 | K158: 10 | L158: 100 | M158: 1.389495494 | N158: 2.917940538 | O158: 3
D159: 20110107 | E159: 8 | F159: 120 | G159: 2011 | H159: 1 | I159: 7 | J159: 3.1 | K159: 10 | L159: 100 | M159: 1.389495494 | N159: 4.307436033 | O159: 4
D160: 20110107 | E160: 9 | F160: 120 | G160: 2011 | H160: 1 | I160: 7 | J160: 4.2 | K160: 10 | L160: 100 | M160: 1.389495494 | N160: 5.835881076 | O160: 6
D161: 20110107 | E161: 10 | F161: 120 | G161: 2011 | H161: 1 | I161: 7 | J161: 5.2 | K161: 10 | L161: 100 | M161: 1.389495494 | N161: 7.225376571 | O161: 7
D162: 20110107 | E162: 11 | F162: 120 | G162: 2011 | H162: 1 | I162: 7 | J162: 5.2 | K162: 10 | L162: 100 | M162: 1.389495494 | N162: 7.225376571 | O162: 7
D163: 20110107 | E163: 12 | F163: 110 | G163: 2011 | H163: 1 | I163: 7 | J163: 6.3 | K163: 10 | L163: 100 | M163: 1.389495494 | N163: 8.753821615 | O163: 9
D164: 20110107 | E164: 13 | F164: 120 | G164: 2011 | H164: 1 | I164: 7 | J164: 6.3 | K164: 10 | L164: 100 | M164: 1.389495494 | N164: 8.753821615 | O164: 9
D165: 20110107 | E165: 14 | F165: 130 | G165: 2011 | H165: 1 | I165: 7 | J165: 7.2 | K165: 10 | L165: 100 | M165: 1.389495494 | N165: 10.00436756 | O165: 10
D166: 20110107 | E166: 15 | F166: 140 | G166: 2011 | H166: 1 | I166: 7 | J166: 5.2 | K166: 10 | L166: 100 | M166: 1.389495494 | N166: 7.225376571 | O166: 7
D167: 20110107 | E167: 16 | F167: 150 | G167: 2011 | H167: 1 | I167: 7 | J167: 5.1 | K167: 10 | L167: 100 | M167: 1.389495494 | N167: 7.086427021 | O167: 7
D168: 20110107 | E168: 17 | F168: 190 | G168: 2011 | H168: 1 | I168: 7 | J168: 3.1 | K168: 10 | L168: 100 | M168: 1.389495494 | N168: 4.307436033 | O168: 4
D169: 20110107 | E169: 18 | F169: 170 | G169: 2011 | H169: 1 | I169: 7 | J169: 4.1 | K169: 10 | L169: 100 | M169: 1.389495494 | N169: 5.696931527 | O169: 6
D170: 20110107 | E170: 19 | F170: 180 | G170: 2011 | H170: 1 | I170: 7 | J170: 5.1 | K170: 10 | L170: 100 | M170: 1.389495494 | N170: 7.086427021 | O170: 7
D171: 20110107 | E171: 20 | F171: 180 | G171: 2011 | H171: 1 | I171: 7 | J171: 6.2 | K171: 10 | L171: 100 | M171: 1.389495494 | N171: 8.614872065 | O171: 9
D172: 20110107 | E172: 21 | F172: 170 | G172: 2011 | H172: 1 | I172: 7 | J172: 6.2 | K172: 10 | L172: 100 | M172: 1.389495494 | N172: 8.614872065 | O172: 9
D173: 20110107 | E173: 22 | F173: 180 | G173: 2011 | H173: 1 | I173: 7 | J173: 6.2 | K173: 10 | L173: 100 | M173: 1.389495494 | N173: 8.614872065 | O173: 9
D174: 20110107 | E174: 23 | F174: 180 | G174: 2011 | H174: 1 | I174: 7 | J174: 6.2 | K174: 10 | L174: 100 | M174: 1.389495494 | N174: 8.614872065 | O174: 9
D175: 20110107 | E175: 24 | F175: 180 | G175: 2011 | H175: 1 | I175: 7 | J175: 6.2 | K175: 10 | L175: 100 | M175: 1.389495494 | N175: 8.614872065 | O175: 9
D176: 20110108 | E176: 1 | F176: 190 | G176: 2011 | H176: 1 | I176: 8 | J176: 6.2 | K176: 10 | L176: 100 | M176: 1.389495494 | N176: 8.614872065 | O176: 9
D177: 20110108 | E177: 2 | F177: 190 | G177: 2011 | H177: 1 | I177: 8 | J177: 8.2 | K177: 10 | L177: 100 | M177: 1.389495494 | N177: 11.39386305 | O177: 11
D178: 20110108 | E178: 3 | F178: 160 | G178: 2011 | H178: 1 | I178: 8 | J178: 8.1 | K178: 10 | L178: 100 | M178: 1.389495494 | N178: 11.2549135 | O178: 11
D179: 20110108 | E179: 4 | F179: 160 | G179: 2011 | H179: 1 | I179: 8 | J179: 8.1 | K179: 10 | L179: 100 | M179: 1.389495494 | N179: 11.2549135 | O179: 11
D180: 20110108 | E180: 5 | F180: 170 | G180: 2011 | H180: 1 | I180: 8 | J180: 8.2 | K180: 10 | L180: 100 | M180: 1.389495494 | N180: 11.39386305 | O180: 11
D181: 20110108 | E181: 6 | F181: 170 | G181: 2011 | H181: 1 | I181: 8 | J181: 8.2 | K181: 10 | L181: 100 | M181: 1.389495494 | N181: 11.39386305 | O181: 11
D182: 20110108 | E182: 7 | F182: 170 | G182: 2011 | H182: 1 | I182: 8 | J182: 9.3 | K182: 10 | L182: 100 | M182: 1.389495494 | N182: 12.9223081 | O182: 13
D183: 20110108 | E183: 8 | F183: 170 | G183: 2011 | H183: 1 | I183: 8 | J183: 9.3 | K183: 10 | L183: 100 | M183: 1.389495494 | N183: 12.9223081 | O183: 13
D184: 20110108 | E184: 9 | F184: 170 | G184: 2011 | H184: 1 | I184: 8 | J184: 9.3 | K184: 10 | L184: 100 | M184: 1.389495494 | N184: 12.9223081 | O184: 13
D185: 20110108 | E185: 10 | F185: 190 | G185: 2011 | H185: 1 | I185: 8 | J185: 10.3 | K185: 10 | L185: 100 | M185: 1.389495494 | N185: 14.31180359 | O185: 14
D186: 20110108 | E186: 11 | F186: 200 | G186: 2011 | H186: 1 | I186: 8 | J186: 13.3 | K186: 10 | L186: 100 | M186: 1.389495494 | N186: 18.48029008 | O186: 18
D187: 20110108 | E187: 12 | F187: 210 | G187: 2011 | H187: 1 | I187: 8 | J187: 13.3 | K187: 10 | L187: 100 | M187: 1.389495494 | N187: 18.48029008 | O187: 18
D188: 20110108 | E188: 13 | F188: 220 | G188: 2011 | H188: 1 | I188: 8 | J188: 13.3 | K188: 10 | L188: 100 | M188: 1.389495494 | N188: 18.48029008 | O188: 18
D189: 20110108 | E189: 14 | F189: 230 | G189: 2011 | H189: 1 | I189: 8 | J189: 14.6 | K189: 10 | L189: 100 | M189: 1.389495494 | N189: 20.28663422 | O189: 20
D190: 20110108 | E190: 15 | F190: 240 | G190: 2011 | H190: 1 | I190: 8 | J190: 12.5 | K190: 10 | L190: 100 | M190: 1.389495494 | N190: 17.36869368 | O190: 17
D191: 20110108 | E191: 16 | F191: 240 | G191: 2011 | H191: 1 | I191: 8 | J191: 10.4 | K191: 10 | L191: 100 | M191: 1.389495494 | N191: 14.45075314 | O191: 14
D192: 20110108 | E192: 17 | F192: 240 | G192: 2011 | H192: 1 | I192: 8 | J192: 9.4 | K192: 10 | L192: 100 | M192: 1.389495494 | N192: 13.06125765 | O192: 13
D193: 20110108 | E193: 18 | F193: 260 | G193: 2011 | H193: 1 | I193: 8 | J193: 7.3 | K193: 10 | L193: 100 | M193: 1.389495494 | N193: 10.14331711 | O193: 10
D194: 20110108 | E194: 19 | F194: 260 | G194: 2011 | H194: 1 | I194: 8 | J194: 5.2 | K194: 10 | L194: 100 | M194: 1.389495494 | N194: 7.225376571 | O194: 7
D195: 20110108 | E195: 20 | F195: 270 | G195: 2011 | H195: 1 | I195: 8 | J195: 5.2 | K195: 10 | L195: 100 | M195: 1.389495494 | N195: 7.225376571 | O195: 7
D196: 20110108 | E196: 21 | F196: 270 | G196: 2011 | H196: 1 | I196: 8 | J196: 4.1 | K196: 10 | L196: 100 | M196: 1.389495494 | N196: 5.696931527 | O196: 6
D197: 20110108 | E197: 22 | F197: 260 | G197: 2011 | H197: 1 | I197: 8 | J197: 4.2 | K197: 10 | L197: 100 | M197: 1.389495494 | N197: 5.835881076 | O197: 6
D198: 20110108 | E198: 23 | F198: 220 | G198: 2011 | H198: 1 | I198: 8 | J198: 3.1 | K198: 10 | L198: 100 | M198: 1.389495494 | N198: 4.307436033 | O198: 4
D199: 20110108 | E199: 24 | F199: 190 | G199: 2011 | H199: 1 | I199: 8 | J199: 3.1 | K199: 10 | L199: 100 | M199: 1.389495494 | N199: 4.307436033 | O199: 4
D200: 20110109 | E200: 1 | F200: 210 | G200: 2011 | H200: 1 | I200: 9 | J200: 3.1 | K200: 10 | L200: =$L$7 -> 100 | M200: =(L200/K200)^$M$3 -> 1.389495494 | N200: =IF(J200,M200*J200)*1 -> 4.307436033 | O200: 4
... 4300 more rows

Sheet Wind Speed and Weibull
P1: Avg | Q1: 9.6 | R1: 4.89
P2: a | Q2: 2 | R2: 2
P3: g | Q3: 0.89 | R3: 0.89
Q5: Probability | R5: Probability
Q6: Weibull | R6: Weibull
P7: 0 | Q7: =_xlfn.WEIBULL.DIST($P7,Q$2,Q$3*Q$1,0)/2 -> 0 | R7: =_xlfn.WEIBULL.DIST($P7,R$2,R$3*R$1,0)/2 -> 0
P8: 0.5 | Q8: =_xlfn.WEIBULL.DIST($P8,Q$2,Q$3*Q$1,0)/2 -> 0.006825904593 | R8: 0.02605193605
P9: 1 | Q9: 0.0135122688 | R9: 0.05008102294
P10: 1.5 | Q10: 0.01992429573 | R10: 0.07032392522
P11: 2 | Q11: 0.02593645029 | R11: 0.0854901255
P12: 2.5 | Q12: 0.0314365407 | R12: 0.09489329862
P13: 3 | Q13: 0.03632917814 | R13: 0.09848312635
P14: 3.5 | Q14: 0.04053846663 | R14: 0.09678077935
P15: 4 | Q15: 0.04400982046 | R15: 0.09073963372
P16: 4.5 | Q16: 0.04671085636 | R16: 0.08156446004
P17: 5 | Q17: 0.04863135917 | R17: 0.07052536436
P18: 5.5 | Q18: 0.04978236883 | R18: 0.05879770399
P19: 6 | Q19: 0.0501944803 | R19: 0.04734855543
P20: 6.5 | Q20: 0.04991548428 | R20: 0.03687755388
P21: 7 | Q21: 0.04900750249 | R21: 0.02780836898
P22: 7.5 | Q22: 0.04754378683 | R22: 0.02031902805
P23: 8 | Q23: 0.04560535568 | R23: 0.01439565082
P24: 8.5 | Q24: 0.04327763474 | R24: 0.009894534205
P25: 9 | Q25: 0.04064725386 | R25: 0.006600692648
P26: 9.5 | Q26: 0.03779912898 | R26: 0.004275398899
P27: 10 | Q27: 0.03481392996 | R27: 0.002689642332
P28: 10.5 | Q28: 0.03176600444 | R28: 0.001643844706
P29: 11 | Q29: 0.0287217963 | R29: 0.000976284944
P30: 11.5 | Q30: 0.0257387677 | R30: 0.0005635463309
P31: 12 | Q31: 0.02286480652 | R31: 0.0003162251252
P32: 12.5 | Q32: 0.02013807946 | R32: 0.0001725217848
P33: 13 | Q33: 0.01758727359 | R33: 9.152327352e-05
P34: 13.5 | Q34: 0.01523215827 | R34: 4.721844559e-05
P35: 14 | Q35: 0.01308439349 | R35: 2.369360476e-05
P36: 14.5 | Q36: 0.01114850995 | R36: 1.15646303e-05
P37: 15 | Q37: 0.009422989855 | R37: 5.490995897e-06
P38: 15.5 | Q38: 0.007901384227 | R38: 2.536431443e-06
P39: 16 | Q39: 0.006573412126 | R39: 1.139930685e-06
P40: 16.5 | Q40: 0.005425997595 | R40: 4.984767407e-07
P41: 17 | Q41: 0.004444211568 | R41: 2.121034974e-07
P42: 17.5 | Q42: 0.003612096812 | R42: 8.782342549e-08
P43: 18 | Q43: 0.00291336397 | R43: 3.538781152e-08
P44: 18.5 | Q44: 0.002331955467 | R44: 1.387705363e-08
P45: 19 | Q45: 0.001852481106 | R45: 5.296133681e-09
P46: 19.5 | Q46: 0.001460534557 | R46: 1.967230322e-09
P47: 20 | Q47: 0.0011429037 | R47: 7.112156687e-10
P48: 20.5 | Q48: 0.0008876899419 | R48: 2.502714816e-10
P49: 21 | Q49: 0.0006843525744 | R49: 8.572321346e-11
P50: 21.5 | Q50: 0.0005236940273 | R50: 2.858082191e-11
P51: 22 | Q51: 0.0003978009076 | R51: 9.27580269e-12
P52: 22.5 | Q52: 0.0002999541759 | R52: 2.930484089e-12
P53: 23 | Q53: 0.000224519938 | R53: 9.012560135e-13
P54: 23.5 | Q54: 0.0001668303269 | R54: 2.698280861e-13
P55: 24 | Q55: 0.0001230619574 | R55: 7.864388234e-14
P56: 24.5 | Q56: 9.011757102e-05 | R56: 2.231462851e-14
P57: 25 | Q57: 6.551482656e-05 | R57: 6.164089283e-15
P58: 25.5 | Q58: 4.728477631e-05 | R58: 1.657715082e-15
P59: 26 | Q59: 3.388140844e-05 | R59: 4.340295654e-16
P60: 26.5 | Q60: 2.410273402e-05 | R60: 1.10637807e-16
P61: 27 | Q61: 1.702322749e-05 | R61: 2.745798286e-17
P62: 27.5 | Q62: 1.193696484e-05 | R62: 6.634683358e-18
P63: 28 | Q63: 8.31051068e-06 | R63: 1.560858887e-18
P64: 28.5 | Q64: 5.744448999e-06 | R64: 3.575230399e-19
P65: 29 | Q65: 3.942400407e-06 | R65: 7.973448579e-20
P66: 29.5 | Q66: 2.686391729e-06 | R66: 1.731389195e-20
P67: 30 | Q67: 1.817517289e-06 | R67: 3.660613608e-21
P68: 30.5 | Q68: 1.220934831e-06 | R68: 7.535774322e-22
Q70: =SUM(Q7:Q68) -> 0.9994266751 | R70: =SUM(R7:R68) -> 0.9977972476

Sheet Power_curves
E1: http://www.thewindpower.net
E4: Wind Speed | G4: - | H4: 0 | I4: =H4+0.5 -> 0.5 | J4: =I4+0.5 -> 1 | K4: 1.5 | L4: 2 | M4: 2.5 | N4: 3 | O4: 3.5 | P4: 4 | Q4: 4.5 | R4: 5 | S4: 5.5 | T4: 6 | U4: 6.5 | V4: 7 | W4: 7.5 | X4: 8 | Y4: 8.5 | Z4: 9 | AA4: 9.5 | AB4: 10 | AC4: 10.5 | AD4: 11 | AE4: 11.5 | AF4: 12 | AG4: 12.5 | AH4: 13 | AI4: 13.5 | AJ4: 14 | AK4: 14.5 | AL4: 15 | AM4: 15.5 | AN4: 16 | AO4: 16.5 | AP4: 17 | AQ4: 17.5 | AR4: 18 | AS4: 18.5 | AT4: 19 | AU4: 19.5 | AV4: 20 | AW4: 20.5 | AX4: 21 | AY4: 21.5 | AZ4: 22 | BA4: 22.5 | BB4: 23 | BC4: 23.5 | BD4: 24 | BE4: 24.5 | BF4: 25 | BG4: 25.5 | BH4: 26 | BI4: 26.5 | BJ4: 27 | BK4: 27.5 | BL4: 28 | BM4: 28.5 | BN4: 29 | BO4: 29.5 | BP4: 30 | BQ4: 30.5 | BR4: 31 | BS4: 31.5 | BT4: 32 | BU4: 32.5 | BV4: =BU4+0.5 -> 33 | BW4: =BV4+0.5 -> 33.5 | BX4: =BW4+0.5 -> 34 | BY4: =BX4+0.5 -> 34.5 | BZ4: =BY4+0.5 -> 35
B6: Production
D7: 3 | E7: Enercon | F7: 495 | G7: E82/2300 | H7: 0 | I7: 0 | J7: 0 | K7: 0 | L7: 3 | M7: 12 | N7: 25 | O7: 50 | P7: 82 | Q7: 125 | R7: 174 | S7: 245 | T7: 321 | U7: 427 | V7: 532 | W7: 674 | X7: 815 | Y7: 998 | Z7: 1180 | AA7: 1380 | AB7: 1580 | AC7: 1735 | AD7: 1890 | AE7: 1995 | AF7: 2100 | AG7: 2175 | AH7: 2240 | AI7: 2280 | AJ7: 2300 | AK7: 2300 | AL7: 2300 | AM7: 2300 | AN7: 2300 | AO7: 2300 | AP7: 2300 | AQ7: 2300 | AR7: 2300 | AS7: 2300 | AT7: 2300 | AU7: 2300 | AV7: 2300 | AW7: 2300 | AX7: 2300 | AY7: 2300 | AZ7: 2300 | BA7: 2300 | BB7: 2300 | BC7: 2300 | BD7: 2300 | BE7: 2300 | BF7: 2300 | BG7: 0 | BH7: 0 | BI7: 0 | BJ7: 0 | BK7: 0 | BL7: 0 | BM7: 0 | BN7: 0 | BO7: 0 | BP7: 0 | BQ7: 0 | BR7: 0 | BS7: 0 | BT7: 0 | BU7: 0 | BV7: 0 | BW7: 0 | BX7: 0 | BY7: 0 | BZ7: 0
D8: 4 | E8: Gamesa | F8: 81 | G8: G128/4500 | H8: 0 | I8: 0 | J8: 0 | K8: 0 | L8: 75 | M8: 120 | N8: 165 | O8: 230 | P8: 300 | Q8: 450 | R8: 600 | S8: 760 | T8: 967 | U8: 1250 | V8: 1533 | W8: 1870 | X8: 2200 | Y8: 2620 | Z8: 3018 | AA8: 3450 | AB8: 3774 | AC8: 4080 | AD8: 4314 | AE8: 4430 | AF8: 4490 | AG8: 4500 | AH8: 4500 | AI8: 4500 | AJ8: 4500 | AK8: 4500 | AL8: 4500 | AM8: 4500 | AN8: 4500 | AO8: 4500 | AP8: 4500 | AQ8: 4500 | AR8: 4500 | AS8: 4403 | AT8: 4306 | AU8: 4210 | AV8: 4113 | AW8: 4016 | AX8: 3919 | AY8: 3823 | AZ8: 3725 | BA8: 3629 | BB8: 3532 | BC8: 3435 | BD8: 3339 | BE8: 3242 | BF8: 3145 | BG8: 3048 | BH8: 2950 | BI8: 2855 | BJ8: 2758 | BK8: 0 | BL8: 0 | BM8: 0 | BN8: 0 | BO8: 0 | BP8: 0 | BQ8: 0 | BR8: 0 | BS8: 0 | BT8: 0 | BU8: 0 | BV8: 0 | BW8: 0 | BX8: 0 | BY8: 0 | BZ8: 0
D9: 8 | E9: Nordex | F9: 7 | G9: N90/2500 | H9: 0 | I9: 0 | J9: 0 | K9: 0 | L9: 0 | M9: 0 | N9: 5 | O9: 17 | P9: 62 | Q9: 119 | R9: 188 | S9: 269 | T9: 363 | U9: 472 | V9: 599 | W9: 746 | X9: 912 | Y9: 1097 | Z9: 1299 | AA9: 1515 | AB9: 1744 | AC9: 1969 | AD9: 2149 | AE9: 2288 | AF9: 2389 | AG9: 2456 | AH9: 2492 | AI9: 2500 | AJ9: 2500 | AK9: 2500 | AL9: 2500 | AM9: 2500 | AN9: 2500 | AO9: 2500 | AP9: 2500 | AQ9: 2500 | AR9: 2500 | AS9: 2500 | AT9: 2500 | AU9: 2500 | AV9: 2500 | AW9: 2500 | AX9: 2500 | AY9: 2500 | AZ9: 2500 | BA9: 2500 | BB9: 2500 | BC9: 2500 | BD9: 2500 | BE9: 2500 | BF9: 2500 | BG9: 0 | BH9: 0 | BI9: 0 | BJ9: 0 | BK9: 0 | BL9: 0 | BM9: 0 | BN9: 0 | BO9: 0 | BP9: 0 | BQ9: 0 | BR9: 0 | BS9: 0 | BT9: 0 | BU9: 0 | BV9: 0 | BW9: 0 | BX9: 0 | BY9: 0 | BZ9: 0
D10: 9 | E10: Repower | F10: 16 | G10: MM82 | H10: 0 | I10: 0 | J10: 0 | K10: 0 | L10: 0 | M10: 0 | N10: 0 | O10: 25 | P10: 66 | Q10: 129 | R10: 192 | S10: 267 | T10: 343 | U10: 431 | V10: 519 | W10: 615 | X10: 711 | Y10: 835 | Z10: 959 | AA10: 1157 | AB10: 1355 | AC10: 1518 | AD10: 1681 | AE10: 1771 | AF10: 1861 | AG10: 1904 | AH10: 1947 | AI10: 1970 | AJ10: 1987 | AK10: 1996 | AL10: 2000 | AM10: 2000 | AN10: 2000 | AO10: 2000 | AP10: 2000 | AQ10: 2000 | AR10: 2000 | AS10: 2000 | AT10: 2000 | AU10: 2000 | AV10: 2000 | AW10: 2000 | AX10: 2000 | AY10: 2000 | AZ10: 2000 | BA10: 0 | BB10: 0 | BC10: 0 | BD10: 0 | BE10: 0 | BF10: 0 | BG10: 0 | BH10: 0 | BI10: 0 | BJ10: 0 | BK10: 0 | BL10: 0 | BM10: 0 | BN10: 0 | BO10: 0 | BP10: 0 | BQ10: 0 | BR10: 0 | BS10: 0 | BT10: 0 | BU10: 0 | BV10: 0 | BW10: 0 | BX10: 0 | BY10: 0 | BZ10: 0
D11: 14 | E11: Vestas | F11: 413 | G11: V112/3000 | H11: 0 | I11: 0 | J11: 0 | K11: 0 | L11: 0 | M11: 0 | N11: 0 | O11: 36 | P11: 76 | Q11: 134 | R11: 192 | S11: 269 | T11: 346 | U11: 465 | V11: 584 | W11: 737 | X11: 890 | Y11: 1098 | Z11: 1306 | AA11: 1514 | AB11: 1722 | AC11: 1942 | AD11: 2162 | AE11: 2352 | AF11: 2542 | AG11: 2701 | AH11: 2860 | AI11: 2930 | AJ11: 2970 | AK11: 2983 | AL11: 2995 | AM11: 3000 | AN11: 3000 | AO11: 3000 | AP11: 3000 | AQ11: 3000 | AR11: 3000 | AS11: 3000 | AT11: 3000 | AU11: 3000 | AV11: 3000 | AW11: 3000 | AX11: 3000 | AY11: 3000 | AZ11: 3000 | BA11: 3000 | BB11: 3000 | BC11: 3000 | BD11: 3000 | BE11: 3000 | BF11: 3000 | BG11: 0 | BH11: 0 | BI11: 0 | BJ11: 0 | BK11: 0 | BL11: 0 | BM11: 0 | BN11: 0 | BO11: 0 | BP11: 0 | BQ11: 0 | BR11: 0 | BS11: 0 | BT11: 0 | BU11: 0 | BV11: 0 | BW11: 0 | BX11: 0 | BY11: 0 | BZ11: 0
B13: Capacity
E14: =E7 -> Enercon | F14: =MAX(7:7) -> 2300
E15: =E8 -> Gamesa | F15: =MAX(8:8) -> 4500
E16: Nordex | F16: 2500
E17: Repower | F17: 2000
E18: Vestas | F18: 3000
E20: 15
B22: Normalisation | H22: =H4 -> 0 | I22: =IF(I4<=$E$20,I4,NA()) -> 0.5 | J22: =IF(J4<=$E$20,J4,NA()) -> 1 | K22: 1.5 | L22: 2 | M22: 2.5 | N22: 3 | O22: 3.5 | P22: 4 | Q22: 4.5 | R22: 5 | S22: 5.5 | T22: 6 | U22: 6.5 | V22: 7 | W22: 7.5 | X22: 8 | Y22: 8.5 | Z22: 9 | AA22: 9.5 | AB22: 10 | AC22: 10.5 | AD22: 11 | AE22: 11.5 | AF22: 12 | AG22: 12.5 | AH22: 13 | AI22: 13.5 | AJ22: 14 | AK22: 14.5 | AL22: 15 | BV22: =IF(BV4<=$E$20,BV4,NA()) -> 
E23: =E7 -> Enercon
E24: =E8 -> Gamesa
E25: Nordex
E26: Repower
E27: Vestas

Sheet Wind Components
B3: Wind Farm 1
C4: Production | E4: Vestas | F4: Gamesa | G4: GE | H4: Siemens
D5: Wind Farm Rated Power MW | E5: 28.8 | F5: 32 | G5: 25.6 | H5: 29.9
D6: Gross Energy Output GWh/annum | E6: 140.3 | F6: 138.2 | G6: 136.9 | H6: 136.7
D7: Wake effect | E7: 0.947 | F7: 0.945 | G7: 0.952 | H7: 0.959
D8: Availability | E8: 0.963 | F8: 0.963 | G8: 0.963 | H8: 0.963
D9: Electrical efficiency | E9: 0.984 | F9: 0.984 | G9: 0.984 | H9: 0.984
D10: Turbine performance | E10: 1 | F10: 1 | G10: 1 | H10: 1
D11: Environmental | E11: 0.995 | F11: 0.995 | G11: 0.995 | H11: 0.995
D12: Curtailment | E12: 1 | F12: 1 | G12: 1 | H12: 1
D13: Net Energy Output GWh/annum
D14: Equivalent hours hours
D16: Given Production | E16: 125.3 | F16: 123.2 | G16: 122.9 | H16: 123.5
D17: Given Equivalent Hours | E17: 4350 | F17: 3849 | G17: 4800 | H17: 4132
D18: Performance Ratio | E18: =E13/E6 -> 0 | F18: =F13/F6 -> 0 | G18: 0 | H18: 0
C21: Wind Farm Rated Power1 MW | E21: 94
C22: Gross Capacity Factor | E22: 0.5054587114
C23: Gross Energy Output GWh/annum | E23: =E21*E22*8760/1000 -> 416.2149213
C24: Wake effect | E24: 0.948
C25: Availability | E25: 0.953
C26: Electrical efficiency | E26: 0.977
C27: Turbine performance | E27: 0.953
C28: Environmental | E28: 0.976
C29: Curtailment | E29: 0.995
C30: Net Energy Output GWh/annum | E30: =PRODUCT(E23:E29) -> 340.0002578
C31: Net Capacity Factor | E31: =E30/8760*1000/E21 -> 0.4129022853
E32: =E30/E23 -> 0.8168862778

Sheet Detailed LCOE Calculator
G2: Project 1 | H2: Project 2 | I2: Project 3 | J2: Project 4
B3: Real LCOE | G3: =G74 -> 20.91490816 | H3: =H74 -> 20.91490816 | I3: =I74 -> 20.91490816 | J3: =J74 -> 18.89983608
C5: Annual Production | E5: Quantity | G5: 160 | H5: 160 | I5: 160 | J5: 160
C6: Total Capital Cost | E6: USD | G6: 50500 | H6: 50500 | I6: 50500 | J6: 50500
B8: Carrying Charge Analysis
C9: Project Life | E9: Yr | G9: 30 | H9: 30 | I9: 30 | J9: 30
C10: Tax Life | E10: Yr | G10: 5 | H10: 5 | I10: 5 | J10: 5
C11: Income Tax Rate | E11: % | G11: 0.3 | H11: 0.3 | I11: 0.3 | J11: 0.3
C12: Variable Declining Balance Factor (1-St Line) | E12: Factor | G12: 1 | H12: 1 | I12: 1 | J12: 1
C13: Debt to Captial | E13: % | G13: 0.8 | H13: 0.8 | I13: 0.8 | J13: 0.8
C14: Target Equity IRR | E14: % | G14: 0.075 | H14: 0.075 | I14: 0.075 | J14: 0.075
C15: Cost of Debt | E15: % | G15: 0.032 | H15: 0.032 | I15: 0.032 | J15: 0.032
C16: After Cost of Debt | E16: % | G16: =G15*(1-G11) -> 0.0224 | H16: =H15*(1-H11) -> 0.0224 | I16: =I15*(1-I11) -> 0.0224 | J16: =J15*(1-J11) -> 0.0224
C17: WACC | E17: % | G17: =G16*G13+G14*(1-G13) -> 0.03292 | H17: =H16*H13+H14*(1-H13) -> 0.03292 | I17: =I16*I13+I14*(1-I13) -> 0.03292 | J17: =J16*J13+J14*(1-J13) -> 0.03292
C19: Required Project IRR | E19: % p.a. | G19: =G17 -> 0.03292 | H19: =H17 -> 0.03292 | I19: =I17 -> 0.03292 | J19: =J17 -> 0.03292
C21: Inflation | E21: % p.a. | G21: 0.02 | H21: 0.02 | I21: 0.02 | J21: 0.02
C22: Degradation | E22: % p.a. | G22: 0.005 | H22: 0.005 | I22: 0.005 | J22: 0.005
C23: Tax Shield Value | E23: % | G23: =tax_dep_shield(G10,G12,G19,G11) -> 0.2725064009 | H23: =tax_dep_shield(H10,H12,H19,H11) -> 0.2725064009 | I23: =tax_dep_shield(I10,I12,I19,I11) -> 0.2725064009 | J23: =tax_dep_shield(J10,J12,J19,J11) -> 0.2725064009
C25: Levelizing Factor with PMT | E25: % | G25: =PMT(G19,G9,-1) -> 0.05296368708 | H25: =PMT(H19,H9,-1) -> 0.05296368708 | I25: =PMT(I19,I9,-1) -> 0.05296368708 | J25: =PMT(J19,J9,-1) -> 0.05296368708
C26: Capital Recovery Pre-Tax | E26: USD/yr | G26: =G25*G6 -> 2674.666197 | H26: =H25*H6 -> 2674.666197 | I26: =I25*I6 -> 2674.666197 | J26: =J25*J6 -> 2674.666197
C28: Capital Cost Recovery Base | E28: USD/yr | G28: =G25*G6 -> 2674.666197 | H28: =H25*H6 -> 2674.666197 | I28: =I25*I6 -> 2674.666197 | J28: =J25*J6 -> 2674.666197
C29: IRR Adjusted for Degradation | E29: % p.a. | G29: =(1+G19)/(1-G22)-1 -> 0.03811055276 | H29: =(1+H19)/(1-H22)-1 -> 0.03811055276 | I29: 0.03811055276 | J29: 0.03811055276
C30: Nominal Levelizing Factor with Degradation | E30: % p.a. | G30: =PMT(G29,G9,-1) -> 0.05651077627 | H30: =PMT(H29,H9,-1) -> 0.05651077627 | I30: =PMT(I29,I9,-1) -> 0.05651077627 | J30: =PMT(J29,J9,-1) -> 0.05651077627
C31: PMT Factor Adjusted for Paying Taxes | E31: % p.a. | G31: =G30/(1-G11) -> 0.08072968039 | H31: =H30/(1-H11) -> 0.08072968039 | I31: =I30/(1-I11) -> 0.08072968039 | J31: =J30/(1-J11) -> 0.08072968039
C32: PMT Factor Adjust for Tax Depreciation Shield | E32: % p.a. | G32: =G31*(1-G23) -> 0.05873032574 | H32: =H31*(1-H23) -> 0.05873032574 | I32: =I31*(1-I23) -> 0.05873032574 | J32: =J31*(1-J23) -> 0.05873032574
C34: Construction Timing | E34: Year | G34: 1 | H34: 1 | I34: 1 | J34: 1
C35: Construction Factor | E35: Factor | G35: =FV(G19,G34,-1/G34) -> 1 | H35: =FV(H19,H34,-1/H34) -> 1 | I35: 1 | J35: 1
C36: Capital Cost Recovery with Degradation | E36: USD/yr | G36: =G32*G6*G35 -> 2965.88145 | H36: =H32*H6*H35 -> 2965.88145 | I36: =I32*I6*I35 -> 2965.88145 | J36: =J32*J6*J35 -> 2965.88145
C38: Real IRR | E38: % p.a. | G38: =(1+G19)/(1+G21)-1 -> 0.01266666667 | H38: =(1+H19)/(1+H21)-1 -> 0.01266666667 | I38: 0.01266666667 | J38: 0.01266666667
C39: Levelizing Factor with Real IRR | E39: % p.a. | G39: =(1+G38)/(1-G22)-1 -> 0.01775544389 | H39: =(1+H38)/(1-H22)-1 -> 0.01775544389 | I39: 0.01775544389 | J39: 0.01775544389
C40: Real IRR Adjusted for Degradation | E40: % p.a. | G40: =(1+G38)/(1-G22)-1 -> 0.01775544389 | H40: =(1+H38)/(1-H22)-1 -> 0.01775544389 | I40: 0.01775544389 | J40: 0.01775544389
C41: Levelizing Factor with Real IRR and Degradation | E41: % p.a. | G41: =PMT(G40,G9,-1) -> 0.04328372983 | H41: =PMT(H40,H9,-1) -> 0.04328372983 | I41: =PMT(I40,I9,-1) -> 0.04328372983 | J41: =PMT(J40,J9,-1) -> 0.04328372983
C43: Adj for Tax on Inc (Divide by (1-t)) | E43: % | G43: =G41/(1-G11) -> 0.06183389975 | H43: =H41/(1-H11) -> 0.06183389975 | I43: =I41/(1-I11) -> 0.06183389975 | J43: =J41/(1-J11) -> 0.06183389975
C44: Adj for Tax Shield | E44: % | G44: =G43*(1-G23) -> 0.04498376628 | H44: =H43*(1-H23) -> 0.04498376628 | I44: 0.04498376628 | J44: 0.04498376628
C46: Construction Real | E46: Factor | G46: 1 | H46: 1 | I46: 1 | J46: 1
C47: Final Real Capital Cost Recovery with Degradation | E47: USD/yr | G47: =G44*G6 -> 2271.680197 | H47: =H44*H6 -> 2271.680197 | I47: =I44*I6 -> 2271.680197 | J47: =J44*J6 -> 2271.680197
C50: Total Operating Costs | E50: USD/yr | G50: 1000 | H50: 1000 | I50: 1000 | J50: 700
C52: Inflation Factor for Nominal Cost | E52: Factor | G52: =PV(G38,G9,-1)/PV(G19,G9,-1) -> 1.315051761 | H52: =PV(H38,H9,-1)/PV(H19,H9,-1) -> 1.315051761 | I52: =PV(I38,I9,-1)/PV(I19,I9,-1) -> 1.315051761 | J52: =PV(J38,J9,-1)/PV(J19,J9,-1) -> 1.315051761
C53: Degradation Factor for Nominal Cost | E53: Factor | G53: =PV(G38,G9,-1)/PV(G29,G9,-1) -> 1.403123535 | H53: =PV(H38,H9,-1)/PV(H29,H9,-1) -> 1.403123535 | I53: =PV(I38,I9,-1)/PV(I29,I9,-1) -> 1.403123535 | J53: =PV(J38,J9,-1)/PV(J29,J9,-1) -> 1.403123535
C54: Adjusted Nominal Cost for LCOE Calc | E54: USD/yr | G54: =G53*G50 -> 1403.123535 | H54: =H53*H50 -> 1403.123535 | I54: =I53*I50 -> 1403.123535 | J54: =J53*J50 -> 982.1864744
C56: Degradation Factor for Real Cost | E56: Factor | G56: =PV(G38,G9,-1)/PV(G40,G9,-1) -> 1.074705109 | H56: =PV(H38,H9,-1)/PV(H40,H9,-1) -> 1.074705109 | I56: =PV(I38,I9,-1)/PV(I40,I9,-1) -> 1.074705109 | J56: =PV(J38,J9,-1)/PV(J40,J9,-1) -> 1.074705109
C57: Adjusted Real Cost of LOCE | E57: USD/yr | G57: =G50*G56 -> 1074.705109 | H57: =H50*H56 -> 1074.705109 | I57: =I50*I56 -> 1074.705109 | J57: =J50*J56 -> 752.2935766
B59: LCOE Calculation
C60: Nominal Capital Recovery | E60: USD/yr | G60: =G36 -> 2965.88145 | H60: =H36 -> 2965.88145 | I60: =I36 -> 2965.88145 | J60: =J36 -> 2965.88145
C61: Nomina O&M Cost | E61: USD/yr | G61: =G54 -> 1403.123535 | H61: =H54 -> 1403.123535 | I61: =I54 -> 1403.123535 | J61: =J54 -> 982.1864744
C62: Total Nominal Cost | E62: USD/yr | G62: =SUM(G60:G61) -> 4369.004985 | H62: =SUM(H60:H61) -> 4369.004985 | I62: =SUM(I60:I61) -> 4369.004985 | J62: =SUM(J60:J61) -> 3948.067924
C64: Total Production | E64: kWh | G64: =G5 -> 160 | H64: =H5 -> 160 | I64: 160 | J64: 160
C65: LCOE - Nominal | E65: USD/kWh | G65: =IFERROR(G62/G64,FALSE) -> 27.30628115 | H65: =IFERROR(H62/H64,FALSE) -> 27.30628115 | I65: =IFERROR(I62/I64,FALSE) -> 27.30628115 | J65: =IFERROR(J62/J64,FALSE) -> 24.67542453
C66: LCOE - Nominal | E66: USD/MWh | G66: =G65*1000 -> 27306.28115 | H66: =H65*1000 -> 27306.28115 | I66: =I65*1000 -> 27306.28115 | J66: =J65*1000 -> 24675.42453
C68: Capital Recovery - Real | E68: USD/yr | G68: =G47 -> 2271.680197 | H68: =H47 -> 2271.680197 | I68: =I47 -> 2271.680197 | J68: =J47 -> 2271.680197
C69: O&M Cost | E69: USD/yr | G69: =G57 -> 1074.705109 | H69: =H57 -> 1074.705109 | I69: =I57 -> 1074.705109 | J69: =J57 -> 752.2935766
C70: Total Cost | E70: USD/yr | G70: =SUM(G68:G69) -> 3346.385306 | H70: =SUM(H68:H69) -> 3346.385306 | I70: =SUM(I68:I69) -> 3346.385306 | J70: =SUM(J68:J69) -> 3023.973774
C72: Total Production | E72: kWh | G72: =G64 -> 160 | H72: =H64 -> 160 | I72: =I64 -> 160 | J72: =J64 -> 160
C73: LCOE - Real | E73: USD/kWh | G73: =IFERROR(G70/G72,FALSE) -> 20.91490816 | H73: =IFERROR(H70/H72,FALSE) -> 20.91490816 | I73: =IFERROR(I70/I72,FALSE) -> 20.91490816 | J73: =IFERROR(J70/J72,FALSE) -> 18.89983608
C74: LCOE - Real | E74: USD/MWh | G74: =G73 -> 20.91490816 | H74: =H73 -> 20.91490816 | I74: 20.91490816 | J74: 18.89983608
C76: LCOE-Real | E76: USD/kW-year
B78: Financing Assumptions
C79: Max Debt to Capital | G79: 0.85 | H79: 0.85 | I79: 0.85 | J79: 0.85
C80: Interest Rate | G80: 0.03 | H80: 0.03 | I80: 0.03 | J80: 0.03
C81: Debt Tenor | G81: 20 | H81: 20 | I81: 20 | J81: 20
C82: P50 DSCR | G82: 1.2 | H82: 1.2 | I82: 1.2 | J82: 1.2
C83: P99 DSCR | G83: 1 | H83: 1 | I83: 1 | J83: 1
C85: Target Equity IRR | G85: 0.08 | H85: 0.08 | I85: 0.08 | J85: 0.08
